Workbook

Sheet classement
C2: MOUVAUX le 1° Juin 2025
B4: CLASSEMENT REGIONAL POUSSINS 2025
B11: CLUB | C11: VILLE | D11: TOTAL
B12: POUSSINS JP R 2
A13: ='Poussins JP R2'!A2 -> 1 | B13: ='Poussins JP R2'!B32 -> LA JEANNE ARC | C13: ='Poussins JP R2'!C32 -> FOURNES | D13: ='Poussins JP R2'!AA45 -> 379.2
A14: ='Poussins JP R2'!A17 -> 2 | B14: ='Poussins JP R2'!B2 -> LA LORRAINE | C14: ='Poussins JP R2'!C2 -> RACHES | D14: ='Poussins JP R2'!AA15 -> 365.2
A15: ='Poussins JP R2'!A32 -> 3 | B15: ='Poussins JP R2'!B17 -> L'AMANDINOISE | C15: ='Poussins JP R2'!C17 -> ST AMAND | D15: ='Poussins JP R2'!AA30 -> 353.85
A16: ='Poussins JP R2'!A47 -> 4 | B16: ='Poussins JP R2'!B47 -> LA BAILLEULOISE | C16: ='Poussins JP R2'!C47 -> BAILLEUL | D16: ='Poussins JP R2'!AA60 -> 351.05
B17: ='Poussins JP R2'!B63 -> 0 | C17: ='Poussins JP R2'!C63 -> 0 | D17: ='Poussins JP R2'!AA76 -> 0
B18: ='Poussins JP R2'!B78 -> 0 | C18: ='Poussins JP R2'!C78 -> 0 | D18: ='Poussins JP R2'!AA91 -> 0
B19: ='Poussins JP R2'!B99 -> 0 | C19: ='Poussins JP R2'!C99 -> 0 | D19: ='Poussins JP R2'!AA112 -> 0
B22: POUSSINS JP R 1
A24: 1 | B24: ='Poussins JP R 1'!B4 -> JEANNE ARC | C24: ='Poussins JP R 1'!C4 -> MOUVAUX | D24: ='Poussins JP R 1'!AA25 -> 579.3
A25: 2 | B25: ='Poussins JP R 1'!B58 -> JEUNE GARDE | C25: ='Poussins JP R 1'!C58 -> ARMENTIERES | D25: ='Poussins JP R 1'!AA79 -> 485.8
A26: 3 | B26: ='Poussins JP R 1'!B28 -> JEUNE GARDE | C26: ='Poussins JP R 1'!C28 -> ARMENTIERES | D26: ='Poussins JP R 1'!AA49 -> 485.8
B33: POUSSINS JP R3
A35: 1 | B35: ='Poussins JP R3'!B13 -> LA JEANNE ARC | C35: ='Poussins JP R3'!C13 -> ESTAIRES | D35: ='Poussins JP R3'!AA23 -> 184.95
A36: 2 | B36: ='Poussins JP R3'!B1 -> L'USSA | C36: ='Poussins JP R3'!C1 -> ST ANDRE | D36: ='Poussins JP R3'!AA11 -> 169.6
A37: 3 | B37: ='Poussins JP R3'!B25 -> 0 | C37: ='Poussins JP R3'!C25 -> 0 | D37: ='Poussins JP R3'!AA35 -> 0
A38: 4
A39: 5
A40: 6
A41: 7

Sheet Poussins JP R2
A2: 1 | B2: LA LORRAINE | C2: RACHES
B4: Nom | C4: Prénom | D4: Degré | E4: Note | G4: Sol | H4: Degré | I4: Note | K4: Saut | L4: Degré | M4: Note | O4: BP | P4: Degré | Q4: Note | S4: BF | T4: Note | V4: Arçons | W4: Note | Y4: AN | Z4: Total; des 6 Meilleurs notes
D5: 1 | E5: 7.75 | F5: =IF(OR(E5<7,NOT(ISNUMBER(D5))),"",IF(D5=0,"",CHOOSE(D5,1,2,3,4,5))) -> 1 | G5: =SUM(E5:F5) -> 8.75 | H5: 2 | I5: 8.25 | J5: =IF(OR(I5<7,NOT(ISNUMBER(H5))),"",IF(H5=0,"",CHOOSE(H5,1,2,3,4,5))) -> 2 | K5: =SUM(I5:J5) -> 10.25 | L5: 1 | M5: 7.25 | N5: =IF(OR(M5<7,NOT(ISNUMBER(L5))),"",IF(L5=0,"",CHOOSE(L5,1,2,3,4,5))) -> 1 | O5: =SUM(M5:N5) -> 8.25 | P5: 2 | Q5: 7.65 | R5: =IF(OR(Q5<7,NOT(ISNUMBER(P5))),"",IF(P5=0,"",CHOOSE(P5,1,2,3,4,5))) -> 2 | S5: =SUM(Q5:R5) -> 9.65 | T5: 3.05 | U5: 0 | V5: =SUM(T5:U5) -> 3.05 | W5: 1 | X5: =IF(OR(W5<7,NOT(ISNUMBER(#REF!))),"",IF(#REF!=0,"",CHOOSE(#REF!,1,2,3,4,5))) ->  | Y5: =SUM(W5:X5) -> 1
D6: 4 | E6: 8.15 | F6: =IF(OR(E6<7,NOT(ISNUMBER(D6))),"",IF(D6=0,"",CHOOSE(D6,1,2,3,4,5))) -> 4 | G6: =SUM(E6:F6) -> 12.15 | H6: 4 | I6: 7.7 | J6: 4 | K6: =SUM(I6:J6) -> 11.7 | L6: 3 | M6: 8.5 | N6: =IF(OR(M6<7,NOT(ISNUMBER(L6))),"",IF(L6=0,"",CHOOSE(L6,1,2,3,4,5))) -> 3 | O6: =SUM(M6:N6) -> 11.5 | P6: 3 | Q6: 8.55 | R6: =IF(OR(Q6<7,NOT(ISNUMBER(P6))),"",IF(P6=0,"",CHOOSE(P6,1,2,3,4,5))) -> 3 | S6: =SUM(Q6:R6) -> 11.55 | T6: 5.15 | U6: 0 | V6: =SUM(T6:U6) -> 5.15 | W6: 8.3 | X6: =IF(OR(W6<7,NOT(ISNUMBER(#REF!))),"",IF(#REF!=0,"",CHOOSE(#REF!,1,2,3,4,5))) ->  | Y6: =SUM(W6:X6) -> 8.3 | Z6: Sol | AA6: =LARGE(G5:G14,1)+LARGE(G5:G14,2)+LARGE(G5:G14,3)+LARGE(G5:G14,4)+LARGE(G5:G14,5)+LARGE(G5:G14,6) -> 71.25
D7: 3 | E7: 8.45 | F7: 3 | G7: 11.45 | H7: 3 | I7: 9.1 | J7: 3 | K7: 12.1 | L7: 3 | M7: 9.5 | N7: 3 | O7: 12.5 | P7: 3 | Q7: 8.9 | R7: 3 | S7: 11.9 | T7: 6.15 | U7: 0 | V7: 6.15 | W7: 7.9 | X7: =IF(OR(W7<7,NOT(ISNUMBER(#REF!))),"",IF(#REF!=0,"",CHOOSE(#REF!,1,2,3,4,5))) ->  | Y7: 7.9 | Z7: Saut | AA7: =LARGE(K5:K14,1)+LARGE(K5:K14,2)+LARGE(K5:K14,3)+LARGE(K5:K14,4)+LARGE(K5:K14,5)+LARGE(K5:K14,6) -> 74.15
D8: 4 | E8: 8.15 | F8: 4 | G8: 12.15 | H8: 2 | I8: 8.25 | J8: 2 | K8: 10.25 | L8: 4 | M8: 8.5 | N8: 4 | O8: 12.5 | P8: 3 | Q8: 8.95 | R8: 3 | S8: 11.95 | T8: 6.9 | U8: 0 | V8: 6.9 | W8: 8.05 | X8: =IF(OR(W8<7,NOT(ISNUMBER(#REF!))),"",IF(#REF!=0,"",CHOOSE(#REF!,1,2,3,4,5))) ->  | Y8: 8.05 | Z8: BP | AA8: =LARGE(O5:O14,1)+LARGE(O5:O14,2)+LARGE(O5:O14,3)+LARGE(O5:O14,4)+LARGE(O5:O14,5)+LARGE(O5:O14,6) -> 69.5
D9: 1 | E9: 8.5 | F9: 1 | G9: 9.5 | H9: 3 | I9: 9.3 | J9: 3 | K9: 12.3 | L9: 2 | M9: 7.6 | N9: 2 | O9: 9.6 | P9: 2 | Q9: 7.9 | R9: 2 | S9: 9.9 | T9: 3.8 | U9: 0 | V9: 3.8 | W9: 3.2 | X9: =IF(OR(W9<7,NOT(ISNUMBER(#REF!))),"",IF(#REF!=0,"",CHOOSE(#REF!,1,2,3,4,5))) ->  | Y9: 3.2 | Z9: BF | AA9: =LARGE(S5:S14,1)+LARGE(S5:S14,2)+LARGE(S5:S14,3)+LARGE(S5:S14,4)+LARGE(S5:S14,5)+LARGE(S5:S14,6) -> 68.55
D10: 4 | E10: 8.75 | F10: 4 | G10: 12.75 | H10: 3 | I10: 9.25 | J10: 3 | K10: 12.25 | L10: 3 | M10: 7.4 | N10: 3 | O10: 10.4 | P10: 3 | Q10: 8.95 | R10: 3 | S10: 11.95 | T10: 5.85 | U10: 0 | V10: 5.85 | W10: 8.7 | Y10: 8.7 | Z10: Arcons | AA10: =LARGE(V5:V14,1)+LARGE(V5:V14,2)+LARGE(V5:V14,3)+LARGE(V5:V14,4)+LARGE(V5:V14,5)+LARGE(V5:V14,6) -> 32.8
D11: 3 | E11: 8.55 | F11: 3 | G11: 11.55 | H11: 4 | I11: 9.2 | J11: 4 | K11: 13.2 | L11: 3 | M11: 8.9 | N11: 3 | O11: 11.9 | P11: 3 | Q11: 7.15 | R11: 3 | S11: 10.15 | T11: 4.95 | U11: 0 | V11: 4.95 | W11: 7.9 | Y11: 7.9 | Z11: Anneaux | AA11: =LARGE(Y5:Y14,1)+LARGE(Y5:Y14,2)+LARGE(Y5:Y14,3)+LARGE(Y5:Y14,4)+LARGE(Y5:Y14,5)+LARGE(Y5:Y14,6) -> 48.95
D12: 3 | E12: 8.2 | F12: 3 | G12: 11.2 | H12: 3 | I12: 9.6 | J12: 3 | K12: 12.6 | L12: 3 | M12: 7.7 | N12: 3 | O12: 10.7 | P12: 3 | Q12: 8.05 | R12: 3 | S12: 11.05 | T12: 3.5 | U12: 0 | V12: 3.5 | W12: 8.1 | Y12: 8.1
G13: 0 | K13: 0 | O13: 0 | S13: 0 | U13: 0 | V13: 0 | Y13: 0
F14: =IF(OR(E14<7,NOT(ISNUMBER(D14))),"",IF(D14=0,"",CHOOSE(D14,1,2,3,4,5))) ->  | N14: =IF(OR(M14<7,NOT(ISNUMBER(L14))),"",IF(L14=0,"",CHOOSE(L14,1,2,3,4,5))) ->  | U14: =IF(OR(T14<7,NOT(ISNUMBER(#REF!))),"",IF(#REF!=0,"",CHOOSE(#REF!,1,2,3,4,5))) ->  | X14: =IF(OR(W14<7,NOT(ISNUMBER(#REF!))),"",IF(#REF!=0,"",CHOOSE(#REF!,1,2,3,4,5))) -> 
C15: Total | G15: =SUM(G5:G14) -> 89.5 | K15: =SUM(K5:K14) -> 94.65 | O15: =SUM(O5:O14) -> 87.35 | S15: =SUM(S5:S14) -> 88.1 | V15: =SUM(V5:V14) -> 39.35 | Y15: =SUM(Y5:Y14) -> 53.15 | Z15: Total Gal | AA15: =SUM(AA5:AA14) -> 365.2
A17: 2 | B17: L'AMANDINOISE | C17: ST AMAND
B19: Nom | C19: Prénom | D19: Degré | E19: Note | G19: Sol | H19: Degré | I19: Note | K19: Saut | L19: Degré | M19: Note | O19: BP | P19: Degré | Q19: Note | S19: BF | T19: Note | V19: Arçons | W19: Note | Y19: AN | Z19: Total; des 6 Meilleurs notes
D20: 1 | E20: 8.5 | F20: =IF(OR(E20<7,NOT(ISNUMBER(D20))),"",IF(D20=0,"",CHOOSE(D20,1,2,3,4,5))) -> 1 | G20: =SUM(E20:F20) -> 9.5 | H20: 2 | I20: 8.2 | J20: =IF(OR(I20<7,NOT(ISNUMBER(H20))),"",IF(H20=0,"",CHOOSE(H20,1,2,3,4,5))) -> 2 | K20: =SUM(I20:J20) -> 10.2 | L20: 2 | M20: 7.65 | N20: =IF(OR(M20<7,NOT(ISNUMBER(L20))),"",IF(L20=0,"",CHOOSE(L20,1,2,3,4,5))) -> 2 | O20: =SUM(M20:N20) -> 9.65 | P20: 2 | Q20: 8.8 | R20: =IF(OR(Q20<7,NOT(ISNUMBER(P20))),"",IF(P20=0,"",CHOOSE(P20,1,2,3,4,5))) -> 2 | S20: =SUM(Q20:R20) -> 10.8 | T20: 2.9 | U20: =IF(OR(T20<7,NOT(ISNUMBER(#REF!))),"",IF(#REF!=0,"",CHOOSE(#REF!,1,2,3,4,5))) ->  | V20: =SUM(T20:U20) -> 2.9 | W20: 7.75 | X20: =IF(OR(W20<7,NOT(ISNUMBER(#REF!))),"",IF(#REF!=0,"",CHOOSE(#REF!,1,2,3,4,5))) ->  | Y20: =SUM(W20:X20) -> 7.75
D21: 3 | E21: 7.6 | F21: =IF(OR(E21<7,NOT(ISNUMBER(D21))),"",IF(D21=0,"",CHOOSE(D21,1,2,3,4,5))) -> 3 | G21: =SUM(E21:F21) -> 10.6 | H21: 3 | I21: 9.2 | J21: =IF(OR(I21<7,NOT(ISNUMBER(H21))),"",IF(H21=0,"",CHOOSE(H21,1,2,3,4,5))) -> 3 | K21: =SUM(I21:J21) -> 12.2 | L21: 3 | M21: 8.7 | N21: =IF(OR(M21<7,NOT(ISNUMBER(L21))),"",IF(L21=0,"",CHOOSE(L21,1,2,3,4,5))) -> 3 | O21: =SUM(M21:N21) -> 11.7 | P21: 3 | Q21: 8.75 | R21: =IF(OR(Q21<7,NOT(ISNUMBER(P21))),"",IF(P21=0,"",CHOOSE(P21,1,2,3,4,5))) -> 3 | S21: =SUM(Q21:R21) -> 11.75 | T21: 3.55 | U21: =IF(OR(T21<7,NOT(ISNUMBER(#REF!))),"",IF(#REF!=0,"",CHOOSE(#REF!,1,2,3,4,5))) ->  | V21: =SUM(T21:U21) -> 3.55 | W21: 7.95 | X21: =IF(OR(W21<7,NOT(ISNUMBER(#REF!))),"",IF(#REF!=0,"",CHOOSE(#REF!,1,2,3,4,5))) ->  | Y21: =SUM(W21:X21) -> 7.95 | Z21: Sol | AA21: =LARGE(G20:G29,1)+LARGE(G20:G29,2)+LARGE(G20:G29,3)+LARGE(G20:G29,4)+LARGE(G20:G29,5)+LARGE(G20:G29,6) -> 66.6
D22: 2 | E22: 8.45 | F22: 2 | G22: 10.45 | H22: 2 | I22: 8.4 | J22: =IF(OR(I22<7,NOT(ISNUMBER(H22))),"",IF(H22=0,"",CHOOSE(H22,1,2,3,4,5))) -> 2 | K22: =SUM(I22:J22) -> 10.4 | L22: 2 | M22: 9.4 | N22: =IF(OR(M22<7,NOT(ISNUMBER(L22))),"",IF(L22=0,"",CHOOSE(L22,1,2,3,4,5))) -> 2 | O22: =SUM(M22:N22) -> 11.4 | P22: 2 | Q22: 8.8 | R22: =IF(OR(Q22<7,NOT(ISNUMBER(P22))),"",IF(P22=0,"",CHOOSE(P22,1,2,3,4,5))) -> 2 | S22: =SUM(Q22:R22) -> 10.8 | T22: 4.25 | U22: =IF(OR(T22<7,NOT(ISNUMBER(#REF!))),"",IF(#REF!=0,"",CHOOSE(#REF!,1,2,3,4,5))) ->  | V22: 4.25 | W22: 6.9 | X22: =IF(OR(W22<7,NOT(ISNUMBER(#REF!))),"",IF(#REF!=0,"",CHOOSE(#REF!,1,2,3,4,5))) ->  | Y22: 6.9 | Z22: Saut | AA22: =LARGE(K20:K29,1)+LARGE(K20:K29,2)+LARGE(K20:K29,3)+LARGE(K20:K29,4)+LARGE(K20:K29,5)+LARGE(K20:K29,6) -> 72.15
D23: 4 | E23: 7.35 | F23: 4 | G23: 11.35 | H23: 4 | I23: 8.45 | J23: 4 | K23: 12.45 | L23: 3 | M23: 8.55 | N23: 3 | O23: 11.55 | P23: 3 | Q23: 9 | R23: 3 | S23: 12 | T23: 5.85 | U23: =IF(OR(T23<7,NOT(ISNUMBER(#REF!))),"",IF(#REF!=0,"",CHOOSE(#REF!,1,2,3,4,5))) ->  | V23: =SUM(T23:U23) -> 5.85 | W23: 8.45 | Y23: 8.45 | Z23: BP | AA23: =LARGE(O20:O29,1)+LARGE(O20:O29,2)+LARGE(O20:O29,3)+LARGE(O20:O29,4)+LARGE(O20:O29,5)+LARGE(O20:O29,6) -> 68
D24: 2 | E24: 7.95 | F24: 2 | G24: 9.95 | H24: 2 | I24: 8.8 | J24: 2 | K24: 10.8 | L24: 2 | M24: 9.05 | N24: 2 | O24: 11.05 | P24: 2 | Q24: 8.15 | R24: 2 | S24: 10.15 | T24: 4.6 | U24: =IF(OR(T24<7,NOT(ISNUMBER(#REF!))),"",IF(#REF!=0,"",CHOOSE(#REF!,1,2,3,4,5))) ->  | V24: 4.6 | W24: 7.7 | Y24: 7.7 | Z24: BF | AA24: =LARGE(S20:S29,1)+LARGE(S20:S29,2)+LARGE(S20:S29,3)+LARGE(S20:S29,4)+LARGE(S20:S29,5)+LARGE(S20:S29,6) -> 69.95
D25: 3 | E25: 8.05 | F25: 3 | G25: 11.05 | H25: 3 | I25: 8.7 | J25: 3 | K25: 11.7 | L25: 2 | M25: 8.75 | N25: 2 | O25: 10.75 | P25: 3 | Q25: 9 | R25: 3 | S25: 12 | T25: 4.25 | U25: =IF(OR(T25<7,NOT(ISNUMBER(#REF!))),"",IF(#REF!=0,"",CHOOSE(#REF!,1,2,3,4,5))) ->  | V25: 4.25 | W25: 8.1 | Y25: 8.1 | Z25: Arçons | AA25: =LARGE(V20:V29,1)+LARGE(V20:V29,2)+LARGE(V20:V29,3)+LARGE(V20:V29,4)+LARGE(V20:V29,5)+LARGE(V20:V29,6) -> 29
D26: 3 | E26: 8.3 | F26: 3 | G26: 11.3 | H26: 3 | I26: 9.6 | J26: 3 | K26: 12.6 | L26: 2 | M26: 9.3 | N26: 2 | O26: 11.3 | P26: 3 | Q26: 8.6 | R26: 3 | S26: 11.6 | T26: 5.35 | U26: =IF(OR(T26<7,NOT(ISNUMBER(#REF!))),"",IF(#REF!=0,"",CHOOSE(#REF!,1,2,3,4,5))) ->  | V26: 5.35 | W26: 8.2 | X26: =IF(OR(W26<7,NOT(ISNUMBER(#REF!))),"",IF(#REF!=0,"",CHOOSE(#REF!,1,2,3,4,5))) ->  | Y26: 8.2 | Z26: Anneaux | AA26: =LARGE(Y20:Y29,1)+LARGE(Y20:Y29,2)+LARGE(Y20:Y29,3)+LARGE(Y20:Y29,4)+LARGE(Y20:Y29,5)+LARGE(Y20:Y29,6) -> 48.15
D27: 4 | E27: 7.85 | F27: 4 | G27: 11.85 | H27: 3 | I27: 9.4 | J27: 3 | K27: 12.4 | L27: 2 | M27: 9 | N27: 2 | O27: 11 | P27: 3 | Q27: 8.8 | R27: 3 | S27: 11.8 | T27: 4.7 | U27: =IF(OR(T27<7,NOT(ISNUMBER(#REF!))),"",IF(#REF!=0,"",CHOOSE(#REF!,1,2,3,4,5))) ->  | V27: 4.7 | W27: 7.6 | Y27: 7.6
F28: =IF(OR(E28<7,NOT(ISNUMBER(D28))),"",IF(D28=0,"",CHOOSE(D28,1,2,3,4,5))) ->  | G28: =SUM(E28:F28) -> 0 | K28: 0 | O28: 0 | S28: 0 | U28: =IF(OR(T28<7,NOT(ISNUMBER(#REF!))),"",IF(#REF!=0,"",CHOOSE(#REF!,1,2,3,4,5))) ->  | V28: 0 | Y28: 0
C30: Total | G30: =SUM(G20:G29) -> 86.05 | K30: =SUM(K20:K29) -> 92.75 | O30: =SUM(O20:O29) -> 88.4 | S30: =SUM(S20:S29) -> 90.9 | V30: =SUM(V20:V29) -> 35.45 | Y30: =SUM(Y20:Y29) -> 62.65 | Z30: Total Gal | AA30: =SUM(AA20:AA29) -> 353.85
A32: 3 | B32: LA JEANNE ARC | C32: FOURNES
B34: Nom | C34: Prénom | D34: Degré | E34: Note | G34: Sol | H34: Degré | I34: Note | K34: Saut | L34: Degré | M34: Note | O34: BP | P34: Degré | Q34: Note | S34: BF | T34: Note | V34: Arçons | W34: Note | Y34: AN | Z34: Total; des 6 Meilleurs notes
D35: 4 | E35: 7.45 | F35: =IF(OR(E35<7,NOT(ISNUMBER(D35))),"",IF(D35=0,"",CHOOSE(D35,1,2,3,4,5))) -> 4 | G35: =SUM(E35:F35) -> 11.45 | H35: 3 | I35: 9.1 | J35: =IF(OR(I35<7,NOT(ISNUMBER(H35))),"",IF(H35=0,"",CHOOSE(H35,1,2,3,4,5))) -> 3 | K35: =SUM(I35:J35) -> 12.1 | L35: 4 | M35: 8.6 | N35: =IF(OR(M35<7,NOT(ISNUMBER(L35))),"",IF(L35=0,"",CHOOSE(L35,1,2,3,4,5))) -> 4 | O35: =SUM(M35:N35) -> 12.6 | P35: 4 | Q35: 9.1 | R35: =IF(OR(Q35<7,NOT(ISNUMBER(P35))),"",IF(P35=0,"",CHOOSE(P35,1,2,3,4,5))) -> 4 | S35: =SUM(Q35:R35) -> 13.1 | T35: 7.95 | U35: =IF(OR(T35<7,NOT(ISNUMBER(#REF!))),"",IF(#REF!=0,"",CHOOSE(#REF!,1,2,3,4,5))) ->  | V35: =SUM(T35:U35) -> 7.95 | W35: 8.15 | X35: =IF(OR(W35<7,NOT(ISNUMBER(#REF!))),"",IF(#REF!=0,"",CHOOSE(#REF!,1,2,3,4,5))) ->  | Y35: =SUM(W35:X35) -> 8.15
D36: 4 | E36: 8.4 | F36: =IF(OR(E36<7,NOT(ISNUMBER(D36))),"",IF(D36=0,"",CHOOSE(D36,1,2,3,4,5))) -> 4 | G36: =SUM(E36:F36) -> 12.4 | H36: 3 | I36: 9.05 | J36: =IF(OR(I36<7,NOT(ISNUMBER(H36))),"",IF(H36=0,"",CHOOSE(H36,1,2,3,4,5))) -> 3 | K36: =SUM(I36:J36) -> 12.05 | L36: 3 | M36: 9.45 | N36: =IF(OR(M36<7,NOT(ISNUMBER(L36))),"",IF(L36=0,"",CHOOSE(L36,1,2,3,4,5))) -> 3 | O36: =SUM(M36:N36) -> 12.45 | P36: 4 | Q36: 8.65 | R36: =IF(OR(Q36<7,NOT(ISNUMBER(P36))),"",IF(P36=0,"",CHOOSE(P36,1,2,3,4,5))) -> 4 | S36: =SUM(Q36:R36) -> 12.65 | T36: 7.5 | U36: =IF(OR(T36<7,NOT(ISNUMBER(#REF!))),"",IF(#REF!=0,"",CHOOSE(#REF!,1,2,3,4,5))) ->  | V36: =SUM(T36:U36) -> 7.5 | W36: 7.7 | X36: =IF(OR(W36<7,NOT(ISNUMBER(#REF!))),"",IF(#REF!=0,"",CHOOSE(#REF!,1,2,3,4,5))) ->  | Y36: =SUM(W36:X36) -> 7.7 | Z36: Sol | AA36: =LARGE(G35:G44,1)+LARGE(G35:G44,2)+LARGE(G35:G44,3)+LARGE(G35:G44,4)+LARGE(G35:G44,5)+LARGE(G35:G44,6) -> 68.75
D37: 3 | E37: 7 | F37: =IF(OR(E37<7,NOT(ISNUMBER(D37))),"",IF(D37=0,"",CHOOSE(D37,1,2,3,4,5))) -> 3 | G37: =SUM(E37:F37) -> 10 | H37: 3 | I37: 8.5 | J37: =IF(OR(I37<7,NOT(ISNUMBER(H37))),"",IF(H37=0,"",CHOOSE(H37,1,2,3,4,5))) -> 3 | K37: =SUM(I37:J37) -> 11.5 | L37: 3 | M37: 8.5 | N37: =IF(OR(M37<7,NOT(ISNUMBER(L37))),"",IF(L37=0,"",CHOOSE(L37,1,2,3,4,5))) -> 3 | O37: =SUM(M37:N37) -> 11.5 | P37: 3 | Q37: 8.8 | R37: =IF(OR(Q37<7,NOT(ISNUMBER(P37))),"",IF(P37=0,"",CHOOSE(P37,1,2,3,4,5))) -> 3 | S37: =SUM(Q37:R37) -> 11.8 | T37: 3.95 | U37: =IF(OR(T37<7,NOT(ISNUMBER(#REF!))),"",IF(#REF!=0,"",CHOOSE(#REF!,1,2,3,4,5))) ->  | V37: =SUM(T37:U37) -> 3.95 | W37: 7.7 | Y37: 7.7 | Z37: Saut | AA37: =LARGE(K35:K44,1)+LARGE(K35:K44,2)+LARGE(K35:K44,3)+LARGE(K35:K44,4)+LARGE(K35:K44,5)+LARGE(K35:K44,6) -> 73.75
D38: 2 | E38: 8.25 | F38: 2 | G38: 10.25 | H38: 3 | I38: 5 | K38: 5 | L38: 2 | M38: 9 | N38: 2 | O38: 11 | P38: 2 | Q38: 8.8 | R38: 2 | S38: 10.8 | T38: 4.45 | U38: =IF(OR(T38<7,NOT(ISNUMBER(#REF!))),"",IF(#REF!=0,"",CHOOSE(#REF!,1,2,3,4,5))) ->  | V38: 4.45 | W38: 7.7 | Y38: 7.7 | Z38: BP | AA38: =LARGE(O35:O44,1)+LARGE(O35:O44,2)+LARGE(O35:O44,3)+LARGE(O35:O44,4)+LARGE(O35:O44,5)+LARGE(O35:O44,6) -> 74.9
D39: 3 | E39: 7.3 | F39: 3 | G39: 10.3 | H39: 3 | I39: 9.1 | J39: 3 | K39: 12.1 | L39: 3 | M39: 9.4 | N39: 3 | O39: 12.4 | P39: 3 | Q39: 8.7 | R39: 3 | S39: 11.7 | T39: 4.4 | U39: =IF(OR(T39<7,NOT(ISNUMBER(#REF!))),"",IF(#REF!=0,"",CHOOSE(#REF!,1,2,3,4,5))) ->  | V39: 4.4 | W39: 5 | Y39: 5 | Z39: BF | AA39: =LARGE(S35:S44,1)+LARGE(S35:S44,2)+LARGE(S35:S44,3)+LARGE(S35:S44,4)+LARGE(S35:S44,5)+LARGE(S35:S44,6) -> 73.75
D40: 2 | E40: 7.55 | F40: 2 | G40: 9.55 | H40: 2 | I40: 8.4 | J40: 2 | K40: 10.4 | L40: 2 | M40: 8.55 | N40: 2 | O40: 10.55 | P40: 2 | Q40: 8.7 | R40: 2 | S40: 10.7 | T40: 4.4 | U40: =IF(OR(T40<7,NOT(ISNUMBER(#REF!))),"",IF(#REF!=0,"",CHOOSE(#REF!,1,2,3,4,5))) ->  | V40: 4.4 | W40: 5.4 | X40: =IF(OR(W40<7,NOT(ISNUMBER(#REF!))),"",IF(#REF!=0,"",CHOOSE(#REF!,1,2,3,4,5))) ->  | Y40: 5.4 | Z40: Arçons | AA40: =LARGE(V35:V44,1)+LARGE(V35:V44,2)+LARGE(V35:V44,3)+LARGE(V35:V44,4)+LARGE(V35:V44,5)+LARGE(V35:V44,6) -> 40.5
D41: 4 | E41: 9.45 | F41: 4 | G41: 13.45 | H41: 4 | I41: 9.8 | J41: 4 | K41: 13.8 | L41: 4 | M41: 9.6 | N41: 4 | O41: 13.6 | P41: 4 | Q41: 9.7 | R41: 4 | S41: 13.7 | T41: 9.7 | U41: =IF(OR(T41<7,NOT(ISNUMBER(#REF!))),"",IF(#REF!=0,"",CHOOSE(#REF!,1,2,3,4,5))) ->  | V41: 9.7 | W41: 8.35 | X41: =IF(OR(W41<7,NOT(ISNUMBER(#REF!))),"",IF(#REF!=0,"",CHOOSE(#REF!,1,2,3,4,5))) ->  | Y41: 8.35 | Z41: Anneaux | AA41: =LARGE(Y35:Y44,1)+LARGE(Y35:Y44,2)+LARGE(Y35:Y44,3)+LARGE(Y35:Y44,4)+LARGE(Y35:Y44,5)+LARGE(Y35:Y44,6) -> 47.55
D42: 3 | E42: 7.9 | F42: 3 | G42: 10.9 | H42: 3 | I42: 9.2 | J42: 3 | K42: 12.2 | L42: 3 | M42: 9.35 | N42: 3 | O42: 12.35 | P42: 3 | Q42: 7.35 | R42: 3 | S42: 10.35 | T42: 6.5 | U42: =IF(OR(T42<7,NOT(ISNUMBER(#REF!))),"",IF(#REF!=0,"",CHOOSE(#REF!,1,2,3,4,5))) ->  | V42: 6.5 | W42: 7.95 | Y42: 7.95
G43: 0 | K43: 0 | O43: 0 | S43: 0 | U43: =IF(OR(T43<7,NOT(ISNUMBER(#REF!))),"",IF(#REF!=0,"",CHOOSE(#REF!,1,2,3,4,5))) ->  | V43: 0 | Y43: 0
C45: Total | G45: =SUM(G35:G44) -> 88.3 | K45: =SUM(K35:K44) -> 89.15 | O45: =SUM(O35:O44) -> 96.45 | S45: =SUM(S35:S44) -> 94.8 | V45: =SUM(V35:V44) -> 48.85 | Y45: =SUM(Y35:Y44) -> 57.95 | Z45: Total Gal | AA45: =SUM(AA35:AA44) -> 379.2
A47: 4 | B47: LA BAILLEULOISE | C47: BAILLEUL
B49: Nom | C49: Prénom | D49: Degré | E49: Note | G49: Sol | H49: Degré | I49: Note | K49: Saut | L49: Degré | M49: Note | O49: BP | P49: Degré | Q49: Note | S49: BF | T49: Note | V49: Arçons | W49: Note | Y49: AN | Z49: Total; des 6 Meilleurs notes
D50: 2 | E50: 7.75 | F50: =IF(OR(E50<7,NOT(ISNUMBER(D50))),"",IF(D50=0,"",CHOOSE(D50,1,2,3,4,5))) -> 2 | G50: =SUM(E50:F50) -> 9.75 | H50: 2 | I50: 7.25 | J50: =IF(OR(I50<7,NOT(ISNUMBER(H50))),"",IF(H50=0,"",CHOOSE(H50,1,2,3,4,5))) -> 2 | K50: =SUM(I50:J50) -> 9.25 | L50: 2 | M50: 8.55 | N50: =IF(OR(M50<7,NOT(ISNUMBER(L50))),"",IF(L50=0,"",CHOOSE(L50,1,2,3,4,5))) -> 2 | O50: =SUM(M50:N50) -> 10.55 | P50: 2 | Q50: 8.9 | R50: =IF(OR(Q50<7,NOT(ISNUMBER(P50))),"",IF(P50=0,"",CHOOSE(P50,1,2,3,4,5))) -> 2 | S50: =SUM(Q50:R50) -> 10.9 | T50: 2.65 | U50: =IF(OR(T50<7,NOT(ISNUMBER(#REF!))),"",IF(#REF!=0,"",CHOOSE(#REF!,1,2,3,4,5))) ->  | V50: =SUM(T50:U50) -> 2.65 | W50: 5.9 | X50: =IF(OR(W50<7,NOT(ISNUMBER(#REF!))),"",IF(#REF!=0,"",CHOOSE(#REF!,1,2,3,4,5))) ->  | Y50: =SUM(W50:X50) -> 5.9
D51: 3 | E51: 6.9 | F51: =IF(OR(E51<7,NOT(ISNUMBER(D51))),"",IF(D51=0,"",CHOOSE(D51,1,2,3,4,5))) ->  | G51: =SUM(E51:F51) -> 6.9 | H51: 2 | I51: 8.5 | J51: =IF(OR(I51<7,NOT(ISNUMBER(H51))),"",IF(H51=0,"",CHOOSE(H51,1,2,3,4,5))) -> 2 | K51: =SUM(I51:J51) -> 10.5 | L51: 2 | M51: 9.1 | N51: =IF(OR(M51<7,NOT(ISNUMBER(L51))),"",IF(L51=0,"",CHOOSE(L51,1,2,3,4,5))) -> 2 | O51: =SUM(M51:N51) -> 11.1 | P51: 3 | Q51: 8.6 | R51: =IF(OR(Q51<7,NOT(ISNUMBER(P51))),"",IF(P51=0,"",CHOOSE(P51,1,2,3,4,5))) -> 3 | S51: =SUM(Q51:R51) -> 11.6 | T51: 3.65 | U51: =IF(OR(T51<7,NOT(ISNUMBER(#REF!))),"",IF(#REF!=0,"",CHOOSE(#REF!,1,2,3,4,5))) ->  | V51: =SUM(T51:U51) -> 3.65 | W51: 6.75 | X51: =IF(OR(W51<7,NOT(ISNUMBER(#REF!))),"",IF(#REF!=0,"",CHOOSE(#REF!,1,2,3,4,5))) ->  | Y51: =SUM(W51:X51) -> 6.75 | Z51: Sol | AA51: =LARGE(G50:G59,1)+LARGE(G50:G59,2)+LARGE(G50:G59,3)+LARGE(G50:G59,4)+LARGE(G50:G59,5)+LARGE(G50:G59,6) -> 65.65
D52: 3 | E52: 7.95 | F52: 3 | G52: 10.95 | H52: 3 | I52: 9.1 | J52: 3 | K52: 12.1 | L52: 3 | M52: 8.95 | N52: 3 | O52: 11.95 | P52: 3 | Q52: 8.8 | R52: 3 | S52: 11.8 | T52: 4.05 | U52: =IF(OR(T52<7,NOT(ISNUMBER(#REF!))),"",IF(#REF!=0,"",CHOOSE(#REF!,1,2,3,4,5))) ->  | V52: 4.05 | W52: 8.1 | X52: =IF(OR(W52<7,NOT(ISNUMBER(#REF!))),"",IF(#REF!=0,"",CHOOSE(#REF!,1,2,3,4,5))) ->  | Y52: 8.1 | Z52: Saut | AA52: =LARGE(K50:K59,1)+LARGE(K50:K59,2)+LARGE(K50:K59,3)+LARGE(K50:K59,4)+LARGE(K50:K59,5)+LARGE(K50:K59,6) -> 69.35
D53: 4 | E53: 8.2 | F53: 4 | G53: 12.2 | H53: 3 | I53: 8.9 | J53: 3 | K53: 11.9 | L53: 3 | M53: 9.1 | N53: 3 | O53: 12.1 | P53: 3 | Q53: 7.45 | R53: 3 | S53: 10.45 | T53: 7.55 | U53: =IF(OR(T53<7,NOT(ISNUMBER(#REF!))),"",IF(#REF!=0,"",CHOOSE(#REF!,1,2,3,4,5))) ->  | V53: 7.55 | W53: 8.5 | X53: =IF(OR(W53<7,NOT(ISNUMBER(#REF!))),"",IF(#REF!=0,"",CHOOSE(#REF!,1,2,3,4,5))) ->  | Y53: 8.5 | Z53: BP | AA53: =LARGE(O50:O59,1)+LARGE(O50:O59,2)+LARGE(O50:O59,3)+LARGE(O50:O59,4)+LARGE(O50:O59,5)+LARGE(O50:O59,6) -> 69.85
D54: 4 | E54: 6.6 | G54: 6.6 | H54: 3 | I54: 8.1 | J54: 3 | K54: 11.1 | L54: 3 | M54: 8.05 | N54: 3 | O54: 11.05 | P54: 3 | Q54: 7.1 | R54: 3 | S54: 10.1 | T54: 6.05 | U54: =IF(OR(T54<7,NOT(ISNUMBER(#REF!))),"",IF(#REF!=0,"",CHOOSE(#REF!,1,2,3,4,5))) ->  | V54: 6.05 | W54: 7.4 | X54: =IF(OR(W54<7,NOT(ISNUMBER(#REF!))),"",IF(#REF!=0,"",CHOOSE(#REF!,1,2,3,4,5))) ->  | Y54: 7.4 | Z54: BF | AA54: =LARGE(S50:S59,1)+LARGE(S50:S59,2)+LARGE(S50:S59,3)+LARGE(S50:S59,4)+LARGE(S50:S59,5)+LARGE(S50:S59,6) -> 68.45
D55: 3 | E55: 6.9 | G55: 6.9 | H55: 2 | I55: 8.2 | J55: 2 | K55: 10.2 | L55: 2 | M55: 9.15 | N55: 2 | O55: 11.15 | P55: 2 | Q55: 8.9 | R55: 2 | S55: 10.9 | T55: 4.55 | U55: =IF(OR(T55<7,NOT(ISNUMBER(#REF!))),"",IF(#REF!=0,"",CHOOSE(#REF!,1,2,3,4,5))) ->  | V55: 4.55 | W55: 8.15 | X55: =IF(OR(W55<7,NOT(ISNUMBER(#REF!))),"",IF(#REF!=0,"",CHOOSE(#REF!,1,2,3,4,5))) ->  | Y55: 8.15 | Z55: Arçons | AA55: =LARGE(V50:V59,1)+LARGE(V50:V59,2)+LARGE(V50:V59,3)+LARGE(V50:V59,4)+LARGE(V50:V59,5)+LARGE(V50:V59,6) -> 32.85
D56: 4 | E56: 8.7 | F56: 4 | G56: 12.7 | H56: 3 | I56: 9.05 | J56: 3 | K56: 12.05 | L56: 3 | M56: 9.05 | N56: 3 | O56: 12.05 | P56: 4 | Q56: 8.45 | R56: 4 | S56: 12.45 | T56: 6.3 | U56: =IF(OR(T56<7,NOT(ISNUMBER(#REF!))),"",IF(#REF!=0,"",CHOOSE(#REF!,1,2,3,4,5))) ->  | V56: 6.3 | W56: 6 | X56: =IF(OR(W56<7,NOT(ISNUMBER(#REF!))),"",IF(#REF!=0,"",CHOOSE(#REF!,1,2,3,4,5))) ->  | Y56: 6 | Z56: Anneaux | AA56: =LARGE(Y50:Y59,1)+LARGE(Y50:Y59,2)+LARGE(Y50:Y59,3)+LARGE(Y50:Y59,4)+LARGE(Y50:Y59,5)+LARGE(Y50:Y59,6) -> 44.9
D57: 3 | E57: 7.85 | F57: 3 | G57: 10.85 | H57: 3 | I57: 8.7 | J57: 3 | K57: 11.7 | L57: 2 | M57: 9.2 | N57: 2 | O57: 11.2 | P57: 2 | Q57: 8.75 | R57: 2 | S57: 10.75 | T57: 2.6 | U57: =IF(OR(T57<7,NOT(ISNUMBER(#REF!))),"",IF(#REF!=0,"",CHOOSE(#REF!,1,2,3,4,5))) ->  | V57: 2.6 | W57: 4.9 | X57: =IF(OR(W57<7,NOT(ISNUMBER(#REF!))),"",IF(#REF!=0,"",CHOOSE(#REF!,1,2,3,4,5))) ->  | Y57: 4.9
D58: 1 | E58: 8.2 | F58: 1 | G58: 9.2 | H58: 2 | I58: 7.7 | J58: 2 | K58: 9.7 | L58: 2 | M58: 9.4 | N58: 2 | O58: 11.4 | P58: 2 | Q58: 8.8 | R58: 2 | S58: 10.8 | T58: 4.35 | U58: =IF(OR(T58<7,NOT(ISNUMBER(#REF!))),"",IF(#REF!=0,"",CHOOSE(#REF!,1,2,3,4,5))) ->  | V58: 4.35 | X58: =IF(OR(W58<7,NOT(ISNUMBER(#REF!))),"",IF(#REF!=0,"",CHOOSE(#REF!,1,2,3,4,5))) ->  | Y58: 0
F59: =IF(OR(E59<7,NOT(ISNUMBER(D59))),"",IF(D59=0,"",CHOOSE(D59,1,2,3,4,5))) -> 
C60: Total | G60: =SUM(G50:G59) -> 86.05 | K60: =SUM(K50:K59) -> 98.5 | O60: =SUM(O50:O59) -> 102.55 | S60: =SUM(S50:S59) -> 99.75 | V60: =SUM(V50:V59) -> 41.75 | Y60: =SUM(Y50:Y59) -> 55.7 | Z60: Total Gal | AA60: =SUM(AA50:AA59) -> 351.05
A63: 5
B65: Nom | C65: Prénom | D65: Degré | E65: Note | G65: Sol | H65: Degré | I65: Note | K65: Saut | L65: Degré | M65: Note | O65: BP | P65: Degré | Q65: Note | S65: BF | T65: Note | V65: Arçons | W65: Note | Y65: AN | Z65: Total; des 6 Meilleurs notes
F66: =IF(OR(E66<7,NOT(ISNUMBER(D66))),"",IF(D66=0,"",CHOOSE(D66,1,2,3,4,5))) ->  | G66: =SUM(E66:F66) -> 0 | J66: =IF(OR(I66<7,NOT(ISNUMBER(H66))),"",IF(H66=0,"",CHOOSE(H66,1,2,3,4,5))) ->  | K66: =SUM(I66:J66) -> 0 | N66: =IF(OR(M66<7,NOT(ISNUMBER(L66))),"",IF(L66=0,"",CHOOSE(L66,1,2,3,4,5))) ->  | O66: =SUM(M66:N66) -> 0 | R66: =IF(OR(Q66<7,NOT(ISNUMBER(P66))),"",IF(P66=0,"",CHOOSE(P66,1,2,3,4,5))) ->  | S66: =SUM(Q66:R66) -> 0 | U66: =IF(OR(T66<7,NOT(ISNUMBER(#REF!))),"",IF(#REF!=0,"",CHOOSE(#REF!,1,2,3,4,5))) ->  | V66: =SUM(T66:U66) -> 0 | X66: =IF(OR(W66<7,NOT(ISNUMBER(#REF!))),"",IF(#REF!=0,"",CHOOSE(#REF!,1,2,3,4,5))) ->  | Y66: =SUM(W66:X66) -> 0
F67: =IF(OR(E67<7,NOT(ISNUMBER(D67))),"",IF(D67=0,"",CHOOSE(D67,1,2,3,4,5))) ->  | G67: =SUM(E67:F67) -> 0 | J67: =IF(OR(I67<7,NOT(ISNUMBER(H67))),"",IF(H67=0,"",CHOOSE(H67,1,2,3,4,5))) ->  | K67: =SUM(I67:J67) -> 0 | N67: =IF(OR(M67<7,NOT(ISNUMBER(L67))),"",IF(L67=0,"",CHOOSE(L67,1,2,3,4,5))) ->  | O67: =SUM(M67:N67) -> 0 | R67: =IF(OR(Q67<7,NOT(ISNUMBER(P67))),"",IF(P67=0,"",CHOOSE(P67,1,2,3,4,5))) ->  | S67: =SUM(Q67:R67) -> 0 | U67: =IF(OR(T67<7,NOT(ISNUMBER(#REF!))),"",IF(#REF!=0,"",CHOOSE(#REF!,1,2,3,4,5))) ->  | V67: =SUM(T67:U67) -> 0 | X67: =IF(OR(W67<7,NOT(ISNUMBER(#REF!))),"",IF(#REF!=0,"",CHOOSE(#REF!,1,2,3,4,5))) ->  | Y67: =SUM(W67:X67) -> 0 | Z67: Sol | AA67: =LARGE(G66:G75,1)+LARGE(G66:G75,2)+LARGE(G66:G75,3)+LARGE(G66:G75,4)+LARGE(G66:G75,5)+LARGE(G66:G75,6) -> 0
F68: =IF(OR(E68<7,NOT(ISNUMBER(D68))),"",IF(D68=0,"",CHOOSE(D68,1,2,3,4,5))) ->  | G68: =SUM(E68:F68) -> 0 | J68: =IF(OR(I68<7,NOT(ISNUMBER(H68))),"",IF(H68=0,"",CHOOSE(H68,1,2,3,4,5))) ->  | K68: =SUM(I68:J68) -> 0 | N68: =IF(OR(M68<7,NOT(ISNUMBER(L68))),"",IF(L68=0,"",CHOOSE(L68,1,2,3,4,5))) ->  | O68: =SUM(M68:N68) -> 0 | R68: =IF(OR(Q68<7,NOT(ISNUMBER(P68))),"",IF(P68=0,"",CHOOSE(P68,1,2,3,4,5))) ->  | S68: =SUM(Q68:R68) -> 0 | U68: =IF(OR(T68<7,NOT(ISNUMBER(#REF!))),"",IF(#REF!=0,"",CHOOSE(#REF!,1,2,3,4,5))) ->  | V68: =SUM(T68:U68) -> 0 | X68: =IF(OR(W68<7,NOT(ISNUMBER(#REF!))),"",IF(#REF!=0,"",CHOOSE(#REF!,1,2,3,4,5))) ->  | Y68: =SUM(W68:X68) -> 0 | Z68: Saut | AA68: =LARGE(K66:K75,1)+LARGE(K66:K75,2)+LARGE(K66:K75,3)+LARGE(K66:K75,4)+LARGE(K66:K75,5)+LARGE(K66:K75,6) -> 0
G69: 0 | K69: 0 | O69: 0 | S69: 0 | U69: =IF(OR(T69<7,NOT(ISNUMBER(#REF!))),"",IF(#REF!=0,"",CHOOSE(#REF!,1,2,3,4,5))) ->  | V69: 0 | X69: =IF(OR(W69<7,NOT(ISNUMBER(#REF!))),"",IF(#REF!=0,"",CHOOSE(#REF!,1,2,3,4,5))) ->  | Y69: 0 | Z69: BP | AA69: =LARGE(O66:O75,1)+LARGE(O66:O75,2)+LARGE(O66:O75,3)+LARGE(O66:O75,4)+LARGE(O66:O75,5)+LARGE(O66:O75,6) -> 0
G70: 0 | K70: 0 | O70: 0 | S70: 0 | U70: =IF(OR(T70<7,NOT(ISNUMBER(#REF!))),"",IF(#REF!=0,"",CHOOSE(#REF!,1,2,3,4,5))) ->  | V70: 0 | X70: =IF(OR(W70<7,NOT(ISNUMBER(#REF!))),"",IF(#REF!=0,"",CHOOSE(#REF!,1,2,3,4,5))) ->  | Y70: 0 | Z70: BF | AA70: =LARGE(S66:S75,1)+LARGE(S66:S75,2)+LARGE(S66:S75,3)+LARGE(S66:S75,4)+LARGE(S66:S75,5)+LARGE(S66:S75,6) -> 0
G71: 0 | K71: 0 | O71: 0 | S71: 0 | U71: =IF(OR(T71<7,NOT(ISNUMBER(#REF!))),"",IF(#REF!=0,"",CHOOSE(#REF!,1,2,3,4,5))) ->  | V71: 0 | X71: =IF(OR(W71<7,NOT(ISNUMBER(#REF!))),"",IF(#REF!=0,"",CHOOSE(#REF!,1,2,3,4,5))) ->  | Y71: 0 | Z71: Arçons | AA71: =LARGE(V66:V75,1)+LARGE(V66:V75,2)+LARGE(V66:V75,3)+LARGE(V66:V75,4)+LARGE(V66:V75,5)+LARGE(V66:V75,6) -> 0
G72: 0 | K72: 0 | O72: 0 | S72: 0 | U72: =IF(OR(T72<7,NOT(ISNUMBER(#REF!))),"",IF(#REF!=0,"",CHOOSE(#REF!,1,2,3,4,5))) ->  | V72: 0 | X72: =IF(OR(W72<7,NOT(ISNUMBER(#REF!))),"",IF(#REF!=0,"",CHOOSE(#REF!,1,2,3,4,5))) ->  | Y72: 0 | Z72: Anneaux | AA72: =LARGE(Y66:Y75,1)+LARGE(Y66:Y75,2)+LARGE(Y66:Y75,3)+LARGE(Y66:Y75,4)+LARGE(Y66:Y75,5)+LARGE(Y66:Y75,6) -> 0
G73: 0 | K73: 0 | O73: 0 | S73: 0 | V73: 0 | X73: =IF(OR(W73<7,NOT(ISNUMBER(#REF!))),"",IF(#REF!=0,"",CHOOSE(#REF!,1,2,3,4,5))) ->  | Y73: 0
G74: 0 | K74: 0 | O74: 0 | S74: 0 | V74: 0 | Y74: 0
C76: Total | G76: =SUM(G66:G75) -> 0 | K76: =SUM(K66:K75) -> 0 | O76: =SUM(O66:O75) -> 0 | S76: =SUM(S66:S75) -> 0 | V76: =SUM(V66:V75) -> 0 | Y76: =SUM(Y66:Y75) -> 0 | Z76: Total Gal | AA76: =SUM(AA66:AA75) -> 0
A78: 6
B80: Nom | C80: Prénom | D80: Degré | E80: Note | G80: Sol | H80: Degré | I80: Note | K80: Saut | L80: Degré | M80: Note | O80: BP | P80: Degré | Q80: Note | S80: BF | T80: Note | V80: Arçons | W80: Note | Y80: AN | Z80: Total; des 6 Meilleurs notes
F81: =IF(OR(E81<7,NOT(ISNUMBER(D81))),"",IF(D81=0,"",CHOOSE(D81,1,2,3,4,5))) ->  | G81: =SUM(E81:F81) -> 0 | J81: =IF(OR(I81<7,NOT(ISNUMBER(H81))),"",IF(H81=0,"",CHOOSE(H81,1,2,3,4,5))) ->  | K81: =SUM(I81:J81) -> 0 | N81: =IF(OR(M81<7,NOT(ISNUMBER(L81))),"",IF(L81=0,"",CHOOSE(L81,1,2,3,4,5))) ->  | O81: =SUM(M81:N81) -> 0 | R81: =IF(OR(Q81<7,NOT(ISNUMBER(P81))),"",IF(P81=0,"",CHOOSE(P81,1,2,3,4,5))) ->  | S81: =SUM(Q81:R81) -> 0 | V81: =SUM(T81:U81) -> 0 | X81: =IF(OR(W81<7,NOT(ISNUMBER(#REF!))),"",IF(#REF!=0,"",CHOOSE(#REF!,1,2,3,4,5))) ->  | Y81: =SUM(W81:X81) -> 0
F82: =IF(OR(E82<7,NOT(ISNUMBER(D82))),"",IF(D82=0,"",CHOOSE(D82,1,2,3,4,5))) ->  | G82: =SUM(E82:F82) -> 0 | J82: =IF(OR(I82<7,NOT(ISNUMBER(H82))),"",IF(H82=0,"",CHOOSE(H82,1,2,3,4,5))) ->  | K82: =SUM(I82:J82) -> 0 | N82: =IF(OR(M82<7,NOT(ISNUMBER(L82))),"",IF(L82=0,"",CHOOSE(L82,1,2,3,4,5))) ->  | O82: =SUM(M82:N82) -> 0 | R82: =IF(OR(Q82<7,NOT(ISNUMBER(P82))),"",IF(P82=0,"",CHOOSE(P82,1,2,3,4,5))) ->  | S82: =SUM(Q82:R82) -> 0 | V82: =SUM(T82:U82) -> 0 | X82: =IF(OR(W82<7,NOT(ISNUMBER(#REF!))),"",IF(#REF!=0,"",CHOOSE(#REF!,1,2,3,4,5))) ->  | Y82: =SUM(W82:X82) -> 0 | Z82: Sol | AA82: =LARGE(G81:G90,1)+LARGE(G81:G90,2)+LARGE(G81:G90,3)+LARGE(G81:G90,4)+LARGE(G81:G90,5)+LARGE(G81:G90,6) -> 0
F83: =IF(OR(E83<7,NOT(ISNUMBER(D83))),"",IF(D83=0,"",CHOOSE(D83,1,2,3,4,5))) ->  | G83: =SUM(E83:F83) -> 0 | J83: =IF(OR(I83<7,NOT(ISNUMBER(H83))),"",IF(H83=0,"",CHOOSE(H83,1,2,3,4,5))) ->  | K83: =SUM(I83:J83) -> 0 | N83: =IF(OR(M83<7,NOT(ISNUMBER(L83))),"",IF(L83=0,"",CHOOSE(L83,1,2,3,4,5))) ->  | O83: =SUM(M83:N83) -> 0 | S83: 0 | V83: 0 | X83: =IF(OR(W83<7,NOT(ISNUMBER(#REF!))),"",IF(#REF!=0,"",CHOOSE(#REF!,1,2,3,4,5))) ->  | Y83: 0 | Z83: Saut | AA83: =LARGE(K81:K90,1)+LARGE(K81:K90,2)+LARGE(K81:K90,3)+LARGE(K81:K90,4)+LARGE(K81:K90,5)+LARGE(K81:K90,6) -> 0
G84: 0 | K84: 0 | O84: 0 | R84: =IF(OR(Q84<7,NOT(ISNUMBER(P84))),"",IF(P84=0,"",CHOOSE(P84,1,2,3,4,5))) ->  | S84: =SUM(Q84:R84) -> 0 | V84: =SUM(T84:U84) -> 0 | X84: =IF(OR(W84<7,NOT(ISNUMBER(#REF!))),"",IF(#REF!=0,"",CHOOSE(#REF!,1,2,3,4,5))) ->  | Y84: =SUM(W84:X84) -> 0 | Z84: BP | AA84: =LARGE(O81:O90,1)+LARGE(O81:O90,2)+LARGE(O81:O90,3)+LARGE(O81:O90,4)+LARGE(O81:O90,5)+LARGE(O81:O90,6) -> 0
G85: 0 | K85: 0 | O85: 0 | S85: 0 | V85: 0 | X85: =IF(OR(W85<7,NOT(ISNUMBER(#REF!))),"",IF(#REF!=0,"",CHOOSE(#REF!,1,2,3,4,5))) ->  | Y85: 0 | Z85: BF | AA85: =LARGE(S81:S90,1)+LARGE(S81:S90,2)+LARGE(S81:S90,3)+LARGE(S81:S90,4)+LARGE(S81:S90,5)+LARGE(S81:S90,6) -> 0
G86: 0 | K86: 0 | O86: 0 | S86: 0 | V86: 0 | X86: =IF(OR(W86<7,NOT(ISNUMBER(#REF!))),"",IF(#REF!=0,"",CHOOSE(#REF!,1,2,3,4,5))) ->  | Y86: 0 | Z86: Arçons | AA86: =LARGE(V81:V90,1)+LARGE(V81:V90,2)+LARGE(V81:V90,3)+LARGE(V81:V90,4)+LARGE(V81:V90,5)+LARGE(V81:V90,6) -> 0
G87: 0 | K87: 0 | O87: 0 | S87: 0 | V87: 0 | X87: =IF(OR(W87<7,NOT(ISNUMBER(#REF!))),"",IF(#REF!=0,"",CHOOSE(#REF!,1,2,3,4,5))) ->  | Y87: 0 | Z87: Anneaux | AA87: =LARGE(Y81:Y90,1)+LARGE(Y81:Y90,2)+LARGE(Y81:Y90,3)+LARGE(Y81:Y90,4)+LARGE(Y81:Y90,5)+LARGE(Y81:Y90,6) -> 0
G88: 0 | K88: 0 | O88: 0 | S88: 0 | V88: 0 | X88: =IF(OR(W88<7,NOT(ISNUMBER(#REF!))),"",IF(#REF!=0,"",CHOOSE(#REF!,1,2,3,4,5))) ->  | Y88: 0
G89: 0 | K89: 0 | O89: 0 | S89: 0 | V89: 0 | X89: =IF(OR(W89<7,NOT(ISNUMBER(#REF!))),"",IF(#REF!=0,"",CHOOSE(#REF!,1,2,3,4,5))) ->  | Y89: 0
C91: Total | G91: =SUM(G81:G90) -> 0 | K91: =SUM(K81:K90) -> 0 | O91: =SUM(O81:O90) -> 0 | S91: =SUM(S81:S90) -> 0 | V91: =SUM(V81:V90) -> 0 | Y91: =SUM(Y81:Y90) -> 0 | Z91: Total Gal | AA91: =SUM(AA81:AA90) -> 0
A99: 7
B101: Nom | C101: Prénom | D101: Degré | E101: Note | G101: Sol | H101: Degré | I101: Note | K101: Saut | L101: Degré | M101: Note | O101: BP | P101: Degré | Q101: Note | S101: BF | T101: Note | V101: Arçons | W101: Note | Y101: AN | Z101: Total; des 6 Meilleurs notes
F102: =IF(OR(E102<7,NOT(ISNUMBER(D102))),"",IF(D102=0,"",CHOOSE(D102,1,2,3,4,5))) ->  | G102: =SUM(E102:F102) -> 0 | J102: =IF(OR(I102<7,NOT(ISNUMBER(H102))),"",IF(H102=0,"",CHOOSE(H102,1,2,3,4,5))) ->  | K102: =SUM(I102:J102) -> 0 | N102: =IF(OR(M102<7,NOT(ISNUMBER(L102))),"",IF(L102=0,"",CHOOSE(L102,1,2,3,4,5))) ->  | O102: =SUM(M102:N102) -> 0 | R102: =IF(OR(Q102<7,NOT(ISNUMBER(P102))),"",IF(P102=0,"",CHOOSE(P102,1,2,3,4,5))) ->  | S102: =SUM(Q102:R102) -> 0 | U102: =IF(OR(T102<7,NOT(ISNUMBER(#REF!))),"",IF(#REF!=0,"",CHOOSE(#REF!,1,2,3,4,5))) ->  | V102: =SUM(T102:U102) -> 0 | X102: =IF(OR(W102<7,NOT(ISNUMBER(#REF!))),"",IF(#REF!=0,"",CHOOSE(#REF!,1,2,3,4,5))) ->  | Y102: =SUM(W102:X102) -> 0
F103: =IF(OR(E103<7,NOT(ISNUMBER(D103))),"",IF(D103=0,"",CHOOSE(D103,1,2,3,4,5))) ->  | G103: 0 | J103: =IF(OR(I103<7,NOT(ISNUMBER(H103))),"",IF(H103=0,"",CHOOSE(H103,1,2,3,4,5))) ->  | K103: =SUM(I103:J103) -> 0 | N103: =IF(OR(M103<7,NOT(ISNUMBER(L103))),"",IF(L103=0,"",CHOOSE(L103,1,2,3,4,5))) ->  | O103: =SUM(M103:N103) -> 0 | R103: =IF(OR(Q103<7,NOT(ISNUMBER(P103))),"",IF(P103=0,"",CHOOSE(P103,1,2,3,4,5))) ->  | S103: =SUM(Q103:R103) -> 0 | U103: =IF(OR(T103<7,NOT(ISNUMBER(#REF!))),"",IF(#REF!=0,"",CHOOSE(#REF!,1,2,3,4,5))) ->  | V103: =SUM(T103:U103) -> 0 | X103: =IF(OR(W103<7,NOT(ISNUMBER(#REF!))),"",IF(#REF!=0,"",CHOOSE(#REF!,1,2,3,4,5))) ->  | Y103: =SUM(W103:X103) -> 0 | Z103: Sol | AA103: =LARGE(G102:G111,1)+LARGE(G102:G111,2)+LARGE(G102:G111,3)+LARGE(G102:G111,4)+LARGE(G102:G111,5)+LARGE(G102:G111,6) -> 0
F104: =IF(OR(E104<7,NOT(ISNUMBER(D104))),"",IF(D104=0,"",CHOOSE(D104,1,2,3,4,5))) ->  | G104: =SUM(E104:F104) -> 0 | J104: =IF(OR(I104<7,NOT(ISNUMBER(H104))),"",IF(H104=0,"",CHOOSE(H104,1,2,3,4,5))) ->  | K104: =SUM(I104:J104) -> 0 | N104: =IF(OR(M104<7,NOT(ISNUMBER(L104))),"",IF(L104=0,"",CHOOSE(L104,1,2,3,4,5))) ->  | O104: =SUM(M104:N104) -> 0 | R104: =IF(OR(Q104<7,NOT(ISNUMBER(P104))),"",IF(P104=0,"",CHOOSE(P104,1,2,3,4,5))) ->  | S104: =SUM(Q104:R104) -> 0 | U104: =IF(OR(T104<7,NOT(ISNUMBER(#REF!))),"",IF(#REF!=0,"",CHOOSE(#REF!,1,2,3,4,5))) ->  | V104: 0 | X104: =IF(OR(W104<7,NOT(ISNUMBER(#REF!))),"",IF(#REF!=0,"",CHOOSE(#REF!,1,2,3,4,5))) ->  | Y104: 0 | Z104: Saut | AA104: =LARGE(K102:K111,1)+LARGE(K102:K111,2)+LARGE(K102:K111,3)+LARGE(K102:K111,4)+LARGE(K102:K111,5)+LARGE(K102:K111,6) -> 0
G105: 0 | K105: 0 | O105: 0 | S105: 0 | U105: =IF(OR(T105<7,NOT(ISNUMBER(#REF!))),"",IF(#REF!=0,"",CHOOSE(#REF!,1,2,3,4,5))) ->  | V105: =SUM(T105:U105) -> 0 | X105: =IF(OR(W105<7,NOT(ISNUMBER(#REF!))),"",IF(#REF!=0,"",CHOOSE(#REF!,1,2,3,4,5))) ->  | Y105: =SUM(W105:X105) -> 0 | Z105: BP | AA105: =LARGE(O102:O111,1)+LARGE(O102:O111,2)+LARGE(O102:O111,3)+LARGE(O102:O111,4)+LARGE(O102:O111,5)+LARGE(O102:O111,6) -> 0
G106: 0 | K106: 0 | O106: 0 | S106: 0 | U106: =IF(OR(T106<7,NOT(ISNUMBER(#REF!))),"",IF(#REF!=0,"",CHOOSE(#REF!,1,2,3,4,5))) ->  | V106: 0 | X106: =IF(OR(W106<7,NOT(ISNUMBER(#REF!))),"",IF(#REF!=0,"",CHOOSE(#REF!,1,2,3,4,5))) ->  | Y106: 0 | Z106: BF | AA106: =LARGE(S102:S111,1)+LARGE(S102:S111,2)+LARGE(S102:S111,3)+LARGE(S102:S111,4)+LARGE(S102:S111,5)+LARGE(S102:S111,6) -> 0
G107: 0 | K107: 0 | O107: 0 | S107: 0 | U107: =IF(OR(T107<7,NOT(ISNUMBER(#REF!))),"",IF(#REF!=0,"",CHOOSE(#REF!,1,2,3,4,5))) ->  | V107: 0 | X107: =IF(OR(W107<7,NOT(ISNUMBER(#REF!))),"",IF(#REF!=0,"",CHOOSE(#REF!,1,2,3,4,5))) ->  | Y107: 0 | Z107: Arçons | AA107: =LARGE(V102:V111,1)+LARGE(V102:V111,2)+LARGE(V102:V111,3)+LARGE(V102:V111,4)+LARGE(V102:V111,5)+LARGE(V102:V111,6) -> 0
G108: 0 | K108: 0 | O108: 0 | S108: 0 | U108: =IF(OR(T108<7,NOT(ISNUMBER(#REF!))),"",IF(#REF!=0,"",CHOOSE(#REF!,1,2,3,4,5))) ->  | V108: 0 | X108: =IF(OR(W108<7,NOT(ISNUMBER(#REF!))),"",IF(#REF!=0,"",CHOOSE(#REF!,1,2,3,4,5))) ->  | Y108: 0 | Z108: Anneaux | AA108: =LARGE(Y102:Y111,1)+LARGE(Y102:Y111,2)+LARGE(Y102:Y111,3)+LARGE(Y102:Y111,4)+LARGE(Y102:Y111,5)+LARGE(Y102:Y111,6) -> 0
G109: 0 | K109: 0 | O109: 0 | S109: 0 | U109: =IF(OR(T109<7,NOT(ISNUMBER(#REF!))),"",IF(#REF!=0,"",CHOOSE(#REF!,1,2,3,4,5))) ->  | V109: 0 | X109: =IF(OR(W109<7,NOT(ISNUMBER(#REF!))),"",IF(#REF!=0,"",CHOOSE(#REF!,1,2,3,4,5))) ->  | Y109: 0
G110: 0 | K110: 0 | O110: 0 | S110: 0 | U110: =IF(OR(T110<7,NOT(ISNUMBER(#REF!))),"",IF(#REF!=0,"",CHOOSE(#REF!,1,2,3,4,5))) ->  | V110: 0 | X110: =IF(OR(W110<7,NOT(ISNUMBER(#REF!))),"",IF(#REF!=0,"",CHOOSE(#REF!,1,2,3,4,5))) ->  | Y110: 0
C112: Total | G112: =SUM(G102:G111) -> 0 | K112: =SUM(K102:K111) -> 0 | O112: =SUM(O102:O111) -> 0 | S112: =SUM(S102:S111) -> 0 | V112: =SUM(V102:V111) -> 0 | Y112: =SUM(Y102:Y111) -> 0 | Z112: Total Gal | AA112: =SUM(AA102:AA111) -> 0

Sheet Poussins JP R3
A1: 1 | B1: L'USSA | C1: ST ANDRE
B3: Nom | C3: Prénom | D3: Degré | E3: Note | G3: Sol | H3: Degré | I3: Note | K3: Saut | L3: Degré | M3: Note | O3: BP | P3: Degré | Q3: Note | S3: BF | T3: Note | V3: Arçons | W3: Note | Y3: AN | Z3: Total; des 3 Meilleurs notes
D4: 4 | E4: 8.1 | F4: =IF(OR(E4<7,NOT(ISNUMBER(D4))),"",IF(D4=0,"",CHOOSE(D4,1,2,3,4,5))) -> 4 | G4: =SUM(E4:F4) -> 12.1 | H4: 3 | I4: 9 | J4: =IF(OR(I4<7,NOT(ISNUMBER(H4))),"",IF(H4=0,"",CHOOSE(H4,1,2,3,4,5))) -> 3 | K4: =SUM(I4:J4) -> 12 | L4: 3 | M4: 9.15 | N4: =IF(OR(M4<7,NOT(ISNUMBER(L4))),"",IF(L4=0,"",CHOOSE(L4,1,2,3,4,5))) -> 3 | O4: =SUM(M4:N4) -> 12.15 | P4: 3 | Q4: 8.65 | R4: =IF(OR(Q4<7,NOT(ISNUMBER(P4))),"",IF(P4=0,"",CHOOSE(P4,1,2,3,4,5))) -> 3 | S4: =SUM(Q4:R4) -> 11.65 | T4: 5.25 | U4: =IF(OR(T4<7,NOT(ISNUMBER(#REF!))),"",IF(#REF!=0,"",CHOOSE(#REF!,1,2,3,4,5))) ->  | V4: =SUM(T4:U4) -> 5.25 | W4: 8.4 | X4: =IF(OR(W4<7,NOT(ISNUMBER(#REF!))),"",IF(#REF!=0,"",CHOOSE(#REF!,1,2,3,4,5))) ->  | Y4: =SUM(W4:X4) -> 8.4
D5: 2 | E5: 8.15 | F5: =IF(OR(E5<7,NOT(ISNUMBER(D5))),"",IF(D5=0,"",CHOOSE(D5,1,2,3,4,5))) -> 2 | G5: =SUM(E5:F5) -> 10.15 | H5: 3 | I5: 8.45 | J5: 3 | K5: 11.45 | L5: 3 | M5: 8 | N5: =IF(OR(M5<7,NOT(ISNUMBER(L5))),"",IF(L5=0,"",CHOOSE(L5,1,2,3,4,5))) -> 3 | O5: =SUM(M5:N5) -> 11 | P5: 2 | Q5: 8.8 | R5: =IF(OR(Q5<7,NOT(ISNUMBER(P5))),"",IF(P5=0,"",CHOOSE(P5,1,2,3,4,5))) -> 2 | S5: =SUM(Q5:R5) -> 10.8 | T5: 3 | U5: =IF(OR(T5<7,NOT(ISNUMBER(#REF!))),"",IF(#REF!=0,"",CHOOSE(#REF!,1,2,3,4,5))) ->  | V5: =SUM(T5:U5) -> 3 | W5: 7.7 | X5: =IF(OR(W5<7,NOT(ISNUMBER(#REF!))),"",IF(#REF!=0,"",CHOOSE(#REF!,1,2,3,4,5))) ->  | Y5: =SUM(W5:X5) -> 7.7 | Z5: Sol | AA5: =LARGE(G4:G10,1)+LARGE(G4:G10,2)+LARGE(G4:G10,3) -> 32.45
D6: 2 | E6: 7.65 | F6: 2 | G6: 9.65 | H6: 2 | I6: 8.5 | J6: 2 | K6: 10.5 | L6: 2 | M6: 7.9 | N6: 2 | O6: 9.9 | P6: 2 | Q6: 6.25 | S6: 6.25 | T6: 3.3 | U6: =IF(OR(T6<7,NOT(ISNUMBER(#REF!))),"",IF(#REF!=0,"",CHOOSE(#REF!,1,2,3,4,5))) ->  | V6: 3.3 | W6: 1 | X6: =IF(OR(W6<7,NOT(ISNUMBER(#REF!))),"",IF(#REF!=0,"",CHOOSE(#REF!,1,2,3,4,5))) ->  | Y6: 1 | Z6: Saut | AA6: =LARGE(K4:K10,1)+LARGE(K4:K10,2)+LARGE(K4:K10,3) -> 34.65
D7: 2 | E7: 7.8 | F7: 2 | G7: 9.8 | H7: 2 | I7: 8.55 | J7: 2 | K7: 10.55 | L7: 2 | M7: 8.85 | N7: 2 | O7: 10.85 | P7: 2 | Q7: 7.55 | R7: 2 | S7: 9.55 | T7: 3.7 | U7: =IF(OR(T7<7,NOT(ISNUMBER(#REF!))),"",IF(#REF!=0,"",CHOOSE(#REF!,1,2,3,4,5))) ->  | V7: 3.7 | W7: 7.5 | X7: =IF(OR(W7<7,NOT(ISNUMBER(#REF!))),"",IF(#REF!=0,"",CHOOSE(#REF!,1,2,3,4,5))) ->  | Y7: 7.5 | Z7: BP | AA7: =LARGE(O4:O10,1)+LARGE(O4:O10,2)+LARGE(O4:O10,3) -> 34
D8: 3 | E8: 7.2 | F8: 3 | G8: 10.2 | H8: 3 | I8: 8.2 | J8: 3 | K8: 11.2 | L8: 3 | M8: 6.55 | O8: 6.55 | P8: 2 | Q8: 8 | R8: 2 | S8: 10 | T8: 3 | U8: =IF(OR(T8<7,NOT(ISNUMBER(#REF!))),"",IF(#REF!=0,"",CHOOSE(#REF!,1,2,3,4,5))) ->  | V8: 3 | W8: 7.7 | X8: =IF(OR(W8<7,NOT(ISNUMBER(#REF!))),"",IF(#REF!=0,"",CHOOSE(#REF!,1,2,3,4,5))) ->  | Y8: 7.7 | Z8: BF | AA8: =LARGE(S4:S10,1)+LARGE(S4:S10,2)+LARGE(S4:S10,3) -> 32.45
G9: 0 | K9: 0 | O9: 0 | S9: 0 | U9: =IF(OR(T9<7,NOT(ISNUMBER(#REF!))),"",IF(#REF!=0,"",CHOOSE(#REF!,1,2,3,4,5))) ->  | V9: 0 | X9: =IF(OR(W9<7,NOT(ISNUMBER(#REF!))),"",IF(#REF!=0,"",CHOOSE(#REF!,1,2,3,4,5))) ->  | Y9: 0 | Z9: Arçons | AA9: =LARGE(V4:V10,1)+LARGE(V4:V10,2)+LARGE(V4:V10,3) -> 12.25
U10: =IF(OR(T10<7,NOT(ISNUMBER(#REF!))),"",IF(#REF!=0,"",CHOOSE(#REF!,1,2,3,4,5))) ->  | X10: =IF(OR(W10<7,NOT(ISNUMBER(#REF!))),"",IF(#REF!=0,"",CHOOSE(#REF!,1,2,3,4,5))) ->  | Z10: Anneaux | AA10: =LARGE(Y4:Y10,1)+LARGE(Y4:Y10,2)+LARGE(Y4:Y10,3) -> 23.8
C11: Total | G11: =SUM(G4:G10) -> 51.9 | K11: =SUM(K4:K10) -> 55.7 | O11: =SUM(O4:O10) -> 50.45 | S11: =SUM(S4:S10) -> 48.25 | V11: =SUM(V4:V10) -> 18.25 | Y11: =SUM(Y4:Y10) -> 32.3 | Z11: Total Gal | AA11: =SUM(AA4:AA10) -> 169.6
A13: 2 | B13: LA JEANNE ARC | C13: ESTAIRES
B15: Nom | C15: Prénom | D15: Degré | E15: Note | G15: Sol | H15: Degré | I15: Note | K15: Saut | L15: Degré | M15: Note | O15: BP | P15: Degré | Q15: Note | S15: BF | T15: Note | V15: Arçons | W15: Note | Y15: AN | Z15: Total; des 3 Meilleurs notes
D16: 2 | E16: 7.6 | F16: =IF(OR(E16<7,NOT(ISNUMBER(D16))),"",IF(D16=0,"",CHOOSE(D16,1,2,3,4,5))) -> 2 | G16: =SUM(E16:F16) -> 9.6 | H16: 2 | I16: 8.5 | J16: =IF(OR(I16<7,NOT(ISNUMBER(H16))),"",IF(H16=0,"",CHOOSE(H16,1,2,3,4,5))) -> 2 | K16: =SUM(I16:J16) -> 10.5 | L16: 2 | M16: 6.55 | N16: =IF(OR(M16<7,NOT(ISNUMBER(L16))),"",IF(L16=0,"",CHOOSE(L16,1,2,3,4,5))) ->  | O16: =SUM(M16:N16) -> 6.55 | P16: 2 | Q16: 8.15 | R16: =IF(OR(Q16<7,NOT(ISNUMBER(P16))),"",IF(P16=0,"",CHOOSE(P16,1,2,3,4,5))) -> 2 | S16: =SUM(Q16:R16) -> 10.15 | T16: 3.25 | U16: =IF(OR(T16<7,NOT(ISNUMBER(#REF!))),"",IF(#REF!=0,"",CHOOSE(#REF!,1,2,3,4,5))) ->  | V16: =SUM(T16:U16) -> 3.25 | W16: 8.2 | X16: =IF(OR(W16<7,NOT(ISNUMBER(#REF!))),"",IF(#REF!=0,"",CHOOSE(#REF!,1,2,3,4,5))) ->  | Y16: =SUM(W16:X16) -> 8.2
D17: 4 | E17: 8.15 | F17: =IF(OR(E17<7,NOT(ISNUMBER(D17))),"",IF(D17=0,"",CHOOSE(D17,1,2,3,4,5))) -> 4 | G17: =SUM(E17:F17) -> 12.15 | H17: 3 | I17: 8.9 | J17: =IF(OR(I17<7,NOT(ISNUMBER(H17))),"",IF(H17=0,"",CHOOSE(H17,1,2,3,4,5))) -> 3 | K17: =SUM(I17:J17) -> 11.9 | L17: 3 | M17: 9 | N17: =IF(OR(M17<7,NOT(ISNUMBER(L17))),"",IF(L17=0,"",CHOOSE(L17,1,2,3,4,5))) -> 3 | O17: =SUM(M17:N17) -> 12 | P17: 2 | Q17: 8.9 | R17: =IF(OR(Q17<7,NOT(ISNUMBER(P17))),"",IF(P17=0,"",CHOOSE(P17,1,2,3,4,5))) -> 2 | S17: =SUM(Q17:R17) -> 10.9 | T17: 6.35 | U17: =IF(OR(T17<7,NOT(ISNUMBER(#REF!))),"",IF(#REF!=0,"",CHOOSE(#REF!,1,2,3,4,5))) ->  | V17: =SUM(T17:U17) -> 6.35 | W17: 5.8 | X17: =IF(OR(W17<7,NOT(ISNUMBER(#REF!))),"",IF(#REF!=0,"",CHOOSE(#REF!,1,2,3,4,5))) ->  | Y17: =SUM(W17:X17) -> 5.8 | Z17: Sol | AA17: =LARGE(G16:G22,1)+LARGE(G16:G22,2)+LARGE(G16:G22,3) -> 35.8
D18: 2 | E18: 8.65 | F18: 2 | G18: 10.65 | H18: 3 | I18: 9.2 | J18: 3 | K18: 12.2 | L18: 3 | M18: 8.55 | N18: 3 | O18: 11.55 | P18: 2 | Q18: 8.9 | R18: 2 | S18: 10.9 | T18: 2.95 | U18: =IF(OR(T18<7,NOT(ISNUMBER(#REF!))),"",IF(#REF!=0,"",CHOOSE(#REF!,1,2,3,4,5))) ->  | V18: 2.95 | W18: 8 | X18: =IF(OR(W18<7,NOT(ISNUMBER(#REF!))),"",IF(#REF!=0,"",CHOOSE(#REF!,1,2,3,4,5))) ->  | Y18: 8 | Z18: Saut | AA18: =LARGE(K16:K22,1)+LARGE(K16:K22,2)+LARGE(K16:K22,3) -> 36.25
D19: 4 | E19: 7.55 | F19: 4 | G19: 11.55 | H19: 3 | I19: 9 | J19: 3 | K19: 12 | L19: 3 | M19: 9.05 | N19: 3 | O19: 12.05 | P19: 3 | Q19: 9.1 | R19: 3 | S19: 12.1 | T19: 5.9 | U19: =IF(OR(T19<7,NOT(ISNUMBER(#REF!))),"",IF(#REF!=0,"",CHOOSE(#REF!,1,2,3,4,5))) ->  | V19: 5.9 | W19: 8.3 | X19: =IF(OR(W19<7,NOT(ISNUMBER(#REF!))),"",IF(#REF!=0,"",CHOOSE(#REF!,1,2,3,4,5))) ->  | Y19: 8.3 | Z19: BP | AA19: =LARGE(O16:O22,1)+LARGE(O16:O22,2)+LARGE(O16:O22,3) -> 36.55
D20: 4 | E20: 8.1 | F20: 4 | G20: 12.1 | H20: 3 | I20: 9.05 | J20: 3 | K20: 12.05 | L20: 3 | M20: 9.5 | N20: 3 | O20: 12.5 | P20: 2 | Q20: 9.15 | R20: 2 | S20: 11.15 | T20: 4.85 | V20: 4.85 | W20: 8.6 | Y20: 8.6 | Z20: BF | AA20: =LARGE(S16:S22,1)+LARGE(S16:S22,2)+LARGE(S16:S22,3) -> 34.15
G21: 0 | K21: 0 | O21: 0 | S21: 0 | V21: 0 | Y21: 0 | Z21: Arçons | AA21: =LARGE(V16:V22,1)+LARGE(V16:V22,2)+LARGE(V16:V22,3) -> 17.1
Z22: Anneaux | AA22: =LARGE(Y16:Y22,1)+LARGE(Y16:Y22,2)+LARGE(Y16:Y22,3) -> 25.1
C23: Total | G23: =SUM(G16:G22) -> 56.05 | K23: =SUM(K16:K22) -> 58.65 | O23: =SUM(O16:O22) -> 54.65 | S23: =SUM(S16:S22) -> 55.2 | V23: =SUM(V16:V22) -> 23.3 | Y23: =SUM(Y16:Y22) -> 38.9 | Z23: Total Gal | AA23: =SUM(AA16:AA22) -> 184.95
A25: 3
B27: Nom | C27: Prénom | D27: Degré | E27: Note | G27: Sol | H27: Degré | I27: Note | K27: Saut | L27: Degré | M27: Note | O27: BP | P27: Degré | Q27: Note | S27: BF | T27: Note | V27: Arçons | W27: Note | Y27: AN | Z27: Total; des 3 Meilleurs notes
F28: =IF(OR(E28<7,NOT(ISNUMBER(D28))),"",IF(D28=0,"",CHOOSE(D28,1,2,3,4,5))) ->  | G28: =SUM(E28:F28) -> 0 | J28: =IF(OR(I28<7,NOT(ISNUMBER(H28))),"",IF(H28=0,"",CHOOSE(H28,1,2,3,4,5))) ->  | K28: =SUM(I28:J28) -> 0 | N28: =IF(OR(M28<7,NOT(ISNUMBER(L28))),"",IF(L28=0,"",CHOOSE(L28,1,2,3,4,5))) ->  | O28: =SUM(M28:N28) -> 0 | R28: =IF(OR(Q28<7,NOT(ISNUMBER(P28))),"",IF(P28=0,"",CHOOSE(P28,1,2,3,4,5))) ->  | S28: =SUM(Q28:R28) -> 0 | U28: =IF(OR(T28<7,NOT(ISNUMBER(#REF!))),"",IF(#REF!=0,"",CHOOSE(#REF!,1,2,3,4,5))) ->  | V28: =SUM(T28:U28) -> 0 | X28: =IF(OR(W28<7,NOT(ISNUMBER(#REF!))),"",IF(#REF!=0,"",CHOOSE(#REF!,1,2,3,4,5))) ->  | Y28: =SUM(W28:X28) -> 0
F29: =IF(OR(E29<7,NOT(ISNUMBER(D29))),"",IF(D29=0,"",CHOOSE(D29,1,2,3,4,5))) ->  | G29: =SUM(E29:F29) -> 0 | J29: =IF(OR(I29<7,NOT(ISNUMBER(H29))),"",IF(H29=0,"",CHOOSE(H29,1,2,3,4,5))) ->  | K29: =SUM(I29:J29) -> 0 | N29: =IF(OR(M29<7,NOT(ISNUMBER(L29))),"",IF(L29=0,"",CHOOSE(L29,1,2,3,4,5))) ->  | O29: =SUM(M29:N29) -> 0 | R29: =IF(OR(Q29<7,NOT(ISNUMBER(P29))),"",IF(P29=0,"",CHOOSE(P29,1,2,3,4,5))) ->  | S29: =SUM(Q29:R29) -> 0 | U29: =IF(OR(T29<7,NOT(ISNUMBER(#REF!))),"",IF(#REF!=0,"",CHOOSE(#REF!,1,2,3,4,5))) ->  | V29: =SUM(T29:U29) -> 0 | X29: =IF(OR(W29<7,NOT(ISNUMBER(#REF!))),"",IF(#REF!=0,"",CHOOSE(#REF!,1,2,3,4,5))) ->  | Y29: =SUM(W29:X29) -> 0 | Z29: Sol | AA29: =LARGE(G28:G34,1)+LARGE(G28:G34,2)+LARGE(G28:G34,3) -> 0
G30: 0 | K30: 0 | O30: 0 | S30: 0 | U30: =IF(OR(T30<7,NOT(ISNUMBER(#REF!))),"",IF(#REF!=0,"",CHOOSE(#REF!,1,2,3,4,5))) ->  | V30: 0 | X30: =IF(OR(W30<7,NOT(ISNUMBER(#REF!))),"",IF(#REF!=0,"",CHOOSE(#REF!,1,2,3,4,5))) ->  | Y30: 0 | Z30: Saut | AA30: =LARGE(K28:K34,1)+LARGE(K28:K34,2)+LARGE(K28:K34,3) -> 0
G31: 0 | K31: 0 | O31: 0 | S31: 0 | U31: =IF(OR(T31<7,NOT(ISNUMBER(#REF!))),"",IF(#REF!=0,"",CHOOSE(#REF!,1,2,3,4,5))) ->  | V31: 0 | X31: =IF(OR(W31<7,NOT(ISNUMBER(#REF!))),"",IF(#REF!=0,"",CHOOSE(#REF!,1,2,3,4,5))) ->  | Y31: 0 | Z31: BP | AA31: =LARGE(O28:O34,1)+LARGE(O28:O34,2)+LARGE(O28:O34,3) -> 0
G32: 0 | K32: 0 | O32: 0 | S32: 0 | V32: 0 | Y32: 0 | Z32: BF | AA32: =LARGE(S28:S34,1)+LARGE(S28:S34,2)+LARGE(S28:S34,3) -> 0
G33: 0 | K33: 0 | O33: 0 | S33: 0 | V33: 0 | Y33: 0 | Z33: Arçons | AA33: =LARGE(V28:V34,1)+LARGE(V28:V34,2)+LARGE(V28:V34,3) -> 0
Z34: Anneaux | AA34: =LARGE(Y28:Y34,1)+LARGE(Y28:Y34,2)+LARGE(Y28:Y34,3) -> 0
C35: Total | G35: =SUM(G28:G34) -> 0 | K35: =SUM(K28:K34) -> 0 | O35: =SUM(O28:O34) -> 0 | S35: =SUM(S28:S34) -> 0 | V35: =SUM(V28:V34) -> 0 | Y35: =SUM(Y28:Y34) -> 0 | Z35: Total Gal | AA35: =SUM(AA28:AA34) -> 0
A39: 4
B41: Nom | C41: Prénom | D41: Degré | E41: Note | G41: Sol | H41: Degré | I41: Note | K41: Saut | L41: Degré | M41: Note | O41: BP | P41: Degré | Q41: Note | S41: BF | T41: Note | V41: Arçons | W41: Note | Y41: AN | Z41: Total; des 3 Meilleurs notes
F42: =IF(OR(E42<7,NOT(ISNUMBER(D42))),"",IF(D42=0,"",CHOOSE(D42,1,2,3,4,5))) ->  | G42: =SUM(E42:F42) -> 0 | J42: =IF(OR(I42<7,NOT(ISNUMBER(H42))),"",IF(H42=0,"",CHOOSE(H42,1,2,3,4,5))) ->  | K42: =SUM(I42:J42) -> 0 | N42: =IF(OR(M42<7,NOT(ISNUMBER(L42))),"",IF(L42=0,"",CHOOSE(L42,1,2,3,4,5))) ->  | O42: =SUM(M42:N42) -> 0 | R42: =IF(OR(Q42<7,NOT(ISNUMBER(P42))),"",IF(P42=0,"",CHOOSE(P42,1,2,3,4,5))) ->  | S42: =SUM(Q42:R42) -> 0 | U42: =IF(OR(T42<7,NOT(ISNUMBER(#REF!))),"",IF(#REF!=0,"",CHOOSE(#REF!,1,2,3,4,5))) ->  | V42: =SUM(T42:U42) -> 0 | X42: =IF(OR(W42<7,NOT(ISNUMBER(#REF!))),"",IF(#REF!=0,"",CHOOSE(#REF!,1,2,3,4,5))) ->  | Y42: =SUM(W42:X42) -> 0
F43: =IF(OR(E43<7,NOT(ISNUMBER(D43))),"",IF(D43=0,"",CHOOSE(D43,1,2,3,4,5))) ->  | G43: =SUM(E43:F43) -> 0 | J43: =IF(OR(I43<7,NOT(ISNUMBER(H43))),"",IF(H43=0,"",CHOOSE(H43,1,2,3,4,5))) ->  | K43: =SUM(I43:J43) -> 0 | N43: =IF(OR(M43<7,NOT(ISNUMBER(L43))),"",IF(L43=0,"",CHOOSE(L43,1,2,3,4,5))) ->  | O43: =SUM(M43:N43) -> 0 | R43: =IF(OR(Q43<7,NOT(ISNUMBER(P43))),"",IF(P43=0,"",CHOOSE(P43,1,2,3,4,5))) ->  | S43: =SUM(Q43:R43) -> 0 | U43: =IF(OR(T43<7,NOT(ISNUMBER(#REF!))),"",IF(#REF!=0,"",CHOOSE(#REF!,1,2,3,4,5))) ->  | V43: =SUM(T43:U43) -> 0 | X43: =IF(OR(W43<7,NOT(ISNUMBER(#REF!))),"",IF(#REF!=0,"",CHOOSE(#REF!,1,2,3,4,5))) ->  | Y43: =SUM(W43:X43) -> 0 | Z43: Sol | AA43: =LARGE(G42:G48,1)+LARGE(G42:G48,2)+LARGE(G42:G48,3) -> 0
G44: 0 | K44: 0 | O44: 0 | S44: 0 | U44: =IF(OR(T44<7,NOT(ISNUMBER(#REF!))),"",IF(#REF!=0,"",CHOOSE(#REF!,1,2,3,4,5))) ->  | V44: 0 | X44: =IF(OR(W44<7,NOT(ISNUMBER(#REF!))),"",IF(#REF!=0,"",CHOOSE(#REF!,1,2,3,4,5))) ->  | Y44: 0 | Z44: Saut | AA44: =LARGE(K42:K48,1)+LARGE(K42:K48,2)+LARGE(K42:K48,3) -> 0
G45: 0 | K45: 0 | O45: 0 | S45: 0 | U45: =IF(OR(T45<7,NOT(ISNUMBER(#REF!))),"",IF(#REF!=0,"",CHOOSE(#REF!,1,2,3,4,5))) ->  | V45: 0 | X45: =IF(OR(W45<7,NOT(ISNUMBER(#REF!))),"",IF(#REF!=0,"",CHOOSE(#REF!,1,2,3,4,5))) ->  | Y45: 0 | Z45: BP | AA45: =LARGE(O42:O48,1)+LARGE(O42:O48,2)+LARGE(O42:O48,3) -> 0
G46: 0 | K46: 0 | O46: 0 | S46: 0 | V46: 0 | Y46: 0 | Z46: BF | AA46: =LARGE(S42:S48,1)+LARGE(S42:S48,2)+LARGE(S42:S48,3) -> 0
G47: 0 | K47: 0 | O47: 0 | S47: 0 | V47: 0 | Y47: 0 | Z47: Arçons | AA47: =LARGE(V42:V48,1)+LARGE(V42:V48,2)+LARGE(V42:V48,3) -> 0
Z48: Anneaux | AA48: =LARGE(Y42:Y48,1)+LARGE(Y42:Y48,2)+LARGE(Y42:Y48,3) -> 0
C49: Total | G49: =SUM(G42:G48) -> 0 | K49: =SUM(K42:K48) -> 0 | O49: =SUM(O42:O48) -> 0 | S49: =SUM(S42:S48) -> 0 | V49: =SUM(V42:V48) -> 0 | Y49: =SUM(Y42:Y48) -> 0 | Z49: Total Gal | AA49: =SUM(AA42:AA48) -> 0
A51: 5
B53: Nom | C53: Prénom | D53: Degré | E53: Note | G53: Sol | H53: Degré | I53: Note | K53: Saut | L53: Degré | M53: Note | O53: BP | P53: Degré | Q53: Note | S53: BF | T53: Note | V53: Arçons | W53: Note | Y53: AN | Z53: Total; des 3 Meilleurs notes
F54: =IF(OR(E54<7,NOT(ISNUMBER(D54))),"",IF(D54=0,"",CHOOSE(D54,1,2,3,4,5))) ->  | G54: =SUM(E54:F54) -> 0 | J54: =IF(OR(I54<7,NOT(ISNUMBER(H54))),"",IF(H54=0,"",CHOOSE(H54,1,2,3,4,5))) ->  | K54: =SUM(I54:J54) -> 0 | N54: =IF(OR(M54<7,NOT(ISNUMBER(L54))),"",IF(L54=0,"",CHOOSE(L54,1,2,3,4,5))) ->  | O54: =SUM(M54:N54) -> 0 | R54: =IF(OR(Q54<7,NOT(ISNUMBER(P54))),"",IF(P54=0,"",CHOOSE(P54,1,2,3,4,5))) ->  | S54: =SUM(Q54:R54) -> 0 | U54: =IF(OR(T54<7,NOT(ISNUMBER(#REF!))),"",IF(#REF!=0,"",CHOOSE(#REF!,1,2,3,4,5))) ->  | V54: =SUM(T54:U54) -> 0 | X54: =IF(OR(W54<7,NOT(ISNUMBER(#REF!))),"",IF(#REF!=0,"",CHOOSE(#REF!,1,2,3,4,5))) ->  | Y54: =SUM(W54:X54) -> 0
F55: =IF(OR(E55<7,NOT(ISNUMBER(D55))),"",IF(D55=0,"",CHOOSE(D55,1,2,3,4,5))) ->  | G55: =SUM(E55:F55) -> 0 | J55: =IF(OR(I55<7,NOT(ISNUMBER(H55))),"",IF(H55=0,"",CHOOSE(H55,1,2,3,4,5))) ->  | K55: =SUM(I55:J55) -> 0 | N55: =IF(OR(M55<7,NOT(ISNUMBER(L55))),"",IF(L55=0,"",CHOOSE(L55,1,2,3,4,5))) ->  | O55: =SUM(M55:N55) -> 0 | R55: =IF(OR(Q55<7,NOT(ISNUMBER(P55))),"",IF(P55=0,"",CHOOSE(P55,1,2,3,4,5))) ->  | S55: =SUM(Q55:R55) -> 0 | U55: =IF(OR(T55<7,NOT(ISNUMBER(#REF!))),"",IF(#REF!=0,"",CHOOSE(#REF!,1,2,3,4,5))) ->  | V55: =SUM(T55:U55) -> 0 | X55: =IF(OR(W55<7,NOT(ISNUMBER(#REF!))),"",IF(#REF!=0,"",CHOOSE(#REF!,1,2,3,4,5))) ->  | Y55: =SUM(W55:X55) -> 0 | Z55: Sol | AA55: =LARGE(G54:G60,1)+LARGE(G54:G60,2)+LARGE(G54:G60,3) -> 0
G56: 0 | K56: 0 | O56: 0 | S56: 0 | U56: =IF(OR(T56<7,NOT(ISNUMBER(#REF!))),"",IF(#REF!=0,"",CHOOSE(#REF!,1,2,3,4,5))) ->  | V56: 0 | X56: =IF(OR(W56<7,NOT(ISNUMBER(#REF!))),"",IF(#REF!=0,"",CHOOSE(#REF!,1,2,3,4,5))) ->  | Y56: 0 | Z56: Saut | AA56: =LARGE(K54:K60,1)+LARGE(K54:K60,2)+LARGE(K54:K60,3) -> 0
G57: 0 | K57: 0 | O57: 0 | S57: 0 | U57: =IF(OR(T57<7,NOT(ISNUMBER(#REF!))),"",IF(#REF!=0,"",CHOOSE(#REF!,1,2,3,4,5))) ->  | V57: 0 | X57: =IF(OR(W57<7,NOT(ISNUMBER(#REF!))),"",IF(#REF!=0,"",CHOOSE(#REF!,1,2,3,4,5))) ->  | Y57: 0 | Z57: BP | AA57: =LARGE(O54:O60,1)+LARGE(O54:O60,2)+LARGE(O54:O60,3) -> 0
G58: 0 | K58: 0 | O58: 0 | S58: 0 | V58: 0 | Y58: 0 | Z58: BF | AA58: =LARGE(S54:S60,1)+LARGE(S54:S60,2)+LARGE(S54:S60,3) -> 0
G59: 0 | K59: 0 | O59: 0 | S59: 0 | V59: 0 | Y59: 0 | Z59: Arçons | AA59: =LARGE(V54:V60,1)+LARGE(V54:V60,2)+LARGE(V54:V60,3) -> 0
Z60: Anneaux | AA60: =LARGE(Y54:Y60,1)+LARGE(Y54:Y60,2)+LARGE(Y54:Y60,3) -> 0
C61: Total | G61: =SUM(G54:G60) -> 0 | K61: =SUM(K54:K60) -> 0 | O61: =SUM(O54:O60) -> 0 | S61: =SUM(S54:S60) -> 0 | V61: =SUM(V54:V60) -> 0 | Y61: =SUM(Y54:Y60) -> 0 | Z61: Total Gal | AA61: =SUM(AA54:AA60) -> 0
A63: 6
B65: Nom | C65: Prénom | D65: Degré | E65: Note | G65: Sol | H65: Degré | I65: Note | K65: Saut | L65: Degré | M65: Note | O65: BP | P65: Degré | Q65: Note | S65: BF | T65: Note | V65: Arçons | W65: Note | Y65: AN | Z65: Total; des 3 Meilleurs notes
F66: =IF(OR(E66<7,NOT(ISNUMBER(D66))),"",IF(D66=0,"",CHOOSE(D66,1,2,3,4,5))) ->  | G66: =SUM(E66:F66) -> 0 | J66: =IF(OR(I66<7,NOT(ISNUMBER(H66))),"",IF(H66=0,"",CHOOSE(H66,1,2,3,4,5))) ->  | K66: =SUM(I66:J66) -> 0 | N66: =IF(OR(M66<7,NOT(ISNUMBER(L66))),"",IF(L66=0,"",CHOOSE(L66,1,2,3,4,5))) ->  | O66: =SUM(M66:N66) -> 0 | R66: =IF(OR(Q66<7,NOT(ISNUMBER(P66))),"",IF(P66=0,"",CHOOSE(P66,1,2,3,4,5))) ->  | S66: =SUM(Q66:R66) -> 0 | V66: =SUM(T66:U66) -> 0 | X66: =IF(OR(W66<7,NOT(ISNUMBER(#REF!))),"",IF(#REF!=0,"",CHOOSE(#REF!,1,2,3,4,5))) ->  | Y66: =SUM(W66:X66) -> 0
F67: =IF(OR(E67<7,NOT(ISNUMBER(D67))),"",IF(D67=0,"",CHOOSE(D67,1,2,3,4,5))) ->  | G67: =SUM(E67:F67) -> 0 | J67: =IF(OR(I67<7,NOT(ISNUMBER(H67))),"",IF(H67=0,"",CHOOSE(H67,1,2,3,4,5))) ->  | K67: =SUM(I67:J67) -> 0 | N67: =IF(OR(M67<7,NOT(ISNUMBER(L67))),"",IF(L67=0,"",CHOOSE(L67,1,2,3,4,5))) ->  | O67: =SUM(M67:N67) -> 0 | R67: =IF(OR(Q67<7,NOT(ISNUMBER(P67))),"",IF(P67=0,"",CHOOSE(P67,1,2,3,4,5))) ->  | S67: =SUM(Q67:R67) -> 0 | V67: =SUM(T67:U67) -> 0 | X67: =IF(OR(W67<7,NOT(ISNUMBER(#REF!))),"",IF(#REF!=0,"",CHOOSE(#REF!,1,2,3,4,5))) ->  | Y67: =SUM(W67:X67) -> 0 | Z67: Sol | AA67: =LARGE(G66:G72,1)+LARGE(G66:G72,2)+LARGE(G66:G72,3) -> 0
G68: 0 | K68: 0 | O68: 0 | S68: 0 | V68: 0 | X68: =IF(OR(W68<7,NOT(ISNUMBER(#REF!))),"",IF(#REF!=0,"",CHOOSE(#REF!,1,2,3,4,5))) ->  | Y68: 0 | Z68: Saut | AA68: =LARGE(K66:K72,1)+LARGE(K66:K72,2)+LARGE(K66:K72,3) -> 0
G69: 0 | K69: 0 | O69: 0 | S69: 0 | V69: 0 | X69: =IF(OR(W69<7,NOT(ISNUMBER(#REF!))),"",IF(#REF!=0,"",CHOOSE(#REF!,1,2,3,4,5))) ->  | Y69: 0 | Z69: BP | AA69: =LARGE(O66:O72,1)+LARGE(O66:O72,2)+LARGE(O66:O72,3) -> 0
F70: =IF(OR(E70<7,NOT(ISNUMBER(D70))),"",IF(D70=0,"",CHOOSE(D70,1,2,3,4,5))) ->  | G70: =SUM(E70:F70) -> 0 | J70: =IF(OR(I70<7,NOT(ISNUMBER(H70))),"",IF(H70=0,"",CHOOSE(H70,1,2,3,4,5))) ->  | K70: =SUM(I70:J70) -> 0 | N70: =IF(OR(M70<7,NOT(ISNUMBER(L70))),"",IF(L70=0,"",CHOOSE(L70,1,2,3,4,5))) ->  | O70: =SUM(M70:N70) -> 0 | R70: =IF(OR(Q70<7,NOT(ISNUMBER(P70))),"",IF(P70=0,"",CHOOSE(P70,1,2,3,4,5))) ->  | S70: =SUM(Q70:R70) -> 0 | V70: =SUM(T70:U70) -> 0 | X70: =IF(OR(W70<7,NOT(ISNUMBER(#REF!))),"",IF(#REF!=0,"",CHOOSE(#REF!,1,2,3,4,5))) ->  | Y70: =SUM(W70:X70) -> 0 | Z70: BF | AA70: =LARGE(S66:S72,1)+LARGE(S66:S72,2)+LARGE(S66:S72,3) -> 0
G71: 0 | K71: 0 | O71: 0 | S71: 0 | V71: 0 | X71: =IF(OR(W71<7,NOT(ISNUMBER(#REF!))),"",IF(#REF!=0,"",CHOOSE(#REF!,1,2,3,4,5))) ->  | Y71: 0 | Z71: Arçons | AA71: =LARGE(V66:V72,1)+LARGE(V66:V72,2)+LARGE(V66:V72,3) -> 0
Z72: Anneaux | AA72: =LARGE(Y66:Y72,1)+LARGE(Y66:Y72,2)+LARGE(Y66:Y72,3) -> 0
C73: Total | G73: =SUM(G66:G72) -> 0 | K73: =SUM(K66:K72) -> 0 | O73: =SUM(O66:O72) -> 0 | S73: =SUM(S66:S72) -> 0 | V73: =SUM(V66:V72) -> 0 | Y73: =SUM(Y66:Y72) -> 0 | Z73: Total Gal | AA73: =SUM(AA66:AA72) -> 0
A75: 7
B77: Nom | C77: Prénom | D77: Degré | E77: Note | G77: Sol | H77: Degré | I77: Note | K77: Saut | L77: Degré | M77: Note | O77: BP | P77: Degré | Q77: Note | S77: BF | T77: Note | V77: Arçons | W77: Note | Y77: AN | Z77: Total; des 3 Meilleurs notes
F78: =IF(OR(E78<7,NOT(ISNUMBER(D78))),"",IF(D78=0,"",CHOOSE(D78,1,2,3,4,5))) ->  | G78: =SUM(E78:F78) -> 0 | J78: =IF(OR(I78<7,NOT(ISNUMBER(H78))),"",IF(H78=0,"",CHOOSE(H78,1,2,3,4,5))) ->  | K78: =SUM(I78:J78) -> 0 | N78: =IF(OR(M78<7,NOT(ISNUMBER(L78))),"",IF(L78=0,"",CHOOSE(L78,1,2,3,4,5))) ->  | O78: =SUM(M78:N78) -> 0 | R78: =IF(OR(Q78<7,NOT(ISNUMBER(P78))),"",IF(P78=0,"",CHOOSE(P78,1,2,3,4,5))) ->  | S78: =SUM(Q78:R78) -> 0 | U78: =IF(OR(T78<7,NOT(ISNUMBER(#REF!))),"",IF(#REF!=0,"",CHOOSE(#REF!,1,2,3,4,5))) ->  | V78: =SUM(T78:U78) -> 0 | X78: =IF(OR(W78<7,NOT(ISNUMBER(#REF!))),"",IF(#REF!=0,"",CHOOSE(#REF!,1,2,3,4,5))) ->  | Y78: =SUM(W78:X78) -> 0
F79: =IF(OR(E79<7,NOT(ISNUMBER(D79))),"",IF(D79=0,"",CHOOSE(D79,1,2,3,4,5))) ->  | G79: 0 | J79: =IF(OR(I79<7,NOT(ISNUMBER(H79))),"",IF(H79=0,"",CHOOSE(H79,1,2,3,4,5))) ->  | K79: =SUM(I79:J79) -> 0 | N79: =IF(OR(M79<7,NOT(ISNUMBER(L79))),"",IF(L79=0,"",CHOOSE(L79,1,2,3,4,5))) ->  | O79: =SUM(M79:N79) -> 0 | R79: =IF(OR(Q79<7,NOT(ISNUMBER(P79))),"",IF(P79=0,"",CHOOSE(P79,1,2,3,4,5))) ->  | S79: =SUM(Q79:R79) -> 0 | U79: =IF(OR(T79<7,NOT(ISNUMBER(#REF!))),"",IF(#REF!=0,"",CHOOSE(#REF!,1,2,3,4,5))) ->  | V79: =SUM(T79:U79) -> 0 | X79: =IF(OR(W79<7,NOT(ISNUMBER(#REF!))),"",IF(#REF!=0,"",CHOOSE(#REF!,1,2,3,4,5))) ->  | Y79: =SUM(W79:X79) -> 0 | Z79: Sol | AA79: =LARGE(G78:G84,1)+LARGE(G78:G84,2)+LARGE(G78:G84,3) -> 0
G80: 0 | K80: 0 | O80: 0 | S80: 0 | U80: =IF(OR(T80<7,NOT(ISNUMBER(#REF!))),"",IF(#REF!=0,"",CHOOSE(#REF!,1,2,3,4,5))) ->  | V80: 0 | X80: =IF(OR(W80<7,NOT(ISNUMBER(#REF!))),"",IF(#REF!=0,"",CHOOSE(#REF!,1,2,3,4,5))) ->  | Y80: 0 | Z80: Saut | AA80: =LARGE(K78:K84,1)+LARGE(K78:K84,2)+LARGE(K78:K84,3) -> 0
G81: 0 | K81: 0 | O81: 0 | S81: 0 | U81: =IF(OR(T81<7,NOT(ISNUMBER(#REF!))),"",IF(#REF!=0,"",CHOOSE(#REF!,1,2,3,4,5))) ->  | V81: 0 | X81: =IF(OR(W81<7,NOT(ISNUMBER(#REF!))),"",IF(#REF!=0,"",CHOOSE(#REF!,1,2,3,4,5))) ->  | Y81: 0 | Z81: BP | AA81: =LARGE(O78:O84,1)+LARGE(O78:O84,2)+LARGE(O78:O84,3) -> 0
G82: =SUM(E82:F82) -> 0 | K82: 0 | O82: 0 | S82: 0 | U82: =IF(OR(T82<7,NOT(ISNUMBER(#REF!))),"",IF(#REF!=0,"",CHOOSE(#REF!,1,2,3,4,5))) ->  | V82: 0 | X82: =IF(OR(W82<7,NOT(ISNUMBER(#REF!))),"",IF(#REF!=0,"",CHOOSE(#REF!,1,2,3,4,5))) ->  | Y82: 0 | Z82: BF | AA82: =LARGE(S78:S84,1)+LARGE(S78:S84,2)+LARGE(S78:S84,3) -> 0
Z83: Arçons | AA83: =LARGE(V78:V84,1)+LARGE(V78:V84,2)+LARGE(V78:V84,3) -> 0
Z84: Anneaux | AA84: =LARGE(Y78:Y84,1)+LARGE(Y78:Y84,2)+LARGE(Y78:Y84,3) -> 0
C85: Total | G85: =SUM(G78:G84) -> 0 | K85: =SUM(K78:K84) -> 0 | O85: =SUM(O78:O84) -> 0 | S85: =SUM(S78:S84) -> 0 | V85: =SUM(V78:V84) -> 0 | Y85: =SUM(Y78:Y84) -> 0 | Z85: Total Gal | AA85: =SUM(AA78:AA84) -> 0
A88: 8
B90: Nom | C90: Prénom | D90: Degré | E90: Note | G90: Sol | H90: Degré | I90: Note | K90: Saut | L90: Degré | M90: Note | O90: BP | P90: Degré | Q90: Note | S90: BF | T90: Note | V90: Arçons | W90: Note | Y90: AN | Z90: Total; des 3 Meilleurs notes
F91: =IF(OR(E91<7,NOT(ISNUMBER(D91))),"",IF(D91=0,"",CHOOSE(D91,1,2,3,4,5))) ->  | G91: =SUM(E91:F91) -> 0 | J91: =IF(OR(I91<7,NOT(ISNUMBER(H91))),"",IF(H91=0,"",CHOOSE(H91,1,2,3,4,5))) ->  | K91: =SUM(I91:J91) -> 0 | N91: =IF(OR(M91<7,NOT(ISNUMBER(L91))),"",IF(L91=0,"",CHOOSE(L91,1,2,3,4,5))) ->  | O91: =SUM(M91:N91) -> 0 | R91: =IF(OR(Q91<7,NOT(ISNUMBER(P91))),"",IF(P91=0,"",CHOOSE(P91,1,2,3,4,5))) ->  | S91: =SUM(Q91:R91) -> 0 | U91: =IF(OR(T91<7,NOT(ISNUMBER(#REF!))),"",IF(#REF!=0,"",CHOOSE(#REF!,1,2,3,4,5))) ->  | V91: =SUM(T91:U91) -> 0 | X91: =IF(OR(W91<7,NOT(ISNUMBER(#REF!))),"",IF(#REF!=0,"",CHOOSE(#REF!,1,2,3,4,5))) ->  | Y91: =SUM(W91:X91) -> 0
F92: =IF(OR(E92<7,NOT(ISNUMBER(D92))),"",IF(D92=0,"",CHOOSE(D92,1,2,3,4,5))) ->  | G92: =SUM(E92:F92) -> 0 | J92: =IF(OR(I92<7,NOT(ISNUMBER(H92))),"",IF(H92=0,"",CHOOSE(H92,1,2,3,4,5))) ->  | K92: =SUM(I92:J92) -> 0 | N92: =IF(OR(M92<7,NOT(ISNUMBER(L92))),"",IF(L92=0,"",CHOOSE(L92,1,2,3,4,5))) ->  | O92: =SUM(M92:N92) -> 0 | R92: =IF(OR(Q92<7,NOT(ISNUMBER(P92))),"",IF(P92=0,"",CHOOSE(P92,1,2,3,4,5))) ->  | S92: =SUM(Q92:R92) -> 0 | U92: =IF(OR(T92<7,NOT(ISNUMBER(#REF!))),"",IF(#REF!=0,"",CHOOSE(#REF!,1,2,3,4,5))) ->  | V92: =SUM(T92:U92) -> 0 | X92: =IF(OR(W92<7,NOT(ISNUMBER(#REF!))),"",IF(#REF!=0,"",CHOOSE(#REF!,1,2,3,4,5))) ->  | Y92: 0 | Z92: Sol | AA92: =LARGE(G91:G97,1)+LARGE(G91:G97,2)+LARGE(G91:G97,3) -> 0
G93: 0 | K93: 0 | O93: 0 | S93: 0 | U93: =IF(OR(T93<7,NOT(ISNUMBER(#REF!))),"",IF(#REF!=0,"",CHOOSE(#REF!,1,2,3,4,5))) ->  | V93: =SUM(T93:U93) -> 0 | X93: =IF(OR(W93<7,NOT(ISNUMBER(#REF!))),"",IF(#REF!=0,"",CHOOSE(#REF!,1,2,3,4,5))) ->  | Y93: 0 | Z93: Saut | AA93: =LARGE(K91:K97,1)+LARGE(K91:K97,2)+LARGE(K91:K97,3) -> 0
G94: 0 | K94: 0 | O94: 0 | S94: 0 | U94: =IF(OR(T94<7,NOT(ISNUMBER(#REF!))),"",IF(#REF!=0,"",CHOOSE(#REF!,1,2,3,4,5))) ->  | V94: 0 | X94: =IF(OR(W94<7,NOT(ISNUMBER(#REF!))),"",IF(#REF!=0,"",CHOOSE(#REF!,1,2,3,4,5))) ->  | Y94: 0 | Z94: BP | AA94: =LARGE(O91:O97,1)+LARGE(O91:O97,2)+LARGE(O91:O97,3) -> 0
F95: =IF(OR(E95<7,NOT(ISNUMBER(D95))),"",IF(D95=0,"",CHOOSE(D95,1,2,3,4,5))) ->  | G95: =SUM(E95:F95) -> 0 | J95: =IF(OR(I95<7,NOT(ISNUMBER(H95))),"",IF(H95=0,"",CHOOSE(H95,1,2,3,4,5))) ->  | K95: =SUM(I95:J95) -> 0 | N95: =IF(OR(M95<7,NOT(ISNUMBER(L95))),"",IF(L95=0,"",CHOOSE(L95,1,2,3,4,5))) ->  | O95: =SUM(M95:N95) -> 0 | R95: =IF(OR(Q95<7,NOT(ISNUMBER(P95))),"",IF(P95=0,"",CHOOSE(P95,1,2,3,4,5))) ->  | S95: =SUM(Q95:R95) -> 0 | U95: =IF(OR(T95<7,NOT(ISNUMBER(#REF!))),"",IF(#REF!=0,"",CHOOSE(#REF!,1,2,3,4,5))) ->  | V95: =SUM(T95:U95) -> 0 | X95: =IF(OR(W95<7,NOT(ISNUMBER(#REF!))),"",IF(#REF!=0,"",CHOOSE(#REF!,1,2,3,4,5))) ->  | Y95: =SUM(W95:X95) -> 0 | Z95: BF | AA95: =LARGE(S91:S97,1)+LARGE(S91:S97,2)+LARGE(S91:S97,3) -> 0
G96: 0 | K96: 0 | O96: 0 | S96: 0 | U96: =IF(OR(T96<7,NOT(ISNUMBER(#REF!))),"",IF(#REF!=0,"",CHOOSE(#REF!,1,2,3,4,5))) ->  | V96: 0 | X96: =IF(OR(W96<7,NOT(ISNUMBER(#REF!))),"",IF(#REF!=0,"",CHOOSE(#REF!,1,2,3,4,5))) ->  | Y96: 0 | Z96: Arçons | AA96: =LARGE(V91:V97,1)+LARGE(V91:V97,2)+LARGE(V91:V97,3) -> 0
Z97: Anneaux | AA97: =LARGE(Y91:Y97,1)+LARGE(Y91:Y97,2)+LARGE(Y91:Y97,3) -> 0
C98: Total | G98: =SUM(G91:G97) -> 0 | K98: =SUM(K91:K97) -> 0 | O98: =SUM(O91:O97) -> 0 | S98: =SUM(S91:S97) -> 0 | V98: =SUM(V91:V97) -> 0 | Y98: =SUM(Y91:Y97) -> 0 | Z98: Total Gal | AA98: =SUM(AA91:AA97) -> 0
A101: 9
B103: Nom | C103: Prénom | D103: Degré | E103: Note | G103: Sol | H103: Degré | I103: Note | K103: Saut | L103: Degré | M103: Note | O103: BP | P103: Degré | Q103: Note | S103: BF | T103: Note | V103: Arçons | W103: Note | Y103: AN | Z103: Total; des 3 Meilleurs notes
F104: =IF(OR(E104<7,NOT(ISNUMBER(D104))),"",IF(D104=0,"",CHOOSE(D104,1,2,3,4,5))) ->  | G104: =SUM(E104:F104) -> 0 | J104: =IF(OR(I104<7,NOT(ISNUMBER(H104))),"",IF(H104=0,"",CHOOSE(H104,1,2,3,4,5))) ->  | K104: =SUM(I104:J104) -> 0 | N104: =IF(OR(M104<7,NOT(ISNUMBER(L104))),"",IF(L104=0,"",CHOOSE(L104,1,2,3,4,5))) ->  | O104: =SUM(M104:N104) -> 0 | R104: =IF(OR(Q104<7,NOT(ISNUMBER(P104))),"",IF(P104=0,"",CHOOSE(P104,1,2,3,4,5))) ->  | S104: =SUM(Q104:R104) -> 0 | U104: =IF(OR(T104<7,NOT(ISNUMBER(#REF!))),"",IF(#REF!=0,"",CHOOSE(#REF!,1,2,3,4,5))) ->  | V104: =SUM(T104:U104) -> 0 | X104: =IF(OR(W104<7,NOT(ISNUMBER(#REF!))),"",IF(#REF!=0,"",CHOOSE(#REF!,1,2,3,4,5))) ->  | Y104: =SUM(W104:X104) -> 0
F105: =IF(OR(E105<7,NOT(ISNUMBER(D105))),"",IF(D105=0,"",CHOOSE(D105,1,2,3,4,5))) ->  | G105: =SUM(E105:F105) -> 0 | J105: =IF(OR(I105<7,NOT(ISNUMBER(H105))),"",IF(H105=0,"",CHOOSE(H105,1,2,3,4,5))) ->  | K105: =SUM(I105:J105) -> 0 | N105: =IF(OR(M105<7,NOT(ISNUMBER(L105))),"",IF(L105=0,"",CHOOSE(L105,1,2,3,4,5))) ->  | O105: =SUM(M105:N105) -> 0 | R105: =IF(OR(Q105<7,NOT(ISNUMBER(P105))),"",IF(P105=0,"",CHOOSE(P105,1,2,3,4,5))) ->  | S105: =SUM(Q105:R105) -> 0 | U105: =IF(OR(T105<7,NOT(ISNUMBER(#REF!))),"",IF(#REF!=0,"",CHOOSE(#REF!,1,2,3,4,5))) ->  | V105: =SUM(T105:U105) -> 0 | X105: =IF(OR(W105<7,NOT(ISNUMBER(#REF!))),"",IF(#REF!=0,"",CHOOSE(#REF!,1,2,3,4,5))) ->  | Y105: =SUM(W105:X105) -> 0 | Z105: Sol | AA105: =LARGE(G104:G110,1)+LARGE(G104:G110,2)+LARGE(G104:G110,3) -> 0
G106: 0 | K106: 0 | O106: 0 | S106: 0 | U106: =IF(OR(T106<7,NOT(ISNUMBER(#REF!))),"",IF(#REF!=0,"",CHOOSE(#REF!,1,2,3,4,5))) ->  | V106: 0 | X106: =IF(OR(W106<7,NOT(ISNUMBER(#REF!))),"",IF(#REF!=0,"",CHOOSE(#REF!,1,2,3,4,5))) ->  | Y106: 0 | Z106: Saut | AA106: =LARGE(K104:K110,1)+LARGE(K104:K110,2)+LARGE(K104:K110,3) -> 0
G107: 0 | K107: 0 | O107: 0 | S107: 0 | U107: =IF(OR(T107<7,NOT(ISNUMBER(#REF!))),"",IF(#REF!=0,"",CHOOSE(#REF!,1,2,3,4,5))) ->  | V107: 0 | X107: =IF(OR(W107<7,NOT(ISNUMBER(#REF!))),"",IF(#REF!=0,"",CHOOSE(#REF!,1,2,3,4,5))) ->  | Y107: 0 | Z107: BP | AA107: =LARGE(O104:O110,1)+LARGE(O104:O110,2)+LARGE(O104:O110,3) -> 0
F108: =IF(OR(E108<7,NOT(ISNUMBER(D108))),"",IF(D108=0,"",CHOOSE(D108,1,2,3,4,5))) ->  | G108: =SUM(E108:F108) -> 0 | J108: =IF(OR(I108<7,NOT(ISNUMBER(H108))),"",IF(H108=0,"",CHOOSE(H108,1,2,3,4,5))) ->  | K108: =SUM(I108:J108) -> 0 | N108: =IF(OR(M108<7,NOT(ISNUMBER(L108))),"",IF(L108=0,"",CHOOSE(L108,1,2,3,4,5))) ->  | O108: =SUM(M108:N108) -> 0 | R108: =IF(OR(Q108<7,NOT(ISNUMBER(P108))),"",IF(P108=0,"",CHOOSE(P108,1,2,3,4,5))) ->  | S108: =SUM(Q108:R108) -> 0 | U108: =IF(OR(T108<7,NOT(ISNUMBER(#REF!))),"",IF(#REF!=0,"",CHOOSE(#REF!,1,2,3,4,5))) ->  | V108: =SUM(T108:U108) -> 0 | X108: =IF(OR(W108<7,NOT(ISNUMBER(#REF!))),"",IF(#REF!=0,"",CHOOSE(#REF!,1,2,3,4,5))) ->  | Y108: =SUM(W108:X108) -> 0 | Z108: BF | AA108: =LARGE(S104:S110,1)+LARGE(S104:S110,2)+LARGE(S104:S110,3) -> 0
G109: 0 | K109: 0 | O109: 0 | S109: 0 | U109: =IF(OR(T109<7,NOT(ISNUMBER(#REF!))),"",IF(#REF!=0,"",CHOOSE(#REF!,1,2,3,4,5))) ->  | V109: 0 | X109: =IF(OR(W109<7,NOT(ISNUMBER(#REF!))),"",IF(#REF!=0,"",CHOOSE(#REF!,1,2,3,4,5))) ->  | Y109: 0 | Z109: Arçons | AA109: =LARGE(V104:V110,1)+LARGE(V104:V110,2)+LARGE(V104:V110,3) -> 0
Z110: Anneaux | AA110: =LARGE(Y104:Y110,1)+LARGE(Y104:Y110,2)+LARGE(Y104:Y110,3) -> 0
C111: Total | G111: =SUM(G104:G110) -> 0 | K111: =SUM(K104:K110) -> 0 | O111: =SUM(O104:O110) -> 0 | S111: =SUM(S104:S110) -> 0 | V111: =SUM(V104:V110) -> 0 | Y111: =SUM(Y104:Y110) -> 0 | Z111: Total Gal | AA111: =SUM(AA104:AA110) -> 0
A115: 10
B117: Nom | C117: Prénom | D117: Degré | E117: Note | G117: Sol | H117: Degré | I117: Note | K117: Saut | L117: Degré | M117: Note | O117: BP | P117: Degré | Q117: Note | S117: BF | T117: Note | V117: Arçons | W117: Note | Y117: AN | Z117: Total; des 3 Meilleurs notes
F118: =IF(OR(E118<7,NOT(ISNUMBER(D118))),"",IF(D118=0,"",CHOOSE(D118,1,2,3,4,5))) ->  | G118: =SUM(E118:F118) -> 0 | J118: =IF(OR(I118<7,NOT(ISNUMBER(H118))),"",IF(H118=0,"",CHOOSE(H118,1,2,3,4,5))) ->  | K118: =SUM(I118:J118) -> 0 | N118: =IF(OR(M118<7,NOT(ISNUMBER(L118))),"",IF(L118=0,"",CHOOSE(L118,1,2,3,4,5))) ->  | O118: =SUM(M118:N118) -> 0 | R118: =IF(OR(Q118<7,NOT(ISNUMBER(P118))),"",IF(P118=0,"",CHOOSE(P118,1,2,3,4,5))) ->  | S118: =SUM(Q118:R118) -> 0 | U118: =IF(OR(T118<7,NOT(ISNUMBER(#REF!))),"",IF(#REF!=0,"",CHOOSE(#REF!,1,2,3,4,5))) ->  | V118: =SUM(T118:U118) -> 0 | X118: =IF(OR(W118<7,NOT(ISNUMBER(#REF!))),"",IF(#REF!=0,"",CHOOSE(#REF!,1,2,3,4,5))) ->  | Y118: =SUM(W118:X118) -> 0
F119: =IF(OR(E119<7,NOT(ISNUMBER(D119))),"",IF(D119=0,"",CHOOSE(D119,1,2,3,4,5))) ->  | G119: =SUM(E119:F119) -> 0 | J119: =IF(OR(I119<7,NOT(ISNUMBER(H119))),"",IF(H119=0,"",CHOOSE(H119,1,2,3,4,5))) ->  | K119: =SUM(I119:J119) -> 0 | N119: =IF(OR(M119<7,NOT(ISNUMBER(L119))),"",IF(L119=0,"",CHOOSE(L119,1,2,3,4,5))) ->  | O119: =SUM(M119:N119) -> 0 | R119: =IF(OR(Q119<7,NOT(ISNUMBER(P119))),"",IF(P119=0,"",CHOOSE(P119,1,2,3,4,5))) ->  | S119: =SUM(Q119:R119) -> 0 | U119: =IF(OR(T119<7,NOT(ISNUMBER(#REF!))),"",IF(#REF!=0,"",CHOOSE(#REF!,1,2,3,4,5))) ->  | V119: =SUM(T119:U119) -> 0 | X119: =IF(OR(W119<7,NOT(ISNUMBER(#REF!))),"",IF(#REF!=0,"",CHOOSE(#REF!,1,2,3,4,5))) ->  | Y119: =SUM(W119:X119) -> 0 | Z119: Sol | AA119: =LARGE(G118:G124,1)+LARGE(G118:G124,2)+LARGE(G118:G124,3) -> 0
G120: 0 | K120: 0 | O120: 0 | S120: 0 | U120: =IF(OR(T120<7,NOT(ISNUMBER(#REF!))),"",IF(#REF!=0,"",CHOOSE(#REF!,1,2,3,4,5))) ->  | V120: 0 | X120: =IF(OR(W120<7,NOT(ISNUMBER(#REF!))),"",IF(#REF!=0,"",CHOOSE(#REF!,1,2,3,4,5))) ->  | Y120: 0 | Z120: Saut | AA120: =LARGE(K118:K124,1)+LARGE(K118:K124,2)+LARGE(K118:K124,3) -> 0
G121: 0 | K121: 0 | O121: 0 | S121: 0 | U121: =IF(OR(T121<7,NOT(ISNUMBER(#REF!))),"",IF(#REF!=0,"",CHOOSE(#REF!,1,2,3,4,5))) ->  | V121: 0 | X121: =IF(OR(W121<7,NOT(ISNUMBER(#REF!))),"",IF(#REF!=0,"",CHOOSE(#REF!,1,2,3,4,5))) ->  | Y121: 0 | Z121: BP | AA121: =LARGE(O118:O124,1)+LARGE(O118:O124,2)+LARGE(O118:O124,3) -> 0
F122: =IF(OR(E122<7,NOT(ISNUMBER(D122))),"",IF(D122=0,"",CHOOSE(D122,1,2,3,4,5))) ->  | G122: =SUM(E122:F122) -> 0 | J122: =IF(OR(I122<7,NOT(ISNUMBER(H122))),"",IF(H122=0,"",CHOOSE(H122,1,2,3,4,5))) ->  | K122: =SUM(I122:J122) -> 0 | N122: =IF(OR(M122<7,NOT(ISNUMBER(L122))),"",IF(L122=0,"",CHOOSE(L122,1,2,3,4,5))) ->  | O122: =SUM(M122:N122) -> 0 | R122: =IF(OR(Q122<7,NOT(ISNUMBER(P122))),"",IF(P122=0,"",CHOOSE(P122,1,2,3,4,5))) ->  | S122: =SUM(Q122:R122) -> 0 | U122: =IF(OR(T122<7,NOT(ISNUMBER(#REF!))),"",IF(#REF!=0,"",CHOOSE(#REF!,1,2,3,4,5))) ->  | V122: =SUM(T122:U122) -> 0 | X122: =IF(OR(W122<7,NOT(ISNUMBER(#REF!))),"",IF(#REF!=0,"",CHOOSE(#REF!,1,2,3,4,5))) ->  | Y122: =SUM(W122:X122) -> 0 | Z122: BF | AA122: =LARGE(S118:S124,1)+LARGE(S118:S124,2)+LARGE(S118:S124,3) -> 0
G123: 0 | K123: 0 | O123: 0 | S123: 0 | U123: =IF(OR(T123<7,NOT(ISNUMBER(#REF!))),"",IF(#REF!=0,"",CHOOSE(#REF!,1,2,3,4,5))) ->  | V123: 0 | X123: =IF(OR(W123<7,NOT(ISNUMBER(#REF!))),"",IF(#REF!=0,"",CHOOSE(#REF!,1,2,3,4,5))) ->  | Y123: 0 | Z123: Arçons | AA123: =LARGE(V118:V124,1)+LARGE(V118:V124,2)+LARGE(V118:V124,3) -> 0
Z124: Anneaux | AA124: =LARGE(Y118:Y124,1)+LARGE(Y118:Y124,2)+LARGE(Y118:Y124,3) -> 0
C125: Total | G125: =SUM(G118:G124) -> 0 | K125: =SUM(K118:K124) -> 0 | O125: =SUM(O118:O124) -> 0 | S125: =SUM(S118:S124) -> 0 | V125: =SUM(V118:V124) -> 0 | Y125: =SUM(Y118:Y124) -> 0 | Z125: Total Gal | AA125: =SUM(AA118:AA124) -> 0
A128: 11
B130: Nom | C130: Prénom | D130: Degré | E130: Note | G130: Sol | H130: Degré | I130: Note | K130: Saut | L130: Degré | M130: Note | O130: BP | P130: Degré | Q130: Note | S130: BF | T130: Note | V130: Arçons | W130: Note | Y130: AN | Z130: Total; des 3 Meilleurs notes
D131: 2 | E131: 8 | F131: =IF(OR(E131<7,NOT(ISNUMBER(D131))),"",IF(D131=0,"",CHOOSE(D131,1,2,3,4,5))) -> 2 | G131: =SUM(E131:F131) -> 10 | J131: =IF(OR(I131<7,NOT(ISNUMBER(H131))),"",IF(H131=0,"",CHOOSE(H131,1,2,3,4,5))) ->  | K131: =SUM(I131:J131) -> 0 | N131: =IF(OR(M131<7,NOT(ISNUMBER(L131))),"",IF(L131=0,"",CHOOSE(L131,1,2,3,4,5))) ->  | O131: =SUM(M131:N131) -> 0 | R131: =IF(OR(Q131<7,NOT(ISNUMBER(P131))),"",IF(P131=0,"",CHOOSE(P131,1,2,3,4,5))) ->  | S131: =SUM(Q131:R131) -> 0 | U131: =IF(OR(T131<7,NOT(ISNUMBER(#REF!))),"",IF(#REF!=0,"",CHOOSE(#REF!,1,2,3,4,5))) ->  | V131: =SUM(T131:U131) -> 0 | X131: =IF(OR(W131<7,NOT(ISNUMBER(#REF!))),"",IF(#REF!=0,"",CHOOSE(#REF!,1,2,3,4,5))) ->  | Y131: =SUM(W131:X131) -> 0
F132: =IF(OR(E132<7,NOT(ISNUMBER(D132))),"",IF(D132=0,"",CHOOSE(D132,1,2,3,4,5))) ->  | G132: =SUM(E132:F132) -> 0 | J132: =IF(OR(I132<7,NOT(ISNUMBER(H132))),"",IF(H132=0,"",CHOOSE(H132,1,2,3,4,5))) ->  | K132: =SUM(I132:J132) -> 0 | N132: =IF(OR(M132<7,NOT(ISNUMBER(L132))),"",IF(L132=0,"",CHOOSE(L132,1,2,3,4,5))) ->  | O132: =SUM(M132:N132) -> 0 | R132: =IF(OR(Q132<7,NOT(ISNUMBER(P132))),"",IF(P132=0,"",CHOOSE(P132,1,2,3,4,5))) ->  | S132: =SUM(Q132:R132) -> 0 | U132: =IF(OR(T132<7,NOT(ISNUMBER(#REF!))),"",IF(#REF!=0,"",CHOOSE(#REF!,1,2,3,4,5))) ->  | V132: =SUM(T132:U132) -> 0 | X132: =IF(OR(W132<7,NOT(ISNUMBER(#REF!))),"",IF(#REF!=0,"",CHOOSE(#REF!,1,2,3,4,5))) ->  | Y132: =SUM(W132:X132) -> 0 | Z132: Sol | AA132: =LARGE(G131:G137,1)+LARGE(G131:G137,2)+LARGE(G131:G137,3) -> 10
G133: 0 | K133: 0 | O133: 0 | S133: 0 | U133: =IF(OR(T133<7,NOT(ISNUMBER(#REF!))),"",IF(#REF!=0,"",CHOOSE(#REF!,1,2,3,4,5))) ->  | V133: 0 | X133: =IF(OR(W133<7,NOT(ISNUMBER(#REF!))),"",IF(#REF!=0,"",CHOOSE(#REF!,1,2,3,4,5))) ->  | Y133: 0 | Z133: Saut | AA133: =LARGE(K131:K137,1)+LARGE(K131:K137,2)+LARGE(K131:K137,3) -> 0
G134: 0 | K134: 0 | O134: 0 | S134: 0 | U134: =IF(OR(T134<7,NOT(ISNUMBER(#REF!))),"",IF(#REF!=0,"",CHOOSE(#REF!,1,2,3,4,5))) ->  | V134: 0 | X134: =IF(OR(W134<7,NOT(ISNUMBER(#REF!))),"",IF(#REF!=0,"",CHOOSE(#REF!,1,2,3,4,5))) ->  | Y134: 0 | Z134: BP | AA134: =LARGE(O131:O137,1)+LARGE(O131:O137,2)+LARGE(O131:O137,3) -> 0
F135: =IF(OR(E135<7,NOT(ISNUMBER(D135))),"",IF(D135=0,"",CHOOSE(D135,1,2,3,4,5))) ->  | G135: =SUM(E135:F135) -> 0 | J135: =IF(OR(I135<7,NOT(ISNUMBER(H135))),"",IF(H135=0,"",CHOOSE(H135,1,2,3,4,5))) ->  | K135: =SUM(I135:J135) -> 0 | N135: =IF(OR(M135<7,NOT(ISNUMBER(L135))),"",IF(L135=0,"",CHOOSE(L135,1,2,3,4,5))) ->  | O135: =SUM(M135:N135) -> 0 | R135: =IF(OR(Q135<7,NOT(ISNUMBER(P135))),"",IF(P135=0,"",CHOOSE(P135,1,2,3,4,5))) ->  | S135: =SUM(Q135:R135) -> 0 | U135: =IF(OR(T135<7,NOT(ISNUMBER(#REF!))),"",IF(#REF!=0,"",CHOOSE(#REF!,1,2,3,4,5))) ->  | V135: =SUM(T135:U135) -> 0 | X135: =IF(OR(W135<7,NOT(ISNUMBER(#REF!))),"",IF(#REF!=0,"",CHOOSE(#REF!,1,2,3,4,5))) ->  | Y135: =SUM(W135:X135) -> 0 | Z135: BF | AA135: =LARGE(S131:S137,1)+LARGE(S131:S137,2)+LARGE(S131:S137,3) -> 0
G136: 0 | K136: 0 | O136: 0 | S136: 0 | U136: =IF(OR(T136<7,NOT(ISNUMBER(#REF!))),"",IF(#REF!=0,"",CHOOSE(#REF!,1,2,3,4,5))) ->  | V136: 0 | X136: =IF(OR(W136<7,NOT(ISNUMBER(#REF!))),"",IF(#REF!=0,"",CHOOSE(#REF!,1,2,3,4,5))) ->  | Y136: 0 | Z136: Arçons | AA136: =LARGE(V131:V137,1)+LARGE(V131:V137,2)+LARGE(V131:V137,3) -> 0
Z137: Anneaux | AA137: =LARGE(Y131:Y137,1)+LARGE(Y131:Y137,2)+LARGE(Y131:Y137,3) -> 0
C138: Total | G138: =SUM(G131:G137) -> 10 | I138: 0 | K138: =SUM(K131:K137) -> 0 | O138: =SUM(O131:O137) -> 0 | S138: =SUM(S131:S137) -> 0 | T138: =SUM(T131:T137) -> 0 | V138: =SUM(V131:V137) -> 0 | Y138: =SUM(Y131:Y137) -> 0 | Z138: Total Gal | AA138: =SUM(AA131:AA137) -> 10
A149: 12
B151: Nom | C151: Prénom | D151: Degré | E151: Note | G151: Sol | H151: Degré | I151: Note | K151: Saut | L151: Degré | M151: Note | O151: BP | P151: Degré | Q151: Note | S151: BF | T151: Note | V151: Arçons | W151: Note | Y151: AN | Z151: Total; des 3 Meilleurs notes
F152: =IF(OR(E152<7,NOT(ISNUMBER(D152))),"",IF(D152=0,"",CHOOSE(D152,1,2,3,4,5))) ->  | G152: =SUM(E152:F152) -> 0 | J152: =IF(OR(I152<7,NOT(ISNUMBER(H152))),"",IF(H152=0,"",CHOOSE(H152,1,2,3,4,5))) ->  | K152: =SUM(I152:J152) -> 0 | N152: =IF(OR(M152<7,NOT(ISNUMBER(L152))),"",IF(L152=0,"",CHOOSE(L152,1,2,3,4,5))) ->  | O152: =SUM(M152:N152) -> 0 | R152: =IF(OR(Q152<7,NOT(ISNUMBER(P152))),"",IF(P152=0,"",CHOOSE(P152,1,2,3,4,5))) ->  | S152: =SUM(Q152:R152) -> 0 | U152: =IF(OR(T152<7,NOT(ISNUMBER(#REF!))),"",IF(#REF!=0,"",CHOOSE(#REF!,1,2,3,4,5))) ->  | V152: =SUM(T152:U152) -> 0 | X152: =IF(OR(W152<7,NOT(ISNUMBER(#REF!))),"",IF(#REF!=0,"",CHOOSE(#REF!,1,2,3,4,5))) ->  | Y152: =SUM(W152:X152) -> 0
F153: =IF(OR(E153<7,NOT(ISNUMBER(D153))),"",IF(D153=0,"",CHOOSE(D153,1,2,3,4,5))) ->  | G153: =SUM(E153:F153) -> 0 | J153: =IF(OR(I153<7,NOT(ISNUMBER(H153))),"",IF(H153=0,"",CHOOSE(H153,1,2,3,4,5))) ->  | K153: =SUM(I153:J153) -> 0 | N153: =IF(OR(M153<7,NOT(ISNUMBER(L153))),"",IF(L153=0,"",CHOOSE(L153,1,2,3,4,5))) ->  | O153: =SUM(M153:N153) -> 0 | R153: =IF(OR(Q153<7,NOT(ISNUMBER(P153))),"",IF(P153=0,"",CHOOSE(P153,1,2,3,4,5))) ->  | S153: =SUM(Q153:R153) -> 0 | U153: =IF(OR(T153<7,NOT(ISNUMBER(#REF!))),"",IF(#REF!=0,"",CHOOSE(#REF!,1,2,3,4,5))) ->  | V153: =SUM(T153:U153) -> 0 | X153: =IF(OR(W153<7,NOT(ISNUMBER(#REF!))),"",IF(#REF!=0,"",CHOOSE(#REF!,1,2,3,4,5))) ->  | Y153: =SUM(W153:X153) -> 0 | Z153: Sol | AA153: =LARGE(G152:G158,1)+LARGE(G152:G158,2)+LARGE(G152:G158,3) -> 0
G154: 0 | K154: 0 | O154: 0 | S154: 0 | U154: =IF(OR(T154<7,NOT(ISNUMBER(#REF!))),"",IF(#REF!=0,"",CHOOSE(#REF!,1,2,3,4,5))) ->  | V154: 0 | X154: =IF(OR(W154<7,NOT(ISNUMBER(#REF!))),"",IF(#REF!=0,"",CHOOSE(#REF!,1,2,3,4,5))) ->  | Y154: 0 | Z154: Saut | AA154: =LARGE(K152:K158,1)+LARGE(K152:K158,2)+LARGE(K152:K158,3) -> 0
G155: 0 | K155: 0 | O155: 0 | S155: 0 | U155: =IF(OR(T155<7,NOT(ISNUMBER(#REF!))),"",IF(#REF!=0,"",CHOOSE(#REF!,1,2,3,4,5))) ->  | V155: 0 | X155: =IF(OR(W155<7,NOT(ISNUMBER(#REF!))),"",IF(#REF!=0,"",CHOOSE(#REF!,1,2,3,4,5))) ->  | Y155: 0 | Z155: BP | AA155: =LARGE(O152:O158,1)+LARGE(O152:O158,2)+LARGE(O152:O158,3) -> 0
F156: =IF(OR(E156<7,NOT(ISNUMBER(D156))),"",IF(D156=0,"",CHOOSE(D156,1,2,3,4,5))) ->  | G156: =SUM(E156:F156) -> 0 | J156: =IF(OR(I156<7,NOT(ISNUMBER(H156))),"",IF(H156=0,"",CHOOSE(H156,1,2,3,4,5))) ->  | K156: =SUM(I156:J156) -> 0 | N156: =IF(OR(M156<7,NOT(ISNUMBER(L156))),"",IF(L156=0,"",CHOOSE(L156,1,2,3,4,5))) ->  | O156: =SUM(M156:N156) -> 0 | R156: =IF(OR(Q156<7,NOT(ISNUMBER(P156))),"",IF(P156=0,"",CHOOSE(P156,1,2,3,4,5))) ->  | S156: =SUM(Q156:R156) -> 0 | U156: =IF(OR(T156<7,NOT(ISNUMBER(#REF!))),"",IF(#REF!=0,"",CHOOSE(#REF!,1,2,3,4,5))) ->  | V156: =SUM(T156:U156) -> 0 | X156: =IF(OR(W156<7,NOT(ISNUMBER(#REF!))),"",IF(#REF!=0,"",CHOOSE(#REF!,1,2,3,4,5))) ->  | Y156: =SUM(W156:X156) -> 0 | Z156: BF | AA156: =LARGE(S152:S158,1)+LARGE(S152:S158,2)+LARGE(S152:S158,3) -> 0
G157: 0 | K157: 0 | O157: 0 | S157: 0 | U157: =IF(OR(T157<7,NOT(ISNUMBER(#REF!))),"",IF(#REF!=0,"",CHOOSE(#REF!,1,2,3,4,5))) ->  | V157: 0 | X157: =IF(OR(W157<7,NOT(ISNUMBER(#REF!))),"",IF(#REF!=0,"",CHOOSE(#REF!,1,2,3,4,5))) ->  | Y157: 0 | Z157: Arçons | AA157: =LARGE(V152:V158,1)+LARGE(V152:V158,2)+LARGE(V152:V158,3) -> 0
Z158: Anneaux | AA158: =LARGE(Y152:Y158,1)+LARGE(Y152:Y158,2)+LARGE(Y152:Y158,3) -> 0
C159: Total | G159: =SUM(G152:G158) -> 0 | K159: =SUM(K152:K158) -> 0 | O159: =SUM(O152:O158) -> 0 | S159: =SUM(S152:S158) -> 0 | T159: =SUM(T152:T158) -> 0 | V159: =SUM(V152:V158) -> 0 | Y159: =SUM(Y152:Y158) -> 0 | Z159: Total Gal | AA159: =SUM(AA152:AA158) -> 0

Sheet Poussins JP R 1
A4: 1 | B4: JEANNE ARC | C4: MOUVAUX
B6: Nom | C6: Prénom | D6: Degré | E6: Note | G6: Sol | H6: Degré | I6: Note | K6: Saut | L6: Degré | M6: Note | O6: BP | P6: Degré | Q6: Note | S6: BF | T6: Note | V6: Arçons | W6: Note | Y6: AN | Z6: Total; des 10 Meilleurs notes
A7: 1 | D7: 4 | E7: 8.95 | F7: =IF(OR(E7<7,NOT(ISNUMBER(D7))),"",IF(D7=0,"",CHOOSE(D7,1,2,3,4,5))) -> 4 | G7: =SUM(E7:F7) -> 12.95 | H7: 4 | I7: 8.75 | J7: =IF(OR(I7<7,NOT(ISNUMBER(H7))),"",IF(H7=0,"",CHOOSE(H7,1,2,3,4,5))) -> 4 | K7: =SUM(I7:J7) -> 12.75 | L7: 3 | M7: 8.4 | N7: =IF(OR(M7<7,NOT(ISNUMBER(L7))),"",IF(L7=0,"",CHOOSE(L7,1,2,3,4,5))) -> 3 | O7: =SUM(M7:N7) -> 11.4 | P7: 4 | Q7: 8.25 | R7: =IF(OR(Q7<7,NOT(ISNUMBER(P7))),"",IF(P7=0,"",CHOOSE(P7,1,2,3,4,5))) -> 4 | S7: =SUM(Q7:R7) -> 12.25 | T7: 6.45 | U7: =IF(OR(T7<7,NOT(ISNUMBER(#REF!))),"",IF(#REF!=0,"",CHOOSE(#REF!,1,2,3,4,5))) ->  | V7: =SUM(T7:U7) -> 6.45 | W7: 8.25 | X7: =IF(OR(W7<7,NOT(ISNUMBER(#REF!))),"",IF(#REF!=0,"",CHOOSE(#REF!,1,2,3,4,5))) ->  | Y7: =SUM(W7:X7) -> 8.25
A8: 2 | D8: 3 | E8: 8.7 | F8: =IF(OR(E8<7,NOT(ISNUMBER(D8))),"",IF(D8=0,"",CHOOSE(D8,1,2,3,4,5))) -> 3 | G8: =SUM(E8:F8) -> 11.7 | H8: 3 | I8: 9.4 | J8: =IF(OR(I8<7,NOT(ISNUMBER(H8))),"",IF(H8=0,"",CHOOSE(H8,1,2,3,4,5))) -> 3 | K8: =SUM(I8:J8) -> 12.4 | L8: 2 | M8: 9.4 | N8: =IF(OR(M8<7,NOT(ISNUMBER(L8))),"",IF(L8=0,"",CHOOSE(L8,1,2,3,4,5))) -> 2 | O8: =SUM(M8:N8) -> 11.4 | P8: 3 | Q8: 8.45 | R8: =IF(OR(Q8<7,NOT(ISNUMBER(P8))),"",IF(P8=0,"",CHOOSE(P8,1,2,3,4,5))) -> 3 | S8: =SUM(Q8:R8) -> 11.45 | T8: 6.1 | U8: =IF(OR(T8<7,NOT(ISNUMBER(#REF!))),"",IF(#REF!=0,"",CHOOSE(#REF!,1,2,3,4,5))) ->  | V8: =SUM(T8:U8) -> 6.1 | W8: 5.3 | X8: =IF(OR(W8<7,NOT(ISNUMBER(#REF!))),"",IF(#REF!=0,"",CHOOSE(#REF!,1,2,3,4,5))) ->  | Y8: =SUM(W8:X8) -> 5.3 | Z8: Sol | AA8: =LARGE(G7:G24,1)+LARGE(G7:G24,2)+LARGE(G7:G24,3)+LARGE(G7:G24,4)+LARGE(G7:G24,5)+LARGE(G7:G24,6)+LARGE(G7:G24,7)+LARGE(G7:G24,8)+LARGE(G7:G24,9)+LARGE(G7:G24,10) -> 112.1
A9: 3 | D9: 3 | E9: 7.5 | F9: 3 | G9: 10.5 | H9: 3 | I9: 5 | K9: 5 | L9: 2 | M9: 9.5 | N9: 2 | O9: 11.5 | P9: 2 | Q9: 9.3 | R9: 2 | S9: 11.3 | T9: 4.95 | U9: =IF(OR(T9<7,NOT(ISNUMBER(#REF!))),"",IF(#REF!=0,"",CHOOSE(#REF!,1,2,3,4,5))) ->  | V9: 4.95 | W9: 6.8 | X9: =IF(OR(W9<7,NOT(ISNUMBER(#REF!))),"",IF(#REF!=0,"",CHOOSE(#REF!,1,2,3,4,5))) ->  | Y9: 6.8 | Z9: Saut | AA9: =LARGE(K7:K24,1)+LARGE(K7:K24,2)+LARGE(K7:K24,3)+LARGE(K7:K24,4)+LARGE(K7:K24,5)+LARGE(K7:K24,6)+LARGE(K7:K24,7)+LARGE(K7:K24,8)+LARGE(K7:K24,9)+LARGE(K7:K24,10) -> 113.1
A10: 4 | D10: 1 | E10: 7.5 | F10: 1 | G10: 8.5 | H10: 2 | I10: 8.9 | J10: 2 | K10: 10.9 | L10: 2 | M10: 7.75 | N10: 2 | O10: 9.75 | P10: 2 | Q10: 8.1 | R10: 2 | S10: 10.1 | T10: 3.4 | U10: =IF(OR(T10<7,NOT(ISNUMBER(#REF!))),"",IF(#REF!=0,"",CHOOSE(#REF!,1,2,3,4,5))) ->  | V10: 3.4 | W10: 8.9 | X10: =IF(OR(W10<7,NOT(ISNUMBER(#REF!))),"",IF(#REF!=0,"",CHOOSE(#REF!,1,2,3,4,5))) ->  | Y10: 8.9 | Z10: BP | AA10: =LARGE(O7:O24,1)+LARGE(O7:O24,2)+LARGE(O7:O24,3)+LARGE(O7:O24,4)+LARGE(O7:O24,5)+LARGE(O7:O24,6)+LARGE(O7:O24,7)+LARGE(O7:O24,8)+LARGE(O7:O24,9)+LARGE(O7:O24,10) -> 111.3
A11: 5 | D11: 4 | E11: 7.4 | F11: 4 | G11: 11.4 | H11: 3 | I11: 9.3 | J11: 3 | K11: 12.3 | L11: 3 | M11: 9.25 | N11: 3 | O11: 12.25 | P11: 4 | Q11: 8.9 | R11: 4 | S11: 12.9 | T11: 6.5 | V11: 6.5 | W11: 8.3 | Y11: 8.3 | Z11: BF | AA11: =LARGE(S7:S24,1)+LARGE(S7:S24,2)+LARGE(S7:S24,3)+LARGE(S7:S24,4)+LARGE(S7:S24,5)+LARGE(S7:S24,6)+LARGE(S7:S24,7)+LARGE(S7:S24,8)+LARGE(S7:S24,9)+LARGE(S7:S24,10) -> 116.2
A12: 6 | D12: 4 | E12: 9.3 | F12: =IF(OR(E12<7,NOT(ISNUMBER(D12))),"",IF(D12=0,"",CHOOSE(D12,1,2,3,4,5))) -> 4 | G12: =SUM(E12:F12) -> 13.3 | H12: 4 | I12: 9.1 | J12: =IF(OR(I12<7,NOT(ISNUMBER(H12))),"",IF(H12=0,"",CHOOSE(H12,1,2,3,4,5))) -> 4 | K12: =SUM(I12:J12) -> 13.1 | L12: 3 | M12: 9.6 | N12: =IF(OR(M12<7,NOT(ISNUMBER(L12))),"",IF(L12=0,"",CHOOSE(L12,1,2,3,4,5))) -> 3 | O12: =SUM(M12:N12) -> 12.6 | P12: 4 | Q12: 9.2 | R12: =IF(OR(Q12<7,NOT(ISNUMBER(P12))),"",IF(P12=0,"",CHOOSE(P12,1,2,3,4,5))) -> 4 | S12: =SUM(Q12:R12) -> 13.2 | T12: 7.6 | V12: =SUM(T12:U12) -> 7.6 | W12: 7.4 | Y12: =SUM(W12:X12) -> 7.4 | Z12: Arcons | AA12: =LARGE(V7:V24,1)+LARGE(V7:V24,2)+LARGE(V7:V24,3)+LARGE(V7:V24,4)+LARGE(V7:V24,5)+LARGE(V7:V24,6)+LARGE(V7:V24,7)+LARGE(V7:V24,8)+LARGE(V7:V24,9)+LARGE(V7:V24,10) -> 54.6
A13: 7 | D13: 3 | E13: 7.8 | F13: 3 | G13: 10.8 | H13: 3 | I13: 9.1 | J13: 3 | K13: 12.1 | L13: 2 | M13: 8.35 | N13: 2 | O13: 10.35 | P13: 2 | Q13: 8.65 | R13: 2 | S13: 10.65 | T13: 3.85 | V13: 3.85 | W13: 3.8 | Y13: 3.8 | Z13: Anneaux | AA13: =LARGE(Y7:Y24,1)+LARGE(Y7:Y24,2)+LARGE(Y7:Y24,3)+LARGE(Y7:Y24,4)+LARGE(Y7:Y24,5)+LARGE(Y7:Y24,6)+LARGE(Y7:Y24,7)+LARGE(Y7:Y24,8)+LARGE(Y7:Y24,9)+LARGE(Y7:Y24,10) -> 72
A14: 8 | D14: 3 | E14: 8.8 | F14: 3 | G14: 11.8 | H14: 3 | I14: 9.6 | J14: 3 | K14: 12.6 | L14: 3 | M14: 7.85 | N14: 3 | O14: 10.85 | P14: 3 | Q14: 9.1 | R14: 3 | S14: 12.1 | T14: 5.4 | V14: 5.4 | W14: 8.35 | Y14: 8.35
A15: 9 | D15: 3 | E15: 8.85 | F15: 3 | G15: 11.85 | H15: 3 | I15: 8.75 | J15: 3 | K15: 11.75 | L15: 3 | M15: 9.2 | N15: 3 | O15: 12.2 | P15: 3 | Q15: 9.4 | R15: 3 | S15: 12.4 | T15: 6.45 | V15: 6.45 | W15: 8.35 | Y15: 8.35
A16: 10 | D16: 1 | E16: 8.3 | F16: 1 | G16: 9.3 | H16: 2 | I16: 8.2 | J16: 2 | K16: 10.2 | L16: 2 | M16: 7 | N16: 2 | O16: 9 | P16: 2 | Q16: 7.85 | R16: 2 | S16: 9.85 | T16: 3.9 | V16: 3.9 | W16: 6.55 | Y16: 6.55
A17: 11 | G17: 0 | K17: 0 | O17: 0 | S17: 0 | V17: 0 | Y17: 0
A18: 12 | G18: 0 | K18: 0 | O18: 0 | S18: 0 | V18: 0 | Y18: 0
A19: 13 | G19: 0 | K19: 0 | O19: 0 | S19: 0 | V19: 0 | Y19: 0
A20: 14 | G20: 0 | K20: 0 | O20: 0 | S20: 0 | V20: 0 | Y20: 0
A21: 15 | G21: 0 | J21: =IF(OR(I21<7,NOT(ISNUMBER(H21))),"",IF(H21=0,"",CHOOSE(H21,1,2,3,4,5))) ->  | K21: =SUM(I21:J21) -> 0 | N21: =IF(OR(M21<7,NOT(ISNUMBER(L21))),"",IF(L21=0,"",CHOOSE(L21,1,2,3,4,5))) ->  | O21: =SUM(M21:N21) -> 0 | R21: =IF(OR(Q21<7,NOT(ISNUMBER(P21))),"",IF(P21=0,"",CHOOSE(P21,1,2,3,4,5))) ->  | S21: =SUM(Q21:R21) -> 0 | V21: =SUM(T21:U21) -> 0 | Y21: =SUM(W21:X21) -> 0
A22: 16 | F22: =IF(OR(E22<7,NOT(ISNUMBER(D22))),"",IF(D22=0,"",CHOOSE(D22,1,2,3,4,5))) ->  | G22: =SUM(E22:F22) -> 0 | K22: 0 | O22: 0 | S22: 0 | V22: 0 | Y22: 0
A23: 17 | G23: 0 | K23: 0 | O23: 0 | S23: 0 | V23: 0 | Y23: 0
G24: 0 | K24: 0 | O24: 0 | S24: 0 | V24: 0 | Y24: 0
C25: Total | G25: =SUM(G7:G24) -> 112.1 | K25: =SUM(K7:K24) -> 113.1 | O25: =SUM(O7:O24) -> 111.3 | S25: =SUM(S7:S24) -> 116.2 | V25: =SUM(V7:V24) -> 54.6 | Y25: =SUM(Y7:Y24) -> 72 | Z25: Total Gal | AA25: =SUM(AA7:AA23) -> 579.3
A28: 3 | B28: JEUNE GARDE | C28: ARMENTIERES
B30: Nom | C30: Prénom | D30: Degré | E30: Note | G30: Sol | H30: Degré | I30: Note | K30: Saut | L30: Degré | M30: Note | O30: BP | P30: Degré | Q30: Note | S30: BF | T30: Note | V30: Arçons | W30: Note | Y30: AN | Z30: Total; des 10 Meilleurs notes
A31: 1 | D31: 3 | E31: 7.4 | F31: =IF(OR(E31<7,NOT(ISNUMBER(D31))),"",IF(D31=0,"",CHOOSE(D31,1,2,3,4,5))) -> 3 | G31: =SUM(E31:F31) -> 10.4 | H31: 3 | I31: 8.2 | J31: =IF(OR(I31<7,NOT(ISNUMBER(H31))),"",IF(H31=0,"",CHOOSE(H31,1,2,3,4,5))) -> 3 | K31: =SUM(I31:J31) -> 11.2 | L31: 3 | M31: 7.8 | N31: =IF(OR(M31<7,NOT(ISNUMBER(L31))),"",IF(L31=0,"",CHOOSE(L31,1,2,3,4,5))) -> 3 | O31: =SUM(M31:N31) -> 10.8 | P31: 2 | Q31: 8.6 | R31: =IF(OR(Q31<7,NOT(ISNUMBER(P31))),"",IF(P31=0,"",CHOOSE(P31,1,2,3,4,5))) -> 2 | S31: =SUM(Q31:R31) -> 10.6 | T31: 3.9 | U31: =IF(OR(T31<7,NOT(ISNUMBER(#REF!))),"",IF(#REF!=0,"",CHOOSE(#REF!,1,2,3,4,5))) ->  | V31: =SUM(T31:U31) -> 3.9 | W31: 4.9 | X31: =IF(OR(W31<7,NOT(ISNUMBER(#REF!))),"",IF(#REF!=0,"",CHOOSE(#REF!,1,2,3,4,5))) ->  | Y31: =SUM(W31:X31) -> 4.9
A32: 2 | D32: 3 | E32: 6.05 | F32: =IF(OR(E32<7,NOT(ISNUMBER(D32))),"",IF(D32=0,"",CHOOSE(D32,1,2,3,4,5))) ->  | G32: =SUM(E32:F32) -> 6.05 | H32: 2 | I32: 8.3 | J32: =IF(OR(I32<7,NOT(ISNUMBER(H32))),"",IF(H32=0,"",CHOOSE(H32,1,2,3,4,5))) -> 2 | K32: =SUM(I32:J32) -> 10.3 | L32: 3 | M32: 7.95 | N32: =IF(OR(M32<7,NOT(ISNUMBER(L32))),"",IF(L32=0,"",CHOOSE(L32,1,2,3,4,5))) -> 3 | O32: =SUM(M32:N32) -> 10.95 | P32: 2 | Q32: 8.8 | R32: =IF(OR(Q32<7,NOT(ISNUMBER(P32))),"",IF(P32=0,"",CHOOSE(P32,1,2,3,4,5))) -> 2 | S32: =SUM(Q32:R32) -> 10.8 | T32: 2.5 | U32: =IF(OR(T32<7,NOT(ISNUMBER(#REF!))),"",IF(#REF!=0,"",CHOOSE(#REF!,1,2,3,4,5))) ->  | V32: =SUM(T32:U32) -> 2.5 | W32: 7.65 | X32: =IF(OR(W32<7,NOT(ISNUMBER(#REF!))),"",IF(#REF!=0,"",CHOOSE(#REF!,1,2,3,4,5))) ->  | Y32: =SUM(W32:X32) -> 7.65 | Z32: Sol | AA32: =LARGE(G31:G48,1)+LARGE(G31:G48,2)+LARGE(G31:G48,3)+LARGE(G31:G48,4)+LARGE(G31:G48,5)+LARGE(G31:G48,6)+LARGE(G31:G48,7)+LARGE(G31:G48,8)+LARGE(G31:G48,9)+LARGE(G31:G48,10) -> 98.55
A33: 3 | D33: 1 | E33: 8.65 | F33: =IF(OR(E33<7,NOT(ISNUMBER(D33))),"",IF(D33=0,"",CHOOSE(D33,1,2,3,4,5))) -> 1 | G33: 9.65 | H33: 2 | I33: 8.45 | J33: 2 | K33: 10.45 | L33: 1 | M33: 8.8 | N33: 1 | O33: 9.8 | P33: 2 | Q33: 7.25 | R33: 2 | S33: 9.25 | T33: 2.6 | U33: =IF(OR(T33<7,NOT(ISNUMBER(#REF!))),"",IF(#REF!=0,"",CHOOSE(#REF!,1,2,3,4,5))) ->  | V33: =SUM(T33:U33) -> 2.6 | W33: 2.8 | X33: =IF(OR(W33<7,NOT(ISNUMBER(#REF!))),"",IF(#REF!=0,"",CHOOSE(#REF!,1,2,3,4,5))) ->  | Y33: 2.8 | Z33: Saut | AA33: =LARGE(K31:K48,1)+LARGE(K31:K48,2)+LARGE(K31:K48,3)+LARGE(K31:K48,4)+LARGE(K31:K48,5)+LARGE(K31:K48,6)+LARGE(K31:K48,7)+LARGE(K31:K48,8)+LARGE(K31:K48,9)+LARGE(K31:K48,10) -> 102.25
A34: 4 | D34: 2 | E34: 5.85 | G34: 5.85 | H34: 2 | I34: 8.55 | J34: 2 | K34: 10.55 | L34: 2 | M34: 8.8 | N34: 2 | O34: 10.8 | P34: 2 | Q34: 8.85 | R34: 2 | S34: 10.85 | T34: 1.85 | U34: =IF(OR(T34<7,NOT(ISNUMBER(#REF!))),"",IF(#REF!=0,"",CHOOSE(#REF!,1,2,3,4,5))) ->  | V34: 1.85 | W34: 3.35 | X34: =IF(OR(W34<7,NOT(ISNUMBER(#REF!))),"",IF(#REF!=0,"",CHOOSE(#REF!,1,2,3,4,5))) ->  | Y34: 3.35 | Z34: BP | AA34: =LARGE(O31:O48,1)+LARGE(O31:O48,2)+LARGE(O31:O48,3)+LARGE(O31:O48,4)+LARGE(O31:O48,5)+LARGE(O31:O48,6)+LARGE(O31:O48,7)+LARGE(O31:O48,8)+LARGE(O31:O48,9)+LARGE(O31:O48,10) -> 107.35
A35: 5 | D35: 2 | E35: 8.1 | F35: 2 | G35: =SUM(E35:F35) -> 10.1 | H35: 2 | I35: 8.1 | J35: 2 | K35: 10.1 | L35: 2 | M35: 7.3 | N35: 2 | O35: 9.3 | P35: 2 | Q35: 7.3 | R35: 2 | S35: 9.3 | T35: 3.7 | U35: =IF(OR(T35<7,NOT(ISNUMBER(#REF!))),"",IF(#REF!=0,"",CHOOSE(#REF!,1,2,3,4,5))) ->  | V35: 3.7 | W35: 1.15 | X35: =IF(OR(W35<7,NOT(ISNUMBER(#REF!))),"",IF(#REF!=0,"",CHOOSE(#REF!,1,2,3,4,5))) ->  | Y35: 1.15 | Z35: BF | AA35: =LARGE(S31:S48,1)+LARGE(S31:S48,2)+LARGE(S31:S48,3)+LARGE(S31:S48,4)+LARGE(S31:S48,5)+LARGE(S31:S48,6)+LARGE(S31:S48,7)+LARGE(S31:S48,8)+LARGE(S31:S48,9)+LARGE(S31:S48,10) -> 99.65
A36: 6 | D36: 4 | E36: 7.4 | F36: 4 | G36: 11.4 | H36: 3 | I36: 7.75 | J36: 3 | K36: 10.75 | L36: 3 | M36: 9.2 | N36: 3 | O36: 12.2 | P36: 3 | Q36: 8.75 | R36: 3 | S36: 11.75 | T36: 3.5 | U36: =IF(OR(T36<7,NOT(ISNUMBER(#REF!))),"",IF(#REF!=0,"",CHOOSE(#REF!,1,2,3,4,5))) ->  | V36: 3.5 | W36: 6.45 | X36: =IF(OR(W36<7,NOT(ISNUMBER(#REF!))),"",IF(#REF!=0,"",CHOOSE(#REF!,1,2,3,4,5))) ->  | Y36: 6.45 | Z36: Arçons | AA36: =LARGE(V31:V48,1)+LARGE(V31:V48,2)+LARGE(V31:V48,3)+LARGE(V31:V48,4)+LARGE(V31:V48,5)+LARGE(V31:V48,6)+LARGE(V31:V48,7)+LARGE(V31:V48,8)+LARGE(V31:V48,9)+LARGE(V31:V48,10) -> 33.95
A37: 7 | D37: 4 | E37: 8.4 | F37: 4 | G37: 12.4 | H37: 3 | I37: 9.45 | J37: 3 | K37: 12.45 | L37: 4 | M37: 9.35 | N37: 4 | O37: 13.35 | P37: 3 | Q37: 9 | R37: 3 | S37: 12 | T37: 7.1 | U37: =IF(OR(T37<7,NOT(ISNUMBER(#REF!))),"",IF(#REF!=0,"",CHOOSE(#REF!,1,2,3,4,5))) ->  | V37: 7.1 | W37: 8.25 | X37: =IF(OR(W37<7,NOT(ISNUMBER(#REF!))),"",IF(#REF!=0,"",CHOOSE(#REF!,1,2,3,4,5))) ->  | Y37: 8.25 | Z37: Anneaux | AA37: =LARGE(Y31:Y48,1)+LARGE(Y31:Y48,2)+LARGE(Y31:Y48,3)+LARGE(Y31:Y48,4)+LARGE(Y31:Y48,5)+LARGE(Y31:Y48,6)+LARGE(Y31:Y48,7)+LARGE(Y31:Y48,8)+LARGE(Y31:Y48,9)+LARGE(Y31:Y48,10) -> 44.05
A38: 8 | D38: 2 | E38: 7.35 | F38: 2 | G38: 9.35 | H38: 2 | I38: 7 | J38: 2 | K38: 9 | L38: 2 | M38: 9.15 | N38: 2 | O38: 11.15 | P38: 2 | Q38: 6.7 | S38: 6.7 | T38: 2.7 | U38: =IF(OR(T38<7,NOT(ISNUMBER(#REF!))),"",IF(#REF!=0,"",CHOOSE(#REF!,1,2,3,4,5))) ->  | V38: 2.7 | W38: 1.8 | X38: =IF(OR(W38<7,NOT(ISNUMBER(#REF!))),"",IF(#REF!=0,"",CHOOSE(#REF!,1,2,3,4,5))) ->  | Y38: 1.8
A39: 9 | D39: 2 | E39: 6.9 | G39: 6.9 | H39: 2 | I39: 5 | K39: 5 | L39: 1 | M39: 7.8 | N39: 1 | O39: 8.8 | P39: 2 | Q39: 6.8 | S39: 6.8 | T39: 1 | U39: =IF(OR(T39<7,NOT(ISNUMBER(#REF!))),"",IF(#REF!=0,"",CHOOSE(#REF!,1,2,3,4,5))) ->  | V39: 1 | W39: 2.15 | X39: =IF(OR(W39<7,NOT(ISNUMBER(#REF!))),"",IF(#REF!=0,"",CHOOSE(#REF!,1,2,3,4,5))) ->  | Y39: 2.15
A40: 10 | D40: 2 | E40: 8.2 | F40: 2 | G40: 10.2 | H40: 2 | I40: 5 | K40: 5 | L40: 2 | M40: 7.75 | N40: 2 | O40: 9.75 | P40: 2 | Q40: 6.65 | S40: 6.65 | T40: 1 | U40: =IF(OR(T40<7,NOT(ISNUMBER(#REF!))),"",IF(#REF!=0,"",CHOOSE(#REF!,1,2,3,4,5))) ->  | V40: 1 | W40: 1.3 | X40: =IF(OR(W40<7,NOT(ISNUMBER(#REF!))),"",IF(#REF!=0,"",CHOOSE(#REF!,1,2,3,4,5))) ->  | Y40: 1.3
A41: 11 | D41: 4 | E41: 8.1 | F41: 4 | G41: 12.1 | H41: 3 | I41: 9.45 | J41: 3 | K41: 12.45 | L41: 2 | M41: 7.25 | N41: 2 | O41: 9.25 | P41: 3 | Q41: 8.6 | R41: 3 | S41: 11.6 | T41: 5.1 | U41: =IF(OR(T41<7,NOT(ISNUMBER(#REF!))),"",IF(#REF!=0,"",CHOOSE(#REF!,1,2,3,4,5))) ->  | V41: 5.1 | W41: 5.4 | X41: =IF(OR(W41<7,NOT(ISNUMBER(#REF!))),"",IF(#REF!=0,"",CHOOSE(#REF!,1,2,3,4,5))) ->  | Y41: 5.4
A42: 12 | G42: 0 | K42: 0 | O42: 0 | S42: 0 | U42: =IF(OR(T42<7,NOT(ISNUMBER(#REF!))),"",IF(#REF!=0,"",CHOOSE(#REF!,1,2,3,4,5))) ->  | V42: 0 | X42: =IF(OR(W42<7,NOT(ISNUMBER(#REF!))),"",IF(#REF!=0,"",CHOOSE(#REF!,1,2,3,4,5))) ->  | Y42: 0
A43: 13 | G43: 0 | K43: 0 | O43: 0 | S43: 0 | U43: =IF(OR(T43<7,NOT(ISNUMBER(#REF!))),"",IF(#REF!=0,"",CHOOSE(#REF!,1,2,3,4,5))) ->  | V43: 0 | X43: =IF(OR(W43<7,NOT(ISNUMBER(#REF!))),"",IF(#REF!=0,"",CHOOSE(#REF!,1,2,3,4,5))) ->  | Y43: 0
A44: 14 | G44: 0 | K44: 0 | O44: 0 | S44: 0 | U44: =IF(OR(T44<7,NOT(ISNUMBER(#REF!))),"",IF(#REF!=0,"",CHOOSE(#REF!,1,2,3,4,5))) ->  | V44: 0 | X44: =IF(OR(W44<7,NOT(ISNUMBER(#REF!))),"",IF(#REF!=0,"",CHOOSE(#REF!,1,2,3,4,5))) ->  | Y44: 0
A45: 15 | G45: 0 | K45: 0 | O45: 0 | S45: 0 | U45: =IF(OR(T45<7,NOT(ISNUMBER(#REF!))),"",IF(#REF!=0,"",CHOOSE(#REF!,1,2,3,4,5))) ->  | V45: 0 | X45: =IF(OR(W45<7,NOT(ISNUMBER(#REF!))),"",IF(#REF!=0,"",CHOOSE(#REF!,1,2,3,4,5))) ->  | Y45: 0
A46: 16 | G46: 0 | K46: 0 | O46: 0 | S46: 0 | U46: =IF(OR(T46<7,NOT(ISNUMBER(#REF!))),"",IF(#REF!=0,"",CHOOSE(#REF!,1,2,3,4,5))) ->  | V46: 0 | X46: =IF(OR(W46<7,NOT(ISNUMBER(#REF!))),"",IF(#REF!=0,"",CHOOSE(#REF!,1,2,3,4,5))) ->  | Y46: 0
A47: 17 | G47: 0 | K47: 0 | O47: 0 | S47: 0 | U47: =IF(OR(T47<7,NOT(ISNUMBER(#REF!))),"",IF(#REF!=0,"",CHOOSE(#REF!,1,2,3,4,5))) ->  | V47: 0 | X47: =IF(OR(W47<7,NOT(ISNUMBER(#REF!))),"",IF(#REF!=0,"",CHOOSE(#REF!,1,2,3,4,5))) ->  | Y47: 0
G48: =SUM(E48:F48) -> 0 | K48: 0 | O48: 0 | S48: 0 | U48: =IF(OR(T48<7,NOT(ISNUMBER(#REF!))),"",IF(#REF!=0,"",CHOOSE(#REF!,1,2,3,4,5))) ->  | V48: 0 | X48: =IF(OR(W48<7,NOT(ISNUMBER(#REF!))),"",IF(#REF!=0,"",CHOOSE(#REF!,1,2,3,4,5))) ->  | Y48: 0
C49: Total | G49: =SUM(G31:G48) -> 104.4 | K49: =SUM(K31:K48) -> 107.25 | O49: =SUM(O31:O48) -> 116.15 | S49: =SUM(S31:S48) -> 106.3 | V49: =SUM(V31:V48) -> 34.95 | Y49: =SUM(Y31:Y48) -> 45.2 | Z49: Total Gal | AA49: =SUM(AA31:AA47) -> 485.8
A58: 3 | B58: JEUNE GARDE | C58: ARMENTIERES
B60: Nom | C60: Prénom | D60: Degré | E60: Note | G60: Sol | H60: Degré | I60: Note | K60: Saut | L60: Degré | M60: Note | O60: BP | P60: Degré | Q60: Note | S60: BF | T60: Note | V60: Arçons | W60: Note | Y60: AN | Z60: Total; des 10 Meilleurs notes
A61: 1 | D61: 3 | E61: 7.4 | F61: =IF(OR(E61<7,NOT(ISNUMBER(D61))),"",IF(D61=0,"",CHOOSE(D61,1,2,3,4,5))) -> 3 | G61: =SUM(E61:F61) -> 10.4 | H61: 3 | I61: 8.2 | J61: =IF(OR(I61<7,NOT(ISNUMBER(H61))),"",IF(H61=0,"",CHOOSE(H61,1,2,3,4,5))) -> 3 | K61: =SUM(I61:J61) -> 11.2 | L61: 3 | M61: 7.8 | N61: =IF(OR(M61<7,NOT(ISNUMBER(L61))),"",IF(L61=0,"",CHOOSE(L61,1,2,3,4,5))) -> 3 | O61: =SUM(M61:N61) -> 10.8 | P61: 2 | Q61: 8.6 | R61: =IF(OR(Q61<7,NOT(ISNUMBER(P61))),"",IF(P61=0,"",CHOOSE(P61,1,2,3,4,5))) -> 2 | S61: =SUM(Q61:R61) -> 10.6 | T61: 3.9 | U61: =IF(OR(T61<7,NOT(ISNUMBER(#REF!))),"",IF(#REF!=0,"",CHOOSE(#REF!,1,2,3,4,5))) ->  | V61: =SUM(T61:U61) -> 3.9 | W61: 4.9 | X61: =IF(OR(W61<7,NOT(ISNUMBER(#REF!))),"",IF(#REF!=0,"",CHOOSE(#REF!,1,2,3,4,5))) ->  | Y61: =SUM(W61:X61) -> 4.9
A62: 2 | D62: 3 | E62: 6.05 | F62: =IF(OR(E62<7,NOT(ISNUMBER(D62))),"",IF(D62=0,"",CHOOSE(D62,1,2,3,4,5))) ->  | G62: =SUM(E62:F62) -> 6.05 | H62: 2 | I62: 8.3 | J62: =IF(OR(I62<7,NOT(ISNUMBER(H62))),"",IF(H62=0,"",CHOOSE(H62,1,2,3,4,5))) -> 2 | K62: =SUM(I62:J62) -> 10.3 | L62: 3 | M62: 7.95 | N62: =IF(OR(M62<7,NOT(ISNUMBER(L62))),"",IF(L62=0,"",CHOOSE(L62,1,2,3,4,5))) -> 3 | O62: =SUM(M62:N62) -> 10.95 | P62: 2 | Q62: 8.8 | R62: =IF(OR(Q62<7,NOT(ISNUMBER(P62))),"",IF(P62=0,"",CHOOSE(P62,1,2,3,4,5))) -> 2 | S62: =SUM(Q62:R62) -> 10.8 | T62: 2.5 | U62: =IF(OR(T62<7,NOT(ISNUMBER(#REF!))),"",IF(#REF!=0,"",CHOOSE(#REF!,1,2,3,4,5))) ->  | V62: =SUM(T62:U62) -> 2.5 | W62: 7.65 | X62: =IF(OR(W62<7,NOT(ISNUMBER(#REF!))),"",IF(#REF!=0,"",CHOOSE(#REF!,1,2,3,4,5))) ->  | Y62: =SUM(W62:X62) -> 7.65 | Z62: Sol | AA62: =LARGE(G61:G78,1)+LARGE(G61:G78,2)+LARGE(G61:G78,3)+LARGE(G61:G78,4)+LARGE(G61:G78,5)+LARGE(G61:G78,6)+LARGE(G61:G78,7)+LARGE(G61:G78,8)+LARGE(G61:G78,9)+LARGE(G61:G78,10) -> 98.55
A63: 3 | D63: 1 | E63: 8.65 | F63: =IF(OR(E63<7,NOT(ISNUMBER(D63))),"",IF(D63=0,"",CHOOSE(D63,1,2,3,4,5))) -> 1 | G63: 9.65 | H63: 2 | I63: 8.45 | J63: 2 | K63: 10.45 | L63: 1 | M63: 8.8 | N63: 1 | O63: 9.8 | P63: 2 | Q63: 7.25 | R63: 2 | S63: 9.25 | T63: 2.6 | U63: =IF(OR(T63<7,NOT(ISNUMBER(#REF!))),"",IF(#REF!=0,"",CHOOSE(#REF!,1,2,3,4,5))) ->  | V63: =SUM(T63:U63) -> 2.6 | W63: 2.8 | X63: =IF(OR(W63<7,NOT(ISNUMBER(#REF!))),"",IF(#REF!=0,"",CHOOSE(#REF!,1,2,3,4,5))) ->  | Y63: 2.8 | Z63: Saut | AA63: =LARGE(K61:K78,1)+LARGE(K61:K78,2)+LARGE(K61:K78,3)+LARGE(K61:K78,4)+LARGE(K61:K78,5)+LARGE(K61:K78,6)+LARGE(K61:K78,7)+LARGE(K61:K78,8)+LARGE(K61:K78,9)+LARGE(K61:K78,10) -> 102.25
A64: 4 | D64: 2 | E64: 5.85 | G64: 5.85 | H64: 2 | I64: 8.55 | J64: 2 | K64: 10.55 | L64: 2 | M64: 8.8 | N64: 2 | O64: 10.8 | P64: 2 | Q64: 8.85 | R64: 2 | S64: 10.85 | T64: 1.85 | U64: =IF(OR(T64<7,NOT(ISNUMBER(#REF!))),"",IF(#REF!=0,"",CHOOSE(#REF!,1,2,3,4,5))) ->  | V64: 1.85 | W64: 3.35 | X64: =IF(OR(W64<7,NOT(ISNUMBER(#REF!))),"",IF(#REF!=0,"",CHOOSE(#REF!,1,2,3,4,5))) ->  | Y64: 3.35 | Z64: BP | AA64: =LARGE(O61:O78,1)+LARGE(O61:O78,2)+LARGE(O61:O78,3)+LARGE(O61:O78,4)+LARGE(O61:O78,5)+LARGE(O61:O78,6)+LARGE(O61:O78,7)+LARGE(O61:O78,8)+LARGE(O61:O78,9)+LARGE(O61:O78,10) -> 107.35
A65: 5 | D65: 2 | E65: 8.1 | F65: =IF(OR(E65<7,NOT(ISNUMBER(D65))),"",IF(D65=0,"",CHOOSE(D65,1,2,3,4,5))) -> 2 | G65: =SUM(E65:F65) -> 10.1 | H65: 2 | I65: 8.1 | J65: =IF(OR(I65<7,NOT(ISNUMBER(H65))),"",IF(H65=0,"",CHOOSE(H65,1,2,3,4,5))) -> 2 | K65: =SUM(I65:J65) -> 10.1 | L65: 2 | M65: 7.3 | N65: =IF(OR(M65<7,NOT(ISNUMBER(L65))),"",IF(L65=0,"",CHOOSE(L65,1,2,3,4,5))) -> 2 | O65: =SUM(M65:N65) -> 9.3 | P65: 2 | Q65: 7.3 | R65: =IF(OR(Q65<7,NOT(ISNUMBER(P65))),"",IF(P65=0,"",CHOOSE(P65,1,2,3,4,5))) -> 2 | S65: =SUM(Q65:R65) -> 9.3 | T65: 3.7 | U65: =IF(OR(T65<7,NOT(ISNUMBER(#REF!))),"",IF(#REF!=0,"",CHOOSE(#REF!,1,2,3,4,5))) ->  | V65: =SUM(T65:U65) -> 3.7 | W65: 1.15 | X65: =IF(OR(W65<7,NOT(ISNUMBER(#REF!))),"",IF(#REF!=0,"",CHOOSE(#REF!,1,2,3,4,5))) ->  | Y65: =SUM(W65:X65) -> 1.15 | Z65: BF | AA65: =LARGE(S61:S78,1)+LARGE(S61:S78,2)+LARGE(S61:S78,3)+LARGE(S61:S78,4)+LARGE(S61:S78,5)+LARGE(S61:S78,6)+LARGE(S61:S78,7)+LARGE(S61:S78,8)+LARGE(S61:S78,9)+LARGE(S61:S78,10) -> 99.65
A66: 6 | D66: 4 | E66: 7.4 | F66: 4 | G66: 11.4 | H66: 3 | I66: 7.75 | J66: 3 | K66: 10.75 | L66: 3 | M66: 9.2 | N66: 3 | O66: 12.2 | P66: 3 | Q66: 8.75 | R66: 3 | S66: 11.75 | T66: 3.5 | U66: =IF(OR(T66<7,NOT(ISNUMBER(#REF!))),"",IF(#REF!=0,"",CHOOSE(#REF!,1,2,3,4,5))) ->  | V66: 3.5 | W66: 6.45 | X66: =IF(OR(W66<7,NOT(ISNUMBER(#REF!))),"",IF(#REF!=0,"",CHOOSE(#REF!,1,2,3,4,5))) ->  | Y66: 6.45 | Z66: Arçons | AA66: =LARGE(V61:V78,1)+LARGE(V61:V78,2)+LARGE(V61:V78,3)+LARGE(V61:V78,4)+LARGE(V61:V78,5)+LARGE(V61:V78,6)+LARGE(V61:V78,7)+LARGE(V61:V78,8)+LARGE(V61:V78,9)+LARGE(V61:V78,10) -> 33.95
A67: 7 | D67: 4 | E67: 8.4 | F67: 4 | G67: 12.4 | H67: 3 | I67: 9.45 | J67: 3 | K67: 12.45 | L67: 4 | M67: 9.35 | N67: 4 | O67: 13.35 | P67: 3 | Q67: 9 | R67: 3 | S67: 12 | T67: 7.1 | U67: =IF(OR(T67<7,NOT(ISNUMBER(#REF!))),"",IF(#REF!=0,"",CHOOSE(#REF!,1,2,3,4,5))) ->  | V67: 7.1 | W67: 8.25 | X67: =IF(OR(W67<7,NOT(ISNUMBER(#REF!))),"",IF(#REF!=0,"",CHOOSE(#REF!,1,2,3,4,5))) ->  | Y67: 8.25 | Z67: Anneaux | AA67: =LARGE(Y61:Y78,1)+LARGE(Y61:Y78,2)+LARGE(Y61:Y78,3)+LARGE(Y61:Y78,4)+LARGE(Y61:Y78,5)+LARGE(Y61:Y78,6)+LARGE(Y61:Y78,7)+LARGE(Y61:Y78,8)+LARGE(Y61:Y78,9)+LARGE(Y61:Y78,10) -> 44.05
A68: 8 | D68: 2 | E68: 7.35 | F68: 2 | G68: 9.35 | H68: 2 | I68: 7 | J68: 2 | K68: 9 | L68: 2 | M68: 9.15 | N68: 2 | O68: 11.15 | P68: 2 | Q68: 6.7 | S68: 6.7 | T68: 2.7 | U68: =IF(OR(T68<7,NOT(ISNUMBER(#REF!))),"",IF(#REF!=0,"",CHOOSE(#REF!,1,2,3,4,5))) ->  | V68: 2.7 | W68: 1.8 | X68: =IF(OR(W68<7,NOT(ISNUMBER(#REF!))),"",IF(#REF!=0,"",CHOOSE(#REF!,1,2,3,4,5))) ->  | Y68: 1.8
A69: 9 | D69: 2 | E69: 6.9 | G69: 6.9 | H69: 2 | I69: 5 | K69: 5 | L69: 1 | M69: 7.8 | N69: 1 | O69: 8.8 | P69: 2 | Q69: 6.8 | S69: 6.8 | T69: 1 | U69: =IF(OR(T69<7,NOT(ISNUMBER(#REF!))),"",IF(#REF!=0,"",CHOOSE(#REF!,1,2,3,4,5))) ->  | V69: 1 | W69: 2.15 | X69: =IF(OR(W69<7,NOT(ISNUMBER(#REF!))),"",IF(#REF!=0,"",CHOOSE(#REF!,1,2,3,4,5))) ->  | Y69: 2.15
A70: 10 | D70: 2 | E70: 8.2 | F70: 2 | G70: 10.2 | H70: 2 | I70: 5 | K70: 5 | L70: 2 | M70: 7.75 | N70: 2 | O70: 9.75 | P70: 2 | Q70: 6.65 | S70: 6.65 | T70: 1 | U70: =IF(OR(T70<7,NOT(ISNUMBER(#REF!))),"",IF(#REF!=0,"",CHOOSE(#REF!,1,2,3,4,5))) ->  | V70: 1 | W70: 1.3 | X70: =IF(OR(W70<7,NOT(ISNUMBER(#REF!))),"",IF(#REF!=0,"",CHOOSE(#REF!,1,2,3,4,5))) ->  | Y70: 1.3
A71: 11 | D71: 4 | E71: 8.1 | F71: 4 | G71: 12.1 | H71: 3 | I71: 9.45 | J71: 3 | K71: 12.45 | L71: 2 | M71: 7.25 | N71: 2 | O71: 9.25 | P71: 3 | Q71: 8.6 | R71: 3 | S71: 11.6 | T71: 5.1 | U71: =IF(OR(T71<7,NOT(ISNUMBER(#REF!))),"",IF(#REF!=0,"",CHOOSE(#REF!,1,2,3,4,5))) ->  | V71: 5.1 | W71: 5.4 | X71: =IF(OR(W71<7,NOT(ISNUMBER(#REF!))),"",IF(#REF!=0,"",CHOOSE(#REF!,1,2,3,4,5))) ->  | Y71: 5.4
A72: 12 | G72: 0 | K72: 0 | O72: 0 | S72: 0 | U72: =IF(OR(T72<7,NOT(ISNUMBER(#REF!))),"",IF(#REF!=0,"",CHOOSE(#REF!,1,2,3,4,5))) ->  | V72: 0 | X72: =IF(OR(W72<7,NOT(ISNUMBER(#REF!))),"",IF(#REF!=0,"",CHOOSE(#REF!,1,2,3,4,5))) ->  | Y72: 0
A73: 13 | G73: 0 | K73: 0 | O73: 0 | S73: 0 | U73: =IF(OR(T73<7,NOT(ISNUMBER(#REF!))),"",IF(#REF!=0,"",CHOOSE(#REF!,1,2,3,4,5))) ->  | V73: 0 | X73: =IF(OR(W73<7,NOT(ISNUMBER(#REF!))),"",IF(#REF!=0,"",CHOOSE(#REF!,1,2,3,4,5))) ->  | Y73: 0
A74: 14 | G74: 0 | K74: 0 | O74: 0 | S74: 0 | U74: =IF(OR(T74<7,NOT(ISNUMBER(#REF!))),"",IF(#REF!=0,"",CHOOSE(#REF!,1,2,3,4,5))) ->  | V74: 0 | X74: =IF(OR(W74<7,NOT(ISNUMBER(#REF!))),"",IF(#REF!=0,"",CHOOSE(#REF!,1,2,3,4,5))) ->  | Y74: 0
A75: 15 | G75: 0 | K75: 0 | O75: 0 | S75: 0 | U75: =IF(OR(T75<7,NOT(ISNUMBER(#REF!))),"",IF(#REF!=0,"",CHOOSE(#REF!,1,2,3,4,5))) ->  | V75: 0 | X75: =IF(OR(W75<7,NOT(ISNUMBER(#REF!))),"",IF(#REF!=0,"",CHOOSE(#REF!,1,2,3,4,5))) ->  | Y75: 0
A76: 16 | G76: 0 | K76: 0 | O76: 0 | S76: 0 | U76: =IF(OR(T76<7,NOT(ISNUMBER(#REF!))),"",IF(#REF!=0,"",CHOOSE(#REF!,1,2,3,4,5))) ->  | V76: 0 | X76: =IF(OR(W76<7,NOT(ISNUMBER(#REF!))),"",IF(#REF!=0,"",CHOOSE(#REF!,1,2,3,4,5))) ->  | Y76: 0
A77: 17 | G77: 0 | K77: 0 | O77: 0 | S77: 0 | U77: =IF(OR(T77<7,NOT(ISNUMBER(#REF!))),"",IF(#REF!=0,"",CHOOSE(#REF!,1,2,3,4,5))) ->  | V77: 0 | X77: =IF(OR(W77<7,NOT(ISNUMBER(#REF!))),"",IF(#REF!=0,"",CHOOSE(#REF!,1,2,3,4,5))) ->  | Y77: 0
G78: 0 | K78: 0 | O78: 0 | S78: 0 | U78: =IF(OR(T78<7,NOT(ISNUMBER(#REF!))),"",IF(#REF!=0,"",CHOOSE(#REF!,1,2,3,4,5))) ->  | V78: 0 | X78: =IF(OR(W78<7,NOT(ISNUMBER(#REF!))),"",IF(#REF!=0,"",CHOOSE(#REF!,1,2,3,4,5))) ->  | Y78: 0
C79: Total | G79: =SUM(G61:G78) -> 104.4 | K79: =SUM(K61:K78) -> 107.25 | O79: =SUM(O61:O78) -> 116.15 | S79: =SUM(S61:S78) -> 106.3 | V79: =SUM(V61:V78) -> 34.95 | Y79: =SUM(Y61:Y78) -> 45.2 | Z79: Total Gal | AA79: =SUM(AA61:AA77) -> 485.8

Sheet Challenge
A1: JP1 | B1: JEANNE ARC
B2: MOUVAUX
A3: 1 | B3: Nom | C3: Prénom | D3: Degré | E3: Note | G3: Sol | H3: Degré | I3: Note | K3: Saut | L3: Degré | M3: Note | O3: BP | P3: Degré | Q3: Note | S3: BF | T3: Note | V3: Arçons | W3: Note | Y3: AN | Z3: Total; des 3 notes
D4: 3 | E4: 7.4 | F4: =IF(OR(E4<7,NOT(ISNUMBER(D4))),"",IF(D4=0,"",CHOOSE(D4,1,2,3,4,5))) -> 3 | G4: =SUM(E4:F4) -> 10.4 | H4: 3 | I4: 8.2 | J4: =IF(OR(I4<7,NOT(ISNUMBER(H4))),"",IF(H4=0,"",CHOOSE(H4,1,2,3,4,5))) -> 3 | K4: =SUM(I4:J4) -> 11.2 | L4: 3 | M4: 7.8 | N4: =IF(OR(M4<7,NOT(ISNUMBER(L4))),"",IF(L4=0,"",CHOOSE(L4,1,2,3,4,5))) -> 3 | O4: =SUM(M4:N4) -> 10.8 | P4: 2 | Q4: 8.6 | R4: =IF(OR(Q4<7,NOT(ISNUMBER(P4))),"",IF(P4=0,"",CHOOSE(P4,1,2,3,4,5))) -> 2 | S4: =SUM(Q4:R4) -> 10.6 | T4: 3.9 | U4: =IF(OR(T4<7,NOT(ISNUMBER(#REF!))),"",IF(#REF!=0,"",CHOOSE(#REF!,1,2,3,4,5))) ->  | V4: =SUM(T4:U4) -> 3.9 | W4: 4.9 | X4: =IF(OR(W4<7,NOT(ISNUMBER(#REF!))),"",IF(#REF!=0,"",CHOOSE(#REF!,1,2,3,4,5))) ->  | Y4: =SUM(W4:X4) -> 4.9
D5: 3 | E5: 6.05 | F5: =IF(OR(E5<7,NOT(ISNUMBER(D5))),"",IF(D5=0,"",CHOOSE(D5,1,2,3,4,5))) ->  | G5: =SUM(E5:F5) -> 6.05 | H5: 2 | I5: 8.3 | J5: =IF(OR(I5<7,NOT(ISNUMBER(H5))),"",IF(H5=0,"",CHOOSE(H5,1,2,3,4,5))) -> 2 | K5: =SUM(I5:J5) -> 10.3 | L5: 3 | M5: 7.95 | N5: =IF(OR(M5<7,NOT(ISNUMBER(L5))),"",IF(L5=0,"",CHOOSE(L5,1,2,3,4,5))) -> 3 | O5: =SUM(M5:N5) -> 10.95 | P5: 2 | Q5: 8.8 | R5: =IF(OR(Q5<7,NOT(ISNUMBER(P5))),"",IF(P5=0,"",CHOOSE(P5,1,2,3,4,5))) -> 2 | S5: =SUM(Q5:R5) -> 10.8 | T5: 2.5 | U5: =IF(OR(T5<7,NOT(ISNUMBER(#REF!))),"",IF(#REF!=0,"",CHOOSE(#REF!,1,2,3,4,5))) ->  | V5: =SUM(T5:U5) -> 2.5 | W5: 7.65 | X5: =IF(OR(W5<7,NOT(ISNUMBER(#REF!))),"",IF(#REF!=0,"",CHOOSE(#REF!,1,2,3,4,5))) ->  | Y5: =SUM(W5:X5) -> 7.65 | Z5: Sol | AA5: =LARGE(G4:G21,1)+LARGE(G4:G21,2)+LARGE(G4:G21,3) -> 35.9
D6: 1 | E6: 8.65 | F6: =IF(OR(E6<7,NOT(ISNUMBER(D6))),"",IF(D6=0,"",CHOOSE(D6,1,2,3,4,5))) -> 1 | G6: 9.65 | H6: 2 | I6: 8.45 | J6: 2 | K6: 10.45 | L6: 1 | M6: 8.8 | N6: 1 | O6: 9.8 | P6: 2 | Q6: 7.25 | R6: 2 | S6: 9.25 | T6: 2.6 | U6: =IF(OR(T6<7,NOT(ISNUMBER(#REF!))),"",IF(#REF!=0,"",CHOOSE(#REF!,1,2,3,4,5))) ->  | V6: =SUM(T6:U6) -> 2.6 | W6: 2.8 | X6: =IF(OR(W6<7,NOT(ISNUMBER(#REF!))),"",IF(#REF!=0,"",CHOOSE(#REF!,1,2,3,4,5))) ->  | Y6: 2.8 | Z6: Saut | AA6: =LARGE(K4:K21,1)+LARGE(K4:K21,2)+LARGE(K4:K21,3) -> 36.1
D7: 2 | E7: 5.85 | G7: 5.85 | H7: 2 | I7: 8.55 | J7: 2 | K7: 10.55 | L7: 2 | M7: 8.8 | N7: 2 | O7: 10.8 | P7: 2 | Q7: 8.85 | R7: 2 | S7: 10.85 | T7: 1.85 | U7: =IF(OR(T7<7,NOT(ISNUMBER(#REF!))),"",IF(#REF!=0,"",CHOOSE(#REF!,1,2,3,4,5))) ->  | V7: 1.85 | W7: 3.35 | X7: =IF(OR(W7<7,NOT(ISNUMBER(#REF!))),"",IF(#REF!=0,"",CHOOSE(#REF!,1,2,3,4,5))) ->  | Y7: 3.35 | Z7: BP | AA7: =LARGE(O4:O21,1)+LARGE(O4:O21,2)+LARGE(O4:O21,3) -> 36.7
D8: 2 | E8: 8.1 | F8: 2 | G8: =SUM(E8:F8) -> 10.1 | H8: 2 | I8: 8.1 | J8: 2 | K8: 10.1 | L8: 2 | M8: 7.3 | N8: 2 | O8: 9.3 | P8: 2 | Q8: 7.3 | R8: 2 | S8: 9.3 | T8: 3.7 | U8: =IF(OR(T8<7,NOT(ISNUMBER(#REF!))),"",IF(#REF!=0,"",CHOOSE(#REF!,1,2,3,4,5))) ->  | V8: 3.7 | W8: 1.15 | X8: =IF(OR(W8<7,NOT(ISNUMBER(#REF!))),"",IF(#REF!=0,"",CHOOSE(#REF!,1,2,3,4,5))) ->  | Y8: 1.15 | Z8: BF | AA8: =LARGE(S4:S21,1)+LARGE(S4:S21,2)+LARGE(S4:S21,3) -> 35.35
D9: 4 | E9: 7.4 | F9: 4 | G9: 11.4 | H9: 3 | I9: 7.75 | J9: 3 | K9: 10.75 | L9: 3 | M9: 9.2 | N9: 3 | O9: 12.2 | P9: 3 | Q9: 8.75 | R9: 3 | S9: 11.75 | T9: 3.5 | U9: =IF(OR(T9<7,NOT(ISNUMBER(#REF!))),"",IF(#REF!=0,"",CHOOSE(#REF!,1,2,3,4,5))) ->  | V9: 3.5 | W9: 6.45 | X9: =IF(OR(W9<7,NOT(ISNUMBER(#REF!))),"",IF(#REF!=0,"",CHOOSE(#REF!,1,2,3,4,5))) ->  | Y9: 6.45 | Z9: Arcons | AA9: =LARGE(V4:V21,1)+LARGE(V4:V21,2)+LARGE(V4:V21,3) -> 16.1
D10: 4 | E10: 8.4 | F10: 4 | G10: 12.4 | H10: 3 | I10: 9.45 | J10: 3 | K10: 12.45 | L10: 4 | M10: 9.35 | N10: 4 | O10: 13.35 | P10: 3 | Q10: 9 | R10: 3 | S10: 12 | T10: 7.1 | U10: =IF(OR(T10<7,NOT(ISNUMBER(#REF!))),"",IF(#REF!=0,"",CHOOSE(#REF!,1,2,3,4,5))) ->  | V10: 7.1 | W10: 8.25 | X10: =IF(OR(W10<7,NOT(ISNUMBER(#REF!))),"",IF(#REF!=0,"",CHOOSE(#REF!,1,2,3,4,5))) ->  | Y10: 8.25 | Z10: Anneaux | AA10: =LARGE(Y4:Y21,1)+LARGE(Y4:Y21,2)+LARGE(Y4:Y21,3) -> 22.35
D11: 2 | E11: 7.35 | F11: 2 | G11: 9.35 | H11: 2 | I11: 7 | J11: 2 | K11: 9 | L11: 2 | M11: 9.15 | N11: 2 | O11: 11.15 | P11: 2 | Q11: 6.7 | S11: 6.7 | T11: 2.7 | U11: =IF(OR(T11<7,NOT(ISNUMBER(#REF!))),"",IF(#REF!=0,"",CHOOSE(#REF!,1,2,3,4,5))) ->  | V11: 2.7 | W11: 1.8 | X11: =IF(OR(W11<7,NOT(ISNUMBER(#REF!))),"",IF(#REF!=0,"",CHOOSE(#REF!,1,2,3,4,5))) ->  | Y11: 1.8
D12: 2 | E12: 6.9 | G12: 6.9 | H12: 2 | I12: 5 | K12: 5 | L12: 1 | M12: 7.8 | N12: 1 | O12: 8.8 | P12: 2 | Q12: 6.8 | S12: 6.8 | T12: 1 | U12: =IF(OR(T12<7,NOT(ISNUMBER(#REF!))),"",IF(#REF!=0,"",CHOOSE(#REF!,1,2,3,4,5))) ->  | V12: 1 | W12: 2.15 | X12: =IF(OR(W12<7,NOT(ISNUMBER(#REF!))),"",IF(#REF!=0,"",CHOOSE(#REF!,1,2,3,4,5))) ->  | Y12: 2.15
D13: 2 | E13: 8.2 | F13: 2 | G13: 10.2 | H13: 2 | I13: 5 | K13: 5 | L13: 2 | M13: 7.75 | N13: 2 | O13: 9.75 | P13: 2 | Q13: 6.65 | S13: 6.65 | T13: 1 | U13: =IF(OR(T13<7,NOT(ISNUMBER(#REF!))),"",IF(#REF!=0,"",CHOOSE(#REF!,1,2,3,4,5))) ->  | V13: 1 | W13: 1.3 | X13: =IF(OR(W13<7,NOT(ISNUMBER(#REF!))),"",IF(#REF!=0,"",CHOOSE(#REF!,1,2,3,4,5))) ->  | Y13: 1.3
D14: 4 | E14: 8.1 | F14: 4 | G14: 12.1 | H14: 3 | I14: 9.45 | J14: 3 | K14: 12.45 | L14: 2 | M14: 7.25 | N14: 2 | O14: 9.25 | P14: 3 | Q14: 8.6 | R14: 3 | S14: 11.6 | T14: 5.1 | U14: =IF(OR(T14<7,NOT(ISNUMBER(#REF!))),"",IF(#REF!=0,"",CHOOSE(#REF!,1,2,3,4,5))) ->  | V14: 5.1 | W14: 5.4 | X14: =IF(OR(W14<7,NOT(ISNUMBER(#REF!))),"",IF(#REF!=0,"",CHOOSE(#REF!,1,2,3,4,5))) ->  | Y14: 5.4
G15: 0 | K15: 0 | O15: 0 | S15: 0 | U15: =IF(OR(T15<7,NOT(ISNUMBER(#REF!))),"",IF(#REF!=0,"",CHOOSE(#REF!,1,2,3,4,5))) ->  | V15: 0 | X15: =IF(OR(W15<7,NOT(ISNUMBER(#REF!))),"",IF(#REF!=0,"",CHOOSE(#REF!,1,2,3,4,5))) ->  | Y15: 0
F16: =IF(OR(E16<7,NOT(ISNUMBER(D16))),"",IF(D16=0,"",CHOOSE(D16,1,2,3,4,5))) ->  | G16: =SUM(E16:F16) -> 0 | J16: =IF(OR(I16<7,NOT(ISNUMBER(H16))),"",IF(H16=0,"",CHOOSE(H16,1,2,3,4,5))) ->  | K16: =SUM(I16:J16) -> 0 | N16: =IF(OR(M16<7,NOT(ISNUMBER(L16))),"",IF(L16=0,"",CHOOSE(L16,1,2,3,4,5))) ->  | O16: =SUM(M16:N16) -> 0 | R16: =IF(OR(Q16<7,NOT(ISNUMBER(P16))),"",IF(P16=0,"",CHOOSE(P16,1,2,3,4,5))) ->  | S16: =SUM(Q16:R16) -> 0 | U16: =IF(OR(T16<7,NOT(ISNUMBER(#REF!))),"",IF(#REF!=0,"",CHOOSE(#REF!,1,2,3,4,5))) ->  | V16: =SUM(T16:U16) -> 0 | X16: =IF(OR(W16<7,NOT(ISNUMBER(#REF!))),"",IF(#REF!=0,"",CHOOSE(#REF!,1,2,3,4,5))) ->  | Y16: =SUM(W16:X16) -> 0
G17: 0 | K17: 0 | O17: 0 | S17: 0 | V17: =SUM(T17:U17) -> 0 | X17: =IF(OR(W17<7,NOT(ISNUMBER(#REF!))),"",IF(#REF!=0,"",CHOOSE(#REF!,1,2,3,4,5))) ->  | Y17: 0
G18: 0 | K18: 0 | O18: 0 | S18: 0 | V18: =SUM(T18:U18) -> 0 | Y18: =SUM(W18:X18) -> 0
F19: =IF(OR(E19<7,NOT(ISNUMBER(D19))),"",IF(D19=0,"",CHOOSE(D19,1,2,3,4,5))) ->  | G19: =SUM(E19:F19) -> 0 | J19: =IF(OR(I19<7,NOT(ISNUMBER(H19))),"",IF(H19=0,"",CHOOSE(H19,1,2,3,4,5))) ->  | K19: =SUM(I19:J19) -> 0 | N19: =IF(OR(M19<7,NOT(ISNUMBER(L19))),"",IF(L19=0,"",CHOOSE(L19,1,2,3,4,5))) ->  | O19: =SUM(M19:N19) -> 0 | R19: =IF(OR(Q19<7,NOT(ISNUMBER(P19))),"",IF(P19=0,"",CHOOSE(P19,1,2,3,4,5))) ->  | S19: =SUM(Q19:R19) -> 0 | V19: =SUM(T19:U19) -> 0 | Y19: =SUM(W19:X19) -> 0
G20: 0 | K20: 0 | O20: 0 | S20: 0 | V20: 0 | Y20: 0
G21: 0 | K21: 0 | O21: 0 | S21: 0 | V21: 0 | Y21: 0
C22: Total | G22: =SUM(G4:G21) -> 104.4 | K22: =SUM(K4:K21) -> 107.25 | O22: =SUM(O4:O21) -> 116.15 | S22: =SUM(S4:S21) -> 106.3 | V22: =SUM(V4:V21) -> 34.95 | Y22: =SUM(Y4:Y21) -> 45.2 | Z22: Total Gal | AA22: =SUM(AA4:AA20) -> 182.5
A38: 2 | B38: JEUNE GARDE
B39: ARMENTERES
B40: Nom | C40: Prénom | D40: Degré | E40: Note | G40: Sol | H40: Degré | I40: Note | K40: Saut | L40: Degré | M40: Note | O40: BP | P40: Degré | Q40: Note | S40: BF | T40: Note | V40: Arçons | W40: Note | Y40: AN | Z40: Total; des 3 notes
D41: 4 | E41: 8.95 | F41: =IF(OR(E41<7,NOT(ISNUMBER(D41))),"",IF(D41=0,"",CHOOSE(D41,1,2,3,4,5))) -> 4 | G41: =SUM(E41:F41) -> 12.95 | H41: 4 | I41: 8.75 | J41: =IF(OR(I41<7,NOT(ISNUMBER(H41))),"",IF(H41=0,"",CHOOSE(H41,1,2,3,4,5))) -> 4 | K41: =SUM(I41:J41) -> 12.75 | L41: 3 | M41: 8.4 | N41: =IF(OR(M41<7,NOT(ISNUMBER(L41))),"",IF(L41=0,"",CHOOSE(L41,1,2,3,4,5))) -> 3 | O41: =SUM(M41:N41) -> 11.4 | P41: 4 | Q41: 8.25 | R41: =IF(OR(Q41<7,NOT(ISNUMBER(P41))),"",IF(P41=0,"",CHOOSE(P41,1,2,3,4,5))) -> 4 | S41: =SUM(Q41:R41) -> 12.25 | T41: 6.45 | U41: =IF(OR(T41<7,NOT(ISNUMBER(#REF!))),"",IF(#REF!=0,"",CHOOSE(#REF!,1,2,3,4,5))) ->  | V41: =SUM(T41:U41) -> 6.45 | W41: 8.25 | X41: =IF(OR(W41<7,NOT(ISNUMBER(#REF!))),"",IF(#REF!=0,"",CHOOSE(#REF!,1,2,3,4,5))) ->  | Y41: =SUM(W41:X41) -> 8.25
D42: 3 | E42: 8.7 | F42: =IF(OR(E42<7,NOT(ISNUMBER(D42))),"",IF(D42=0,"",CHOOSE(D42,1,2,3,4,5))) -> 3 | G42: =SUM(E42:F42) -> 11.7 | H42: 3 | I42: 9.4 | J42: =IF(OR(I42<7,NOT(ISNUMBER(H42))),"",IF(H42=0,"",CHOOSE(H42,1,2,3,4,5))) -> 3 | K42: =SUM(I42:J42) -> 12.4 | L42: 2 | M42: 9.4 | N42: =IF(OR(M42<7,NOT(ISNUMBER(L42))),"",IF(L42=0,"",CHOOSE(L42,1,2,3,4,5))) -> 2 | O42: =SUM(M42:N42) -> 11.4 | P42: 3 | Q42: 8.45 | R42: =IF(OR(Q42<7,NOT(ISNUMBER(P42))),"",IF(P42=0,"",CHOOSE(P42,1,2,3,4,5))) -> 3 | S42: =SUM(Q42:R42) -> 11.45 | T42: 6.1 | U42: =IF(OR(T42<7,NOT(ISNUMBER(#REF!))),"",IF(#REF!=0,"",CHOOSE(#REF!,1,2,3,4,5))) ->  | V42: =SUM(T42:U42) -> 6.1 | W42: 5.3 | X42: =IF(OR(W42<7,NOT(ISNUMBER(#REF!))),"",IF(#REF!=0,"",CHOOSE(#REF!,1,2,3,4,5))) ->  | Y42: =SUM(W42:X42) -> 5.3 | Z42: Sol | AA42: =LARGE(G41:G56,1)+LARGE(G41:G56,2)+LARGE(G41:G56,3) -> 38.1
D43: 3 | E43: 7.5 | F43: 3 | G43: 10.5 | H43: 3 | I43: 5 | K43: 5 | L43: 2 | M43: 9.5 | N43: 2 | O43: 11.5 | P43: 2 | Q43: 9.3 | R43: 2 | S43: 11.3 | T43: 4.95 | U43: =IF(OR(T43<7,NOT(ISNUMBER(#REF!))),"",IF(#REF!=0,"",CHOOSE(#REF!,1,2,3,4,5))) ->  | V43: 4.95 | W43: 6.8 | X43: =IF(OR(W43<7,NOT(ISNUMBER(#REF!))),"",IF(#REF!=0,"",CHOOSE(#REF!,1,2,3,4,5))) ->  | Y43: 6.8 | Z43: Saut | AA43: =LARGE(K41:K56,1)+LARGE(K41:K56,2)+LARGE(K41:K56,3) -> 38.45
D44: 1 | E44: 7.5 | F44: 1 | G44: 8.5 | H44: 2 | I44: 8.9 | J44: 2 | K44: 10.9 | L44: 2 | M44: 7.75 | N44: 2 | O44: 9.75 | P44: 2 | Q44: 8.1 | R44: 2 | S44: 10.1 | T44: 3.4 | U44: =IF(OR(T44<7,NOT(ISNUMBER(#REF!))),"",IF(#REF!=0,"",CHOOSE(#REF!,1,2,3,4,5))) ->  | V44: 3.4 | W44: 8.9 | X44: =IF(OR(W44<7,NOT(ISNUMBER(#REF!))),"",IF(#REF!=0,"",CHOOSE(#REF!,1,2,3,4,5))) ->  | Y44: 8.9 | Z44: BP | AA44: =LARGE(O41:O56,1)+LARGE(O41:O56,2)+LARGE(O41:O56,3) -> 37.05
D45: 4 | E45: 7.4 | F45: 4 | G45: 11.4 | H45: 3 | I45: 9.3 | J45: 3 | K45: 12.3 | L45: 3 | M45: 9.25 | N45: 3 | O45: 12.25 | P45: 4 | Q45: 8.9 | R45: 4 | S45: 12.9 | T45: 6.5 | V45: 6.5 | W45: 8.3 | Y45: 8.3 | Z45: BF | AA45: =LARGE(S41:S56,1)+LARGE(S41:S56,2)+LARGE(S41:S56,3) -> 38.5
D46: 4 | E46: 9.3 | F46: 4 | G46: 13.3 | H46: 4 | I46: 9.1 | J46: 4 | K46: 13.1 | L46: 3 | M46: 9.6 | N46: 3 | O46: 12.6 | P46: 4 | Q46: 9.2 | R46: 4 | S46: 13.2 | T46: 7.6 | V46: =SUM(T46:U46) -> 7.6 | W46: 7.4 | Y46: =SUM(W46:X46) -> 7.4 | Z46: Arçons | AA46: =LARGE(V41:V56,1)+LARGE(V41:V56,2)+LARGE(V41:V56,3) -> 20.55
D47: 3 | E47: 7.8 | F47: 3 | G47: 10.8 | H47: 3 | I47: 9.1 | J47: 3 | K47: 12.1 | L47: 2 | M47: 8.35 | N47: 2 | O47: 10.35 | P47: 2 | Q47: 8.65 | R47: 2 | S47: 10.65 | T47: 3.85 | V47: 3.85 | W47: 3.8 | Y47: 3.8 | Z47: Anneaux | AA47: =LARGE(Y41:Y56,1)+LARGE(Y41:Y56,2)+LARGE(Y41:Y56,3) -> 25.6
D48: 3 | E48: 8.8 | F48: 3 | G48: 11.8 | H48: 3 | I48: 9.6 | J48: 3 | K48: 12.6 | L48: 3 | M48: 7.85 | N48: 3 | O48: 10.85 | P48: 3 | Q48: 9.1 | R48: 3 | S48: 12.1 | T48: 5.4 | V48: 5.4 | W48: 8.35 | Y48: 8.35
D49: 3 | E49: 8.85 | F49: 3 | G49: 11.85 | H49: 3 | I49: 8.75 | J49: 3 | K49: 11.75 | L49: 3 | M49: 9.2 | N49: 3 | O49: 12.2 | P49: 3 | Q49: 9.4 | R49: 3 | S49: 12.4 | T49: 6.45 | V49: 6.45 | W49: 8.35 | Y49: 8.35
D50: 1 | E50: 8.3 | F50: 1 | G50: 9.3 | H50: 2 | I50: 8.2 | J50: 2 | K50: 10.2 | L50: 2 | M50: 7 | N50: 2 | O50: 9 | P50: 2 | Q50: 7.85 | R50: 2 | S50: 9.85 | T50: 3.9 | V50: 3.9 | W50: 6.55 | Y50: 6.55
G51: 0 | K51: 0 | O51: 0 | S51: 0 | V51: 0 | Y51: 0
F52: =IF(OR(E52<7,NOT(ISNUMBER(D52))),"",IF(D52=0,"",CHOOSE(D52,1,2,3,4,5))) ->  | G52: =SUM(E52:F52) -> 0 | J52: =IF(OR(I52<7,NOT(ISNUMBER(H52))),"",IF(H52=0,"",CHOOSE(H52,1,2,3,4,5))) ->  | K52: =SUM(I52:J52) -> 0 | N52: =IF(OR(M52<7,NOT(ISNUMBER(L52))),"",IF(L52=0,"",CHOOSE(L52,1,2,3,4,5))) ->  | O52: =SUM(M52:N52) -> 0 | R52: =IF(OR(Q52<7,NOT(ISNUMBER(P52))),"",IF(P52=0,"",CHOOSE(P52,1,2,3,4,5))) ->  | S52: =SUM(Q52:R52) -> 0 | U52: =IF(OR(T52<7,NOT(ISNUMBER(#REF!))),"",IF(#REF!=0,"",CHOOSE(#REF!,1,2,3,4,5))) ->  | V52: =SUM(T52:U52) -> 0 | X52: =IF(OR(W52<7,NOT(ISNUMBER(#REF!))),"",IF(#REF!=0,"",CHOOSE(#REF!,1,2,3,4,5))) ->  | Y52: =SUM(W52:X52) -> 0
G53: 0 | K53: 0 | O53: 0 | S53: 0 | U53: =IF(OR(T53<7,NOT(ISNUMBER(#REF!))),"",IF(#REF!=0,"",CHOOSE(#REF!,1,2,3,4,5))) ->  | V53: 0 | X53: =IF(OR(W53<7,NOT(ISNUMBER(#REF!))),"",IF(#REF!=0,"",CHOOSE(#REF!,1,2,3,4,5))) ->  | Y53: 0
G54: 0 | K54: 0 | O54: 0 | S54: 0 | U54: =IF(OR(T54<7,NOT(ISNUMBER(#REF!))),"",IF(#REF!=0,"",CHOOSE(#REF!,1,2,3,4,5))) ->  | V54: 0 | X54: =IF(OR(W54<7,NOT(ISNUMBER(#REF!))),"",IF(#REF!=0,"",CHOOSE(#REF!,1,2,3,4,5))) ->  | Y54: 0
G55: 0 | K55: 0 | O55: 0 | S55: 0 | V55: 0 | Y55: 0
G56: 0 | K56: 0 | O56: 0 | S56: 0 | V56: 0 | Y56: 0
G57: 0 | K57: 0 | O57: 0 | S57: 0 | V57: 0 | Y57: 0
C58: Total | G58: =SUM(G40:G57) -> 112.1 | K58: =SUM(K40:K57) -> 113.1 | O58: =SUM(O40:O57) -> 111.3 | S58: =SUM(S40:S57) -> 116.2 | V58: =SUM(V40:V57) -> 54.6 | Y58: =SUM(Y40:Y57) -> 72 | Z58: Total Gal | AA58: =SUM(AA40:AA57) -> 198.25
A62: JP2 | B62: LA LORRAINE | C62: RACHES
B64: Nom | C64: Prénom | D64: Degré | E64: Note | G64: Sol | H64: Degré | I64: Note | K64: Saut | L64: Degré | M64: Note | O64: BP | P64: Degré | Q64: Note | S64: BF | T64: Note | V64: Arçons | W64: Note | Y64: AN | Z64: Total; des 3 Meilleurs notes
D65: 1 | E65: 7.75 | F65: =IF(OR(E65<7,NOT(ISNUMBER(D65))),"",IF(D65=0,"",CHOOSE(D65,1,2,3,4,5))) -> 1 | G65: =SUM(E65:F65) -> 8.75 | H65: 2 | I65: 8.25 | J65: =IF(OR(I65<7,NOT(ISNUMBER(H65))),"",IF(H65=0,"",CHOOSE(H65,1,2,3,4,5))) -> 2 | K65: =SUM(I65:J65) -> 10.25 | L65: 1 | M65: 7.25 | N65: =IF(OR(M65<7,NOT(ISNUMBER(L65))),"",IF(L65=0,"",CHOOSE(L65,1,2,3,4,5))) -> 1 | O65: =SUM(M65:N65) -> 8.25 | P65: 2 | Q65: 7.65 | R65: =IF(OR(Q65<7,NOT(ISNUMBER(P65))),"",IF(P65=0,"",CHOOSE(P65,1,2,3,4,5))) -> 2 | S65: =SUM(Q65:R65) -> 9.65 | T65: 3.05 | U65: 0 | V65: =SUM(T65:U65) -> 3.05 | W65: 1 | X65: =IF(OR(W65<7,NOT(ISNUMBER(#REF!))),"",IF(#REF!=0,"",CHOOSE(#REF!,1,2,3,4,5))) ->  | Y65: =SUM(W65:X65) -> 1
D66: 4 | E66: 8.15 | F66: =IF(OR(E66<7,NOT(ISNUMBER(D66))),"",IF(D66=0,"",CHOOSE(D66,1,2,3,4,5))) -> 4 | G66: =SUM(E66:F66) -> 12.15 | H66: 4 | I66: 7.7 | J66: 4 | K66: =SUM(I66:J66) -> 11.7 | L66: 3 | M66: 8.5 | N66: =IF(OR(M66<7,NOT(ISNUMBER(L66))),"",IF(L66=0,"",CHOOSE(L66,1,2,3,4,5))) -> 3 | O66: =SUM(M66:N66) -> 11.5 | P66: 3 | Q66: 8.55 | R66: =IF(OR(Q66<7,NOT(ISNUMBER(P66))),"",IF(P66=0,"",CHOOSE(P66,1,2,3,4,5))) -> 3 | S66: =SUM(Q66:R66) -> 11.55 | T66: 5.15 | U66: 0 | V66: =SUM(T66:U66) -> 5.15 | W66: 8.3 | X66: =IF(OR(W66<7,NOT(ISNUMBER(#REF!))),"",IF(#REF!=0,"",CHOOSE(#REF!,1,2,3,4,5))) ->  | Y66: =SUM(W66:X66) -> 8.3 | Z66: Sol | AA66: =LARGE(G65:G74,1)+LARGE(G65:G74,2)+LARGE(G65:G74,3) -> 37.05
D67: 3 | E67: 8.45 | F67: 3 | G67: 11.45 | H67: 3 | I67: 9.1 | J67: 3 | K67: 12.1 | L67: 3 | M67: 9.5 | N67: 3 | O67: 12.5 | P67: 3 | Q67: 8.9 | R67: 3 | S67: 11.9 | T67: 6.15 | U67: 0 | V67: 6.15 | W67: 7.9 | X67: =IF(OR(W67<7,NOT(ISNUMBER(#REF!))),"",IF(#REF!=0,"",CHOOSE(#REF!,1,2,3,4,5))) ->  | Y67: 7.9 | Z67: Saut | AA67: =LARGE(K65:K74,1)+LARGE(K65:K74,2)+LARGE(K65:K74,3) -> 38.1
D68: 4 | E68: 8.15 | F68: 4 | G68: 12.15 | H68: 2 | I68: 8.25 | J68: 2 | K68: 10.25 | L68: 4 | M68: 8.5 | N68: 4 | O68: 12.5 | P68: 3 | Q68: 8.95 | R68: 3 | S68: 11.95 | T68: 6.9 | U68: 0 | V68: 6.9 | W68: 8.05 | X68: =IF(OR(W68<7,NOT(ISNUMBER(#REF!))),"",IF(#REF!=0,"",CHOOSE(#REF!,1,2,3,4,5))) ->  | Y68: 8.05 | Z68: BP | AA68: =LARGE(O65:O74,1)+LARGE(O65:O74,2)+LARGE(O65:O74,3) -> 36.9
D69: 1 | E69: 8.5 | F69: 1 | G69: 9.5 | H69: 3 | I69: 9.3 | J69: 3 | K69: 12.3 | L69: 2 | M69: 7.6 | N69: 2 | O69: 9.6 | P69: 2 | Q69: 7.9 | R69: 2 | S69: 9.9 | T69: 3.8 | U69: 0 | V69: 3.8 | W69: 3.2 | X69: =IF(OR(W69<7,NOT(ISNUMBER(#REF!))),"",IF(#REF!=0,"",CHOOSE(#REF!,1,2,3,4,5))) ->  | Y69: 3.2 | Z69: BF | AA69: =LARGE(S65:S74,1)+LARGE(S65:S74,2)+LARGE(S65:S74,3) -> 35.8
D70: 4 | E70: 8.75 | F70: 4 | G70: 12.75 | H70: 3 | I70: 9.25 | J70: 3 | K70: 12.25 | L70: 3 | M70: 7.4 | N70: 3 | O70: 10.4 | P70: 3 | Q70: 8.95 | R70: 3 | S70: 11.95 | T70: 5.85 | U70: 0 | V70: 5.85 | W70: 8.7 | Y70: 8.7 | Z70: Arcons | AA70: =LARGE(V65:V74,1)+LARGE(V65:V74,2)+LARGE(V65:V74,3) -> 18.9
D71: 3 | E71: 8.55 | F71: 3 | G71: 11.55 | H71: 4 | I71: 9.2 | J71: 4 | K71: 13.2 | L71: 3 | M71: 8.9 | N71: 3 | O71: 11.9 | P71: 3 | Q71: 7.15 | R71: 3 | S71: 10.15 | T71: 4.95 | U71: 0 | V71: 4.95 | W71: 7.9 | Y71: 7.9 | Z71: Anneaux | AA71: =LARGE(Y65:Y74,1)+LARGE(Y65:Y74,2)+LARGE(Y65:Y74,3) -> 25.1
D72: 3 | E72: 8.2 | F72: 3 | G72: 11.2 | H72: 3 | I72: 9.6 | J72: 3 | K72: 12.6 | L72: 3 | M72: 7.7 | N72: 3 | O72: 10.7 | P72: 3 | Q72: 8.05 | R72: 3 | S72: 11.05 | T72: 3.5 | U72: 0 | V72: 3.5 | W72: 8.1 | Y72: 8.1
F73: =IF(OR(E73<7,NOT(ISNUMBER(D73))),"",IF(D73=0,"",CHOOSE(D73,1,2,3,4,5))) ->  | G73: =SUM(E73:F73) -> 0 | J73: =IF(OR(I73<7,NOT(ISNUMBER(H73))),"",IF(H73=0,"",CHOOSE(H73,1,2,3,4,5))) ->  | K73: =SUM(I73:J73) -> 0 | N73: =IF(OR(M73<7,NOT(ISNUMBER(L73))),"",IF(L73=0,"",CHOOSE(L73,1,2,3,4,5))) ->  | O73: =SUM(M73:N73) -> 0 | R73: =IF(OR(Q73<7,NOT(ISNUMBER(P73))),"",IF(P73=0,"",CHOOSE(P73,1,2,3,4,5))) ->  | S73: =SUM(Q73:R73) -> 0 | U73: 0 | V73: =SUM(T73:U73) -> 0 | Y73: =SUM(W73:X73) -> 0
U74: =IF(OR(T74<7,NOT(ISNUMBER(#REF!))),"",IF(#REF!=0,"",CHOOSE(#REF!,1,2,3,4,5))) ->  | X74: =IF(OR(W74<7,NOT(ISNUMBER(#REF!))),"",IF(#REF!=0,"",CHOOSE(#REF!,1,2,3,4,5))) -> 
C75: Total | G75: =SUM(G65:G74) -> 89.5 | K75: =SUM(K65:K74) -> 94.65 | O75: =SUM(O65:O74) -> 87.35 | S75: =SUM(S65:S74) -> 88.1 | V75: =SUM(V65:V74) -> 39.35 | Y75: =SUM(Y65:Y74) -> 53.15 | Z75: Total Gal | AA75: =SUM(AA65:AA74) -> 191.85
A79: 2 | B79: L'AMANDINOISE | C79: ST AMAND
B81: Nom | C81: Prénom | D81: Degré | E81: Note | G81: Sol | H81: Degré | I81: Note | K81: Saut | L81: Degré | M81: Note | O81: BP | P81: Degré | Q81: Note | S81: BF | T81: Note | V81: Arçons | W81: Note | Y81: AN | Z81: Total; des 3 Meilleurs notes
D82: 1 | E82: 8.5 | F82: =IF(OR(E82<7,NOT(ISNUMBER(D82))),"",IF(D82=0,"",CHOOSE(D82,1,2,3,4,5))) -> 1 | G82: =SUM(E82:F82) -> 9.5 | H82: 2 | I82: 8.2 | J82: =IF(OR(I82<7,NOT(ISNUMBER(H82))),"",IF(H82=0,"",CHOOSE(H82,1,2,3,4,5))) -> 2 | K82: =SUM(I82:J82) -> 10.2 | L82: 2 | M82: 7.65 | N82: =IF(OR(M82<7,NOT(ISNUMBER(L82))),"",IF(L82=0,"",CHOOSE(L82,1,2,3,4,5))) -> 2 | O82: =SUM(M82:N82) -> 9.65 | P82: 2 | Q82: 8.8 | R82: =IF(OR(Q82<7,NOT(ISNUMBER(P82))),"",IF(P82=0,"",CHOOSE(P82,1,2,3,4,5))) -> 2 | S82: =SUM(Q82:R82) -> 10.8 | T82: 2.9 | U82: =IF(OR(T82<7,NOT(ISNUMBER(#REF!))),"",IF(#REF!=0,"",CHOOSE(#REF!,1,2,3,4,5))) ->  | V82: =SUM(T82:U82) -> 2.9 | W82: 7.75 | X82: =IF(OR(W82<7,NOT(ISNUMBER(#REF!))),"",IF(#REF!=0,"",CHOOSE(#REF!,1,2,3,4,5))) ->  | Y82: =SUM(W82:X82) -> 7.75
D83: 3 | E83: 7.6 | F83: =IF(OR(E83<7,NOT(ISNUMBER(D83))),"",IF(D83=0,"",CHOOSE(D83,1,2,3,4,5))) -> 3 | G83: =SUM(E83:F83) -> 10.6 | H83: 3 | I83: 9.2 | J83: =IF(OR(I83<7,NOT(ISNUMBER(H83))),"",IF(H83=0,"",CHOOSE(H83,1,2,3,4,5))) -> 3 | K83: =SUM(I83:J83) -> 12.2 | L83: 3 | M83: 8.7 | N83: =IF(OR(M83<7,NOT(ISNUMBER(L83))),"",IF(L83=0,"",CHOOSE(L83,1,2,3,4,5))) -> 3 | O83: =SUM(M83:N83) -> 11.7 | P83: 3 | Q83: 8.75 | R83: =IF(OR(Q83<7,NOT(ISNUMBER(P83))),"",IF(P83=0,"",CHOOSE(P83,1,2,3,4,5))) -> 3 | S83: =SUM(Q83:R83) -> 11.75 | T83: 3.55 | U83: =IF(OR(T83<7,NOT(ISNUMBER(#REF!))),"",IF(#REF!=0,"",CHOOSE(#REF!,1,2,3,4,5))) ->  | V83: =SUM(T83:U83) -> 3.55 | W83: 7.95 | X83: =IF(OR(W83<7,NOT(ISNUMBER(#REF!))),"",IF(#REF!=0,"",CHOOSE(#REF!,1,2,3,4,5))) ->  | Y83: =SUM(W83:X83) -> 7.95 | Z83: Sol | AA83: =LARGE(G82:G91,1)+LARGE(G82:G91,2)+LARGE(G82:G91,3) -> 34.5
D84: 2 | E84: 8.45 | F84: 2 | G84: 10.45 | H84: 2 | I84: 8.4 | J84: 2 | K84: 10.4 | L84: 2 | M84: 9.4 | N84: 2 | O84: 11.4 | P84: 2 | Q84: 8.8 | R84: 2 | S84: 10.8 | T84: 4.25 | U84: =IF(OR(T84<7,NOT(ISNUMBER(#REF!))),"",IF(#REF!=0,"",CHOOSE(#REF!,1,2,3,4,5))) ->  | V84: 4.25 | W84: 6.9 | X84: =IF(OR(W84<7,NOT(ISNUMBER(#REF!))),"",IF(#REF!=0,"",CHOOSE(#REF!,1,2,3,4,5))) ->  | Y84: 6.9 | Z84: Saut | AA84: =LARGE(K82:K91,1)+LARGE(K82:K91,2)+LARGE(K82:K91,3) -> 37.45
D85: 4 | E85: 7.35 | F85: 4 | G85: 11.35 | H85: 4 | I85: 8.45 | J85: 4 | K85: 12.45 | L85: 3 | M85: 8.55 | N85: 3 | O85: 11.55 | P85: 3 | Q85: 9 | R85: 3 | S85: 12 | T85: 5.85 | U85: =IF(OR(T85<7,NOT(ISNUMBER(#REF!))),"",IF(#REF!=0,"",CHOOSE(#REF!,1,2,3,4,5))) ->  | V85: =SUM(T85:U85) -> 5.85 | W85: 8.45 | Y85: 8.45 | Z85: BP | AA85: =LARGE(O82:O91,1)+LARGE(O82:O91,2)+LARGE(O82:O91,3) -> 34.65
D86: 2 | E86: 7.95 | F86: 2 | G86: 9.95 | H86: 2 | I86: 8.8 | J86: 2 | K86: 10.8 | L86: 2 | M86: 9.05 | N86: 2 | O86: 11.05 | P86: 2 | Q86: 8.15 | R86: 2 | S86: 10.15 | T86: 4.6 | U86: =IF(OR(T86<7,NOT(ISNUMBER(#REF!))),"",IF(#REF!=0,"",CHOOSE(#REF!,1,2,3,4,5))) ->  | V86: 4.6 | W86: 7.7 | Y86: 7.7 | Z86: BF | AA86: =LARGE(S82:S91,1)+LARGE(S82:S91,2)+LARGE(S82:S91,3) -> 35.8
D87: 3 | E87: 8.05 | F87: 3 | G87: 11.05 | H87: 3 | I87: 8.7 | J87: 3 | K87: 11.7 | L87: 2 | M87: 8.75 | N87: 2 | O87: 10.75 | P87: 3 | Q87: 9 | R87: 3 | S87: 12 | T87: 4.25 | U87: =IF(OR(T87<7,NOT(ISNUMBER(#REF!))),"",IF(#REF!=0,"",CHOOSE(#REF!,1,2,3,4,5))) ->  | V87: 4.25 | W87: 8.1 | Y87: 8.1 | Z87: Arçons | AA87: =LARGE(V82:V91,1)+LARGE(V82:V91,2)+LARGE(V82:V91,3) -> 15.9
D88: 3 | E88: 8.3 | F88: 3 | G88: 11.3 | H88: 3 | I88: 9.6 | J88: 3 | K88: 12.6 | L88: 2 | M88: 9.3 | N88: 2 | O88: 11.3 | P88: 3 | Q88: 8.6 | R88: 3 | S88: 11.6 | T88: 5.35 | U88: =IF(OR(T88<7,NOT(ISNUMBER(#REF!))),"",IF(#REF!=0,"",CHOOSE(#REF!,1,2,3,4,5))) ->  | V88: 5.35 | W88: 8.2 | X88: =IF(OR(W88<7,NOT(ISNUMBER(#REF!))),"",IF(#REF!=0,"",CHOOSE(#REF!,1,2,3,4,5))) ->  | Y88: 8.2 | Z88: Anneaux | AA88: =LARGE(Y82:Y91,1)+LARGE(Y82:Y91,2)+LARGE(Y82:Y91,3) -> 24.75
D89: 4 | E89: 7.85 | F89: 4 | G89: 11.85 | H89: 3 | I89: 9.4 | J89: 3 | K89: 12.4 | L89: 2 | M89: 9 | N89: 2 | O89: 11 | P89: 3 | Q89: 8.8 | R89: 3 | S89: 11.8 | T89: 4.7 | U89: =IF(OR(T89<7,NOT(ISNUMBER(#REF!))),"",IF(#REF!=0,"",CHOOSE(#REF!,1,2,3,4,5))) ->  | V89: 4.7 | W89: 7.6 | Y89: 7.6
F90: =IF(OR(E90<7,NOT(ISNUMBER(D90))),"",IF(D90=0,"",CHOOSE(D90,1,2,3,4,5))) ->  | G90: =SUM(E90:F90) -> 0 | J90: =IF(OR(I90<7,NOT(ISNUMBER(H90))),"",IF(H90=0,"",CHOOSE(H90,1,2,3,4,5))) ->  | K90: =SUM(I90:J90) -> 0 | N90: =IF(OR(M90<7,NOT(ISNUMBER(L90))),"",IF(L90=0,"",CHOOSE(L90,1,2,3,4,5))) ->  | O90: =SUM(M90:N90) -> 0 | R90: =IF(OR(Q90<7,NOT(ISNUMBER(P90))),"",IF(P90=0,"",CHOOSE(P90,1,2,3,4,5))) ->  | S90: =SUM(Q90:R90) -> 0 | U90: =IF(OR(T90<7,NOT(ISNUMBER(#REF!))),"",IF(#REF!=0,"",CHOOSE(#REF!,1,2,3,4,5))) ->  | V90: =SUM(T90:U90) -> 0 | Y90: =SUM(W90:X90) -> 0
C92: Total | G92: =SUM(G82:G91) -> 86.05 | K92: =SUM(K82:K91) -> 92.75 | O92: =SUM(O82:O91) -> 88.4 | S92: =SUM(S82:S91) -> 90.9 | V92: =SUM(V82:V91) -> 35.45 | Y92: =SUM(Y82:Y91) -> 62.65 | Z92: Total Gal | AA92: =SUM(AA82:AA91) -> 183.05
A94: 3 | B94: JEANNE ARC | C94: FOURNES
B96: Nom | C96: Prénom | D96: Degré | E96: Note | G96: Sol | H96: Degré | I96: Note | K96: Saut | L96: Degré | M96: Note | O96: BP | P96: Degré | Q96: Note | S96: BF | T96: Note | V96: Arçons | W96: Note | Y96: AN | Z96: Total; des 3 Meilleurs notes
D97: 4 | E97: 7.45 | F97: =IF(OR(E97<7,NOT(ISNUMBER(D97))),"",IF(D97=0,"",CHOOSE(D97,1,2,3,4,5))) -> 4 | G97: =SUM(E97:F97) -> 11.45 | H97: 3 | I97: 9.1 | J97: =IF(OR(I97<7,NOT(ISNUMBER(H97))),"",IF(H97=0,"",CHOOSE(H97,1,2,3,4,5))) -> 3 | K97: =SUM(I97:J97) -> 12.1 | L97: 4 | M97: 8.6 | N97: =IF(OR(M97<7,NOT(ISNUMBER(L97))),"",IF(L97=0,"",CHOOSE(L97,1,2,3,4,5))) -> 4 | O97: =SUM(M97:N97) -> 12.6 | P97: 4 | Q97: 9.1 | R97: =IF(OR(Q97<7,NOT(ISNUMBER(P97))),"",IF(P97=0,"",CHOOSE(P97,1,2,3,4,5))) -> 4 | S97: =SUM(Q97:R97) -> 13.1 | T97: 7.95 | U97: =IF(OR(T97<7,NOT(ISNUMBER(#REF!))),"",IF(#REF!=0,"",CHOOSE(#REF!,1,2,3,4,5))) ->  | V97: =SUM(T97:U97) -> 7.95 | W97: 8.15 | X97: =IF(OR(W97<7,NOT(ISNUMBER(#REF!))),"",IF(#REF!=0,"",CHOOSE(#REF!,1,2,3,4,5))) ->  | Y97: =SUM(W97:X97) -> 8.15
D98: 4 | E98: 8.4 | F98: =IF(OR(E98<7,NOT(ISNUMBER(D98))),"",IF(D98=0,"",CHOOSE(D98,1,2,3,4,5))) -> 4 | G98: =SUM(E98:F98) -> 12.4 | H98: 3 | I98: 9.05 | J98: =IF(OR(I98<7,NOT(ISNUMBER(H98))),"",IF(H98=0,"",CHOOSE(H98,1,2,3,4,5))) -> 3 | K98: =SUM(I98:J98) -> 12.05 | L98: 3 | M98: 9.45 | N98: =IF(OR(M98<7,NOT(ISNUMBER(L98))),"",IF(L98=0,"",CHOOSE(L98,1,2,3,4,5))) -> 3 | O98: =SUM(M98:N98) -> 12.45 | P98: 4 | Q98: 8.65 | R98: =IF(OR(Q98<7,NOT(ISNUMBER(P98))),"",IF(P98=0,"",CHOOSE(P98,1,2,3,4,5))) -> 4 | S98: =SUM(Q98:R98) -> 12.65 | T98: 7.5 | U98: =IF(OR(T98<7,NOT(ISNUMBER(#REF!))),"",IF(#REF!=0,"",CHOOSE(#REF!,1,2,3,4,5))) ->  | V98: =SUM(T98:U98) -> 7.5 | W98: 7.7 | X98: =IF(OR(W98<7,NOT(ISNUMBER(#REF!))),"",IF(#REF!=0,"",CHOOSE(#REF!,1,2,3,4,5))) ->  | Y98: =SUM(W98:X98) -> 7.7 | Z98: Sol | AA98: =LARGE(G97:G106,1)+LARGE(G97:G106,2)+LARGE(G97:G106,3) -> 37.3
D99: 3 | E99: 7 | F99: 3 | G99: 10 | H99: 3 | I99: 8.5 | J99: 3 | K99: 11.5 | L99: 3 | M99: 8.5 | N99: 3 | O99: 11.5 | P99: 3 | Q99: 8.8 | R99: 3 | S99: 11.8 | T99: 3.95 | U99: =IF(OR(T99<7,NOT(ISNUMBER(#REF!))),"",IF(#REF!=0,"",CHOOSE(#REF!,1,2,3,4,5))) ->  | V99: 3.95 | W99: 7.7 | Y99: 7.7 | Z99: Saut | AA99: =LARGE(K97:K106,1)+LARGE(K97:K106,2)+LARGE(K97:K106,3) -> 38.1
D100: 2 | E100: 8.25 | F100: 2 | G100: 10.25 | H100: 3 | I100: 5 | K100: 5 | L100: 2 | M100: 9 | N100: 2 | O100: 11 | P100: 2 | Q100: 8.8 | R100: 2 | S100: 10.8 | T100: 4.45 | U100: =IF(OR(T100<7,NOT(ISNUMBER(#REF!))),"",IF(#REF!=0,"",CHOOSE(#REF!,1,2,3,4,5))) ->  | V100: 4.45 | W100: 7.7 | Y100: 7.7 | Z100: BP | AA100: =LARGE(O97:O106,1)+LARGE(O97:O106,2)+LARGE(O97:O106,3) -> 38.65
D101: 3 | E101: 7.3 | F101: 3 | G101: 10.3 | H101: 3 | I101: 9.1 | J101: 3 | K101: 12.1 | L101: 3 | M101: 9.4 | N101: 3 | O101: 12.4 | P101: 3 | Q101: 8.7 | R101: 3 | S101: 11.7 | T101: 4.4 | U101: =IF(OR(T101<7,NOT(ISNUMBER(#REF!))),"",IF(#REF!=0,"",CHOOSE(#REF!,1,2,3,4,5))) ->  | V101: 4.4 | W101: 5 | Y101: 5 | Z101: BF | AA101: =LARGE(S97:S106,1)+LARGE(S97:S106,2)+LARGE(S97:S106,3) -> 39.45
D102: 2 | E102: 7.55 | F102: 2 | G102: 9.55 | H102: 2 | I102: 8.4 | J102: 2 | K102: 10.4 | L102: 2 | M102: 8.55 | N102: 2 | O102: 10.55 | P102: 2 | Q102: 8.7 | R102: 2 | S102: 10.7 | T102: 4.4 | U102: =IF(OR(T102<7,NOT(ISNUMBER(#REF!))),"",IF(#REF!=0,"",CHOOSE(#REF!,1,2,3,4,5))) ->  | V102: 4.4 | W102: 5.4 | X102: =IF(OR(W102<7,NOT(ISNUMBER(#REF!))),"",IF(#REF!=0,"",CHOOSE(#REF!,1,2,3,4,5))) ->  | Y102: 5.4 | Z102: Arçons | AA102: =LARGE(V97:V106,1)+LARGE(V97:V106,2)+LARGE(V97:V106,3) -> 25.15
D103: 4 | E103: 9.45 | F103: 4 | G103: 13.45 | H103: 4 | I103: 9.8 | J103: 4 | K103: 13.8 | L103: 4 | M103: 9.6 | N103: 4 | O103: 13.6 | P103: 4 | Q103: 9.7 | R103: 4 | S103: 13.7 | T103: 9.7 | U103: =IF(OR(T103<7,NOT(ISNUMBER(#REF!))),"",IF(#REF!=0,"",CHOOSE(#REF!,1,2,3,4,5))) ->  | V103: 9.7 | W103: 8.35 | X103: =IF(OR(W103<7,NOT(ISNUMBER(#REF!))),"",IF(#REF!=0,"",CHOOSE(#REF!,1,2,3,4,5))) ->  | Y103: 8.35 | Z103: Anneaux | AA103: =LARGE(Y97:Y106,1)+LARGE(Y97:Y106,2)+LARGE(Y97:Y106,3) -> 24.45
D104: 3 | E104: 7.9 | F104: 3 | G104: 10.9 | H104: 3 | I104: 9.2 | J104: 3 | K104: 12.2 | L104: 3 | M104: 9.35 | N104: 3 | O104: 12.35 | P104: 3 | Q104: 7.35 | R104: 3 | S104: 10.35 | T104: 6.5 | U104: =IF(OR(T104<7,NOT(ISNUMBER(#REF!))),"",IF(#REF!=0,"",CHOOSE(#REF!,1,2,3,4,5))) ->  | V104: 6.5 | W104: 7.95 | Y104: 7.95
F105: =IF(OR(E105<7,NOT(ISNUMBER(D105))),"",IF(D105=0,"",CHOOSE(D105,1,2,3,4,5))) ->  | G105: =SUM(E105:F105) -> 0 | J105: =IF(OR(I105<7,NOT(ISNUMBER(H105))),"",IF(H105=0,"",CHOOSE(H105,1,2,3,4,5))) ->  | K105: =SUM(I105:J105) -> 0 | N105: =IF(OR(M105<7,NOT(ISNUMBER(L105))),"",IF(L105=0,"",CHOOSE(L105,1,2,3,4,5))) ->  | O105: =SUM(M105:N105) -> 0 | R105: =IF(OR(Q105<7,NOT(ISNUMBER(P105))),"",IF(P105=0,"",CHOOSE(P105,1,2,3,4,5))) ->  | S105: =SUM(Q105:R105) -> 0 | U105: =IF(OR(T105<7,NOT(ISNUMBER(#REF!))),"",IF(#REF!=0,"",CHOOSE(#REF!,1,2,3,4,5))) ->  | V105: =SUM(T105:U105) -> 0 | Y105: =SUM(W105:X105) -> 0
C107: Total | G107: =SUM(G97:G106) -> 88.3 | K107: =SUM(K97:K106) -> 89.15 | O107: =SUM(O97:O106) -> 96.45 | S107: =SUM(S97:S106) -> 94.8 | V107: =SUM(V97:V106) -> 48.85 | Y107: =SUM(Y97:Y106) -> 57.95 | Z107: Total Gal | AA107: =SUM(AA97:AA106) -> 203.1
A119: 4 | B119: LA BAILLEULOISE | C119: BAILLEUL
B121: Nom | C121: Prénom | D121: Degré | E121: Note | G121: Sol | H121: Degré | I121: Note | K121: Saut | L121: Degré | M121: Note | O121: BP | P121: Degré | Q121: Note | S121: BF | T121: Note | V121: Arçons | W121: Note | Y121: AN | Z121: Total; des 3 Meilleurs notes
D122: 2 | E122: 7.75 | F122: =IF(OR(E122<7,NOT(ISNUMBER(D122))),"",IF(D122=0,"",CHOOSE(D122,1,2,3,4,5))) -> 2 | G122: =SUM(E122:F122) -> 9.75 | H122: 2 | I122: 7.25 | J122: =IF(OR(I122<7,NOT(ISNUMBER(H122))),"",IF(H122=0,"",CHOOSE(H122,1,2,3,4,5))) -> 2 | K122: =SUM(I122:J122) -> 9.25 | L122: 2 | M122: 8.55 | N122: =IF(OR(M122<7,NOT(ISNUMBER(L122))),"",IF(L122=0,"",CHOOSE(L122,1,2,3,4,5))) -> 2 | O122: =SUM(M122:N122) -> 10.55 | P122: 2 | Q122: 8.9 | R122: =IF(OR(Q122<7,NOT(ISNUMBER(P122))),"",IF(P122=0,"",CHOOSE(P122,1,2,3,4,5))) -> 2 | S122: =SUM(Q122:R122) -> 10.9 | T122: 2.65 | U122: =IF(OR(T122<7,NOT(ISNUMBER(#REF!))),"",IF(#REF!=0,"",CHOOSE(#REF!,1,2,3,4,5))) ->  | V122: =SUM(T122:U122) -> 2.65 | W122: 5.9 | X122: =IF(OR(W122<7,NOT(ISNUMBER(#REF!))),"",IF(#REF!=0,"",CHOOSE(#REF!,1,2,3,4,5))) ->  | Y122: =SUM(W122:X122) -> 5.9
D123: 3 | E123: 6.9 | F123: =IF(OR(E123<7,NOT(ISNUMBER(D123))),"",IF(D123=0,"",CHOOSE(D123,1,2,3,4,5))) ->  | G123: =SUM(E123:F123) -> 6.9 | H123: 2 | I123: 8.5 | J123: =IF(OR(I123<7,NOT(ISNUMBER(H123))),"",IF(H123=0,"",CHOOSE(H123,1,2,3,4,5))) -> 2 | K123: =SUM(I123:J123) -> 10.5 | L123: 2 | M123: 9.1 | N123: =IF(OR(M123<7,NOT(ISNUMBER(L123))),"",IF(L123=0,"",CHOOSE(L123,1,2,3,4,5))) -> 2 | O123: =SUM(M123:N123) -> 11.1 | P123: 3 | Q123: 8.6 | R123: =IF(OR(Q123<7,NOT(ISNUMBER(P123))),"",IF(P123=0,"",CHOOSE(P123,1,2,3,4,5))) -> 3 | S123: =SUM(Q123:R123) -> 11.6 | T123: 3.65 | U123: =IF(OR(T123<7,NOT(ISNUMBER(#REF!))),"",IF(#REF!=0,"",CHOOSE(#REF!,1,2,3,4,5))) ->  | V123: =SUM(T123:U123) -> 3.65 | W123: 6.75 | X123: =IF(OR(W123<7,NOT(ISNUMBER(#REF!))),"",IF(#REF!=0,"",CHOOSE(#REF!,1,2,3,4,5))) ->  | Y123: =SUM(W123:X123) -> 6.75 | Z123: Sol | AA123: =LARGE(G122:G131,1)+LARGE(G122:G131,2)+LARGE(G122:G131,3) -> 35.85
D124: 3 | E124: 7.95 | F124: 3 | G124: 10.95 | H124: 3 | I124: 9.1 | J124: 3 | K124: 12.1 | L124: 3 | M124: 8.95 | N124: 3 | O124: 11.95 | P124: 3 | Q124: 8.8 | R124: 3 | S124: 11.8 | T124: 4.05 | U124: =IF(OR(T124<7,NOT(ISNUMBER(#REF!))),"",IF(#REF!=0,"",CHOOSE(#REF!,1,2,3,4,5))) ->  | V124: 4.05 | W124: 8.1 | X124: =IF(OR(W124<7,NOT(ISNUMBER(#REF!))),"",IF(#REF!=0,"",CHOOSE(#REF!,1,2,3,4,5))) ->  | Y124: 8.1 | Z124: Saut | AA124: =LARGE(K122:K131,1)+LARGE(K122:K131,2)+LARGE(K122:K131,3) -> 36.05
D125: 4 | E125: 8.2 | F125: 4 | G125: 12.2 | H125: 3 | I125: 8.9 | J125: 3 | K125: 11.9 | L125: 3 | M125: 9.1 | N125: 3 | O125: 12.1 | P125: 3 | Q125: 7.45 | R125: 3 | S125: 10.45 | T125: 7.55 | U125: =IF(OR(T125<7,NOT(ISNUMBER(#REF!))),"",IF(#REF!=0,"",CHOOSE(#REF!,1,2,3,4,5))) ->  | V125: 7.55 | W125: 8.5 | X125: =IF(OR(W125<7,NOT(ISNUMBER(#REF!))),"",IF(#REF!=0,"",CHOOSE(#REF!,1,2,3,4,5))) ->  | Y125: 8.5 | Z125: BP | AA125: =LARGE(O122:O131,1)+LARGE(O122:O131,2)+LARGE(O122:O131,3) -> 36.1
D126: 4 | E126: 6.6 | G126: 6.6 | H126: 3 | I126: 8.1 | J126: 3 | K126: 11.1 | L126: 3 | M126: 8.05 | N126: 3 | O126: 11.05 | P126: 3 | Q126: 7.1 | R126: 3 | S126: 10.1 | T126: 6.05 | U126: =IF(OR(T126<7,NOT(ISNUMBER(#REF!))),"",IF(#REF!=0,"",CHOOSE(#REF!,1,2,3,4,5))) ->  | V126: 6.05 | W126: 7.4 | X126: =IF(OR(W126<7,NOT(ISNUMBER(#REF!))),"",IF(#REF!=0,"",CHOOSE(#REF!,1,2,3,4,5))) ->  | Y126: 7.4 | Z126: BF | AA126: =LARGE(S122:S131,1)+LARGE(S122:S131,2)+LARGE(S122:S131,3) -> 35.85
D127: 3 | E127: 6.9 | G127: 6.9 | H127: 2 | I127: 8.2 | J127: 2 | K127: 10.2 | L127: 2 | M127: 9.15 | N127: 2 | O127: 11.15 | P127: 2 | Q127: 8.9 | R127: 2 | S127: 10.9 | T127: 4.55 | U127: =IF(OR(T127<7,NOT(ISNUMBER(#REF!))),"",IF(#REF!=0,"",CHOOSE(#REF!,1,2,3,4,5))) ->  | V127: 4.55 | W127: 8.15 | X127: =IF(OR(W127<7,NOT(ISNUMBER(#REF!))),"",IF(#REF!=0,"",CHOOSE(#REF!,1,2,3,4,5))) ->  | Y127: 8.15 | Z127: Arçons | AA127: =LARGE(V122:V131,1)+LARGE(V122:V131,2)+LARGE(V122:V131,3) -> 19.9
D128: 4 | E128: 8.7 | F128: 4 | G128: 12.7 | H128: 3 | I128: 9.05 | J128: 3 | K128: 12.05 | L128: 3 | M128: 9.05 | N128: 3 | O128: 12.05 | P128: 4 | Q128: 8.45 | R128: 4 | S128: 12.45 | T128: 6.3 | U128: =IF(OR(T128<7,NOT(ISNUMBER(#REF!))),"",IF(#REF!=0,"",CHOOSE(#REF!,1,2,3,4,5))) ->  | V128: 6.3 | W128: 6 | X128: =IF(OR(W128<7,NOT(ISNUMBER(#REF!))),"",IF(#REF!=0,"",CHOOSE(#REF!,1,2,3,4,5))) ->  | Y128: 6 | Z128: Anneaux | AA128: =LARGE(Y122:Y131,1)+LARGE(Y122:Y131,2)+LARGE(Y122:Y131,3) -> 24.75
D129: 3 | E129: 7.85 | F129: 3 | G129: 10.85 | H129: 3 | I129: 8.7 | J129: 3 | K129: 11.7 | L129: 2 | M129: 9.2 | N129: 2 | O129: 11.2 | P129: 2 | Q129: 8.75 | R129: 2 | S129: 10.75 | T129: 2.6 | U129: =IF(OR(T129<7,NOT(ISNUMBER(#REF!))),"",IF(#REF!=0,"",CHOOSE(#REF!,1,2,3,4,5))) ->  | V129: 2.6 | W129: 4.9 | X129: =IF(OR(W129<7,NOT(ISNUMBER(#REF!))),"",IF(#REF!=0,"",CHOOSE(#REF!,1,2,3,4,5))) ->  | Y129: 4.9
D130: 1 | E130: 8.2 | F130: 1 | G130: 9.2 | H130: 2 | I130: 7.7 | J130: 2 | K130: 9.7 | L130: 2 | M130: 9.4 | N130: 2 | O130: 11.4 | P130: 2 | Q130: 8.8 | R130: 2 | S130: 10.8 | T130: 4.35 | U130: =IF(OR(T130<7,NOT(ISNUMBER(#REF!))),"",IF(#REF!=0,"",CHOOSE(#REF!,1,2,3,4,5))) ->  | V130: 4.35 | X130: =IF(OR(W130<7,NOT(ISNUMBER(#REF!))),"",IF(#REF!=0,"",CHOOSE(#REF!,1,2,3,4,5))) ->  | Y130: 0
F131: =IF(OR(E131<7,NOT(ISNUMBER(D131))),"",IF(D131=0,"",CHOOSE(D131,1,2,3,4,5))) -> 
C132: Total | G132: =SUM(G122:G131) -> 86.05 | K132: =SUM(K122:K131) -> 98.5 | O132: =SUM(O122:O131) -> 102.55 | S132: =SUM(S122:S131) -> 99.75 | V132: =SUM(V122:V131) -> 41.75 | Y132: =SUM(Y122:Y131) -> 55.7 | Z132: Total Gal | AA132: =SUM(AA122:AA131) -> 188.5
A134: JP3
A135: 1 | B135: USSA | C135: ST ANDRE
B137: Nom | C137: Prénom | D137: Degré | E137: Note | G137: Sol | H137: Degré | I137: Note | K137: Saut | L137: Degré | M137: Note | O137: BP | P137: Degré | Q137: Note | S137: BF | T137: Note | V137: Arçons | W137: Note | Y137: AN | Z137: Total; des 3 Meilleurs notes
D138: 4 | E138: 8.1 | F138: =IF(OR(E138<7,NOT(ISNUMBER(D138))),"",IF(D138=0,"",CHOOSE(D138,1,2,3,4,5))) -> 4 | G138: =SUM(E138:F138) -> 12.1 | H138: 3 | I138: 9 | J138: =IF(OR(I138<7,NOT(ISNUMBER(H138))),"",IF(H138=0,"",CHOOSE(H138,1,2,3,4,5))) -> 3 | K138: =SUM(I138:J138) -> 12 | L138: 3 | M138: 9.15 | N138: =IF(OR(M138<7,NOT(ISNUMBER(L138))),"",IF(L138=0,"",CHOOSE(L138,1,2,3,4,5))) -> 3 | O138: =SUM(M138:N138) -> 12.15 | P138: 3 | Q138: 8.65 | R138: =IF(OR(Q138<7,NOT(ISNUMBER(P138))),"",IF(P138=0,"",CHOOSE(P138,1,2,3,4,5))) -> 3 | S138: =SUM(Q138:R138) -> 11.65 | T138: 5.25 | U138: =IF(OR(T138<7,NOT(ISNUMBER(#REF!))),"",IF(#REF!=0,"",CHOOSE(#REF!,1,2,3,4,5))) ->  | V138: =SUM(T138:U138) -> 5.25 | W138: 8.4 | X138: =IF(OR(W138<7,NOT(ISNUMBER(#REF!))),"",IF(#REF!=0,"",CHOOSE(#REF!,1,2,3,4,5))) ->  | Y138: =SUM(W138:X138) -> 8.4
D139: 2 | E139: 8.15 | F139: =IF(OR(E139<7,NOT(ISNUMBER(D139))),"",IF(D139=0,"",CHOOSE(D139,1,2,3,4,5))) -> 2 | G139: =SUM(E139:F139) -> 10.15 | H139: 3 | I139: 8.45 | J139: 3 | K139: 11.45 | L139: 3 | M139: 8 | N139: =IF(OR(M139<7,NOT(ISNUMBER(L139))),"",IF(L139=0,"",CHOOSE(L139,1,2,3,4,5))) -> 3 | O139: =SUM(M139:N139) -> 11 | P139: 2 | Q139: 8.8 | R139: =IF(OR(Q139<7,NOT(ISNUMBER(P139))),"",IF(P139=0,"",CHOOSE(P139,1,2,3,4,5))) -> 2 | S139: =SUM(Q139:R139) -> 10.8 | T139: 3 | U139: =IF(OR(T139<7,NOT(ISNUMBER(#REF!))),"",IF(#REF!=0,"",CHOOSE(#REF!,1,2,3,4,5))) ->  | V139: =SUM(T139:U139) -> 3 | W139: 7.7 | X139: =IF(OR(W139<7,NOT(ISNUMBER(#REF!))),"",IF(#REF!=0,"",CHOOSE(#REF!,1,2,3,4,5))) ->  | Y139: =SUM(W139:X139) -> 7.7 | Z139: Sol | AA139: =LARGE(G138:G144,1)+LARGE(G138:G144,2)+LARGE(G138:G144,3) -> 32.45
D140: 2 | E140: 7.65 | F140: 2 | G140: 9.65 | H140: 2 | I140: 8.5 | J140: 2 | K140: 10.5 | L140: 2 | M140: 7.9 | N140: 2 | O140: 9.9 | P140: 2 | Q140: 6.25 | S140: 6.25 | T140: 3.3 | U140: =IF(OR(T140<7,NOT(ISNUMBER(#REF!))),"",IF(#REF!=0,"",CHOOSE(#REF!,1,2,3,4,5))) ->  | V140: 3.3 | W140: 1 | X140: =IF(OR(W140<7,NOT(ISNUMBER(#REF!))),"",IF(#REF!=0,"",CHOOSE(#REF!,1,2,3,4,5))) ->  | Y140: 1 | Z140: Saut | AA140: =LARGE(K138:K144,1)+LARGE(K138:K144,2)+LARGE(K138:K144,3) -> 34.65
D141: 2 | E141: 7.8 | F141: 2 | G141: 9.8 | H141: 2 | I141: 8.55 | J141: 2 | K141: 10.55 | L141: 2 | M141: 8.85 | N141: 2 | O141: 10.85 | P141: 2 | Q141: 7.55 | R141: 2 | S141: 9.55 | T141: 3.7 | U141: =IF(OR(T141<7,NOT(ISNUMBER(#REF!))),"",IF(#REF!=0,"",CHOOSE(#REF!,1,2,3,4,5))) ->  | V141: 3.7 | W141: 7.5 | X141: =IF(OR(W141<7,NOT(ISNUMBER(#REF!))),"",IF(#REF!=0,"",CHOOSE(#REF!,1,2,3,4,5))) ->  | Y141: 7.5 | Z141: BP | AA141: =LARGE(O138:O144,1)+LARGE(O138:O144,2)+LARGE(O138:O144,3) -> 34
D142: 3 | E142: 7.2 | F142: 3 | G142: 10.2 | H142: 3 | I142: 8.2 | J142: 3 | K142: 11.2 | L142: 3 | M142: 6.55 | O142: 6.55 | P142: 2 | Q142: 8 | R142: 2 | S142: 10 | T142: 3 | U142: =IF(OR(T142<7,NOT(ISNUMBER(#REF!))),"",IF(#REF!=0,"",CHOOSE(#REF!,1,2,3,4,5))) ->  | V142: 3 | W142: 7.7 | X142: =IF(OR(W142<7,NOT(ISNUMBER(#REF!))),"",IF(#REF!=0,"",CHOOSE(#REF!,1,2,3,4,5))) ->  | Y142: 7.7 | Z142: BF | AA142: =LARGE(S138:S144,1)+LARGE(S138:S144,2)+LARGE(S138:S144,3) -> 32.45
G143: 0 | K143: 0 | O143: 0 | S143: 0 | U143: =IF(OR(T143<7,NOT(ISNUMBER(#REF!))),"",IF(#REF!=0,"",CHOOSE(#REF!,1,2,3,4,5))) ->  | V143: 0 | X143: =IF(OR(W143<7,NOT(ISNUMBER(#REF!))),"",IF(#REF!=0,"",CHOOSE(#REF!,1,2,3,4,5))) ->  | Y143: 0 | Z143: Arçons | AA143: =LARGE(V138:V144,1)+LARGE(V138:V144,2)+LARGE(V138:V144,3) -> 12.25
F144: =IF(OR(E144<7,NOT(ISNUMBER(D144))),"",IF(D144=0,"",CHOOSE(D144,1,2,3,4,5))) ->  | J144: =IF(OR(I144<7,NOT(ISNUMBER(H144))),"",IF(H144=0,"",CHOOSE(H144,1,2,3,4,5))) ->  | N144: =IF(OR(M144<7,NOT(ISNUMBER(L144))),"",IF(L144=0,"",CHOOSE(L144,1,2,3,4,5))) ->  | R144: =IF(OR(Q144<7,NOT(ISNUMBER(P144))),"",IF(P144=0,"",CHOOSE(P144,1,2,3,4,5))) ->  | U144: =IF(OR(T144<7,NOT(ISNUMBER(#REF!))),"",IF(#REF!=0,"",CHOOSE(#REF!,1,2,3,4,5))) ->  | X144: =IF(OR(W144<7,NOT(ISNUMBER(#REF!))),"",IF(#REF!=0,"",CHOOSE(#REF!,1,2,3,4,5))) ->  | Z144: Anneaux | AA144: =LARGE(Y138:Y144,1)+LARGE(Y138:Y144,2)+LARGE(Y138:Y144,3) -> 23.8
C145: Total | G145: =SUM(G138:G144) -> 51.9 | K145: =SUM(K138:K144) -> 55.7 | O145: =SUM(O138:O144) -> 50.45 | S145: =SUM(S138:S144) -> 48.25 | V145: =SUM(V138:V144) -> 18.25 | Y145: =SUM(Y138:Y144) -> 32.3 | Z145: Total Gal | AA145: =SUM(AA138:AA144) -> 169.6
A147: 2 | B147: JEANNE ARC ESTAIRES
B149: Nom | C149: Prénom | D149: Degré | E149: Note | G149: Sol | H149: Degré | I149: Note | K149: Saut | L149: Degré | M149: Note | O149: BP | P149: Degré | Q149: Note | S149: BF | T149: Note | V149: Arçons | W149: Note | Y149: AN | Z149: Total; des 3 Meilleurs notes
D150: 2 | E150: 7.6 | F150: =IF(OR(E150<7,NOT(ISNUMBER(D150))),"",IF(D150=0,"",CHOOSE(D150,1,2,3,4,5))) -> 2 | G150: =SUM(E150:F150) -> 9.6 | H150: 2 | I150: 8.5 | J150: =IF(OR(I150<7,NOT(ISNUMBER(H150))),"",IF(H150=0,"",CHOOSE(H150,1,2,3,4,5))) -> 2 | K150: =SUM(I150:J150) -> 10.5 | L150: 2 | M150: 6.55 | N150: =IF(OR(M150<7,NOT(ISNUMBER(L150))),"",IF(L150=0,"",CHOOSE(L150,1,2,3,4,5))) ->  | O150: =SUM(M150:N150) -> 6.55 | P150: 2 | Q150: 8.15 | R150: =IF(OR(Q150<7,NOT(ISNUMBER(P150))),"",IF(P150=0,"",CHOOSE(P150,1,2,3,4,5))) -> 2 | S150: =SUM(Q150:R150) -> 10.15 | T150: 3.25 | U150: =IF(OR(T150<7,NOT(ISNUMBER(#REF!))),"",IF(#REF!=0,"",CHOOSE(#REF!,1,2,3,4,5))) ->  | V150: =SUM(T150:U150) -> 3.25 | W150: 8.2 | X150: =IF(OR(W150<7,NOT(ISNUMBER(#REF!))),"",IF(#REF!=0,"",CHOOSE(#REF!,1,2,3,4,5))) ->  | Y150: =SUM(W150:X150) -> 8.2
D151: 4 | E151: 8.15 | F151: =IF(OR(E151<7,NOT(ISNUMBER(D151))),"",IF(D151=0,"",CHOOSE(D151,1,2,3,4,5))) -> 4 | G151: =SUM(E151:F151) -> 12.15 | H151: 3 | I151: 8.9 | J151: =IF(OR(I151<7,NOT(ISNUMBER(H151))),"",IF(H151=0,"",CHOOSE(H151,1,2,3,4,5))) -> 3 | K151: =SUM(I151:J151) -> 11.9 | L151: 3 | M151: 9 | N151: =IF(OR(M151<7,NOT(ISNUMBER(L151))),"",IF(L151=0,"",CHOOSE(L151,1,2,3,4,5))) -> 3 | O151: =SUM(M151:N151) -> 12 | P151: 2 | Q151: 8.9 | R151: =IF(OR(Q151<7,NOT(ISNUMBER(P151))),"",IF(P151=0,"",CHOOSE(P151,1,2,3,4,5))) -> 2 | S151: =SUM(Q151:R151) -> 10.9 | T151: 6.35 | U151: =IF(OR(T151<7,NOT(ISNUMBER(#REF!))),"",IF(#REF!=0,"",CHOOSE(#REF!,1,2,3,4,5))) ->  | V151: =SUM(T151:U151) -> 6.35 | W151: 5.8 | X151: =IF(OR(W151<7,NOT(ISNUMBER(#REF!))),"",IF(#REF!=0,"",CHOOSE(#REF!,1,2,3,4,5))) ->  | Y151: =SUM(W151:X151) -> 5.8 | Z151: Sol | AA151: =LARGE(G150:G156,1)+LARGE(G150:G156,2)+LARGE(G150:G156,3) -> 35.8
D152: 2 | E152: 8.65 | F152: 2 | G152: 10.65 | H152: 3 | I152: 9.2 | J152: 3 | K152: 12.2 | L152: 3 | M152: 8.55 | N152: 3 | O152: 11.55 | P152: 2 | Q152: 8.9 | R152: 2 | S152: 10.9 | T152: 2.95 | U152: =IF(OR(T152<7,NOT(ISNUMBER(#REF!))),"",IF(#REF!=0,"",CHOOSE(#REF!,1,2,3,4,5))) ->  | V152: 2.95 | W152: 8 | X152: =IF(OR(W152<7,NOT(ISNUMBER(#REF!))),"",IF(#REF!=0,"",CHOOSE(#REF!,1,2,3,4,5))) ->  | Y152: 8 | Z152: Saut | AA152: =LARGE(K150:K156,1)+LARGE(K150:K156,2)+LARGE(K150:K156,3) -> 36.25
D153: 4 | E153: 7.55 | F153: 4 | G153: 11.55 | H153: 3 | I153: 9 | J153: 3 | K153: 12 | L153: 3 | M153: 9.05 | N153: 3 | O153: 12.05 | P153: 3 | Q153: 9.1 | R153: 3 | S153: 12.1 | T153: 5.9 | U153: =IF(OR(T153<7,NOT(ISNUMBER(#REF!))),"",IF(#REF!=0,"",CHOOSE(#REF!,1,2,3,4,5))) ->  | V153: 5.9 | W153: 8.3 | X153: =IF(OR(W153<7,NOT(ISNUMBER(#REF!))),"",IF(#REF!=0,"",CHOOSE(#REF!,1,2,3,4,5))) ->  | Y153: 8.3 | Z153: BP | AA153: =LARGE(O150:O156,1)+LARGE(O150:O156,2)+LARGE(O150:O156,3) -> 36.55
D154: 4 | E154: 8.1 | F154: 4 | G154: 12.1 | H154: 3 | I154: 9.05 | J154: 3 | K154: 12.05 | L154: 3 | M154: 9.5 | N154: 3 | O154: 12.5 | P154: 2 | Q154: 9.15 | R154: 2 | S154: 11.15 | T154: 4.85 | V154: 4.85 | W154: 8.6 | Y154: 8.6 | Z154: BF | AA154: =LARGE(S150:S156,1)+LARGE(S150:S156,2)+LARGE(S150:S156,3) -> 34.15
G155: 0 | K155: 0 | O155: 0 | S155: 0 | V155: 0 | Y155: 0 | Z155: Arçons | AA155: =LARGE(V150:V156,1)+LARGE(V150:V156,2)+LARGE(V150:V156,3) -> 17.1
F156: =IF(OR(E156<7,NOT(ISNUMBER(D156))),"",IF(D156=0,"",CHOOSE(D156,1,2,3,4,5))) ->  | Z156: Anneaux | AA156: =LARGE(Y150:Y156,1)+LARGE(Y150:Y156,2)+LARGE(Y150:Y156,3) -> 25.1
C157: Total | G157: =SUM(G150:G156) -> 56.05 | K157: =SUM(K150:K156) -> 58.65 | O157: =SUM(O150:O156) -> 54.65 | S157: =SUM(S150:S156) -> 55.2 | V157: =SUM(V150:V156) -> 23.3 | Y157: =SUM(Y150:Y156) -> 38.9 | Z157: Total Gal | AA157: =SUM(AA150:AA156) -> 184.95

Sheet total
A2: Nombre EQUIPES REGIONAL POUSSINS
A4: Club | B4: Poussins R1 | C4: Poussins R2 | D4: Poussins R3
A6: ARMENTIERES | B6: 1
A7: BAILLEUL | B7: 1
A8: CYSOING
A9: DUNKERQUE
A10: ESTAIRES | D10: 1
A11: FOURNES EN WEPPES | C11: 1
A12: HEM
A13: LAMBRES LEZ DOUAI
A14: MARQUILLIES
A15: MOUVAUX | B15: 1
A16: NEUVILLE ST REMY
A17: PERENCHIES
A18: RACHES | C18: 1
A19: SAINT AMAND | C19: 1
A20: SAINT ANDRE | D20: 1
A21: SECLIN
A22: VILLENEUVE D'ASCQ
A25: TOTAL | B25: =SUM(B6:B23) -> 3 | C25: =SUM(C6:C23) -> 3 | D25: =SUM(D6:D23) -> 2

Sheet juges (hidden)
A4: JUGES MANQUANTS
